Workbook

Sheet Data Input Tab
I1: QA Data Record Rel 36c
B2: Part & Contract Information | E2: Manufacturer Info: --> | G2: Industrial Welding & Engineering | I2: <-Company Drop-Down | U2: =OR(TDPFAT="FAT Package",CLIN0001>=9000,B19="TE",B19="Qty") -> FALSE
B4: CUSTOMER | D4: For Commercial only | G4: =VLOOKUP(Company, CompanyTable, 2, FALSE) -> 747 Carle Ave. | I4: <-Street | W4: Company | X4: Address | Y4: State | Z4: Phone | AA4: Fax | AB4: Email | AC4: Web | AD4: Cage | AE4: Shpg Prefix
B5: v-Blk #7 DoDACC Code-v | C5: Ship to Address | G5: =VLOOKUP(Company, CompanyTable, 3, FALSE) -> Lewis Center, OH 43035 | I5: <-State | V5: Select Code A, B or C | W5: MTC Engineering | X5: 747 Carle Ave. | Y5: Lewis Center, OH 43035 | Z5: 614-657-8666 | AA5: 614-540-7442 | AB5: mtcengineering@att.net | AC5: www.mtcengco.com | AD5: 3BTS1 | AE5: MTC
C6: Ship to State | G6: =VLOOKUP(Company, CompanyTable, 4, FALSE) -> 614-883-6109 | I6: <-Phone | U6: =IF(DoDACC="S3605A",1," ") ->  | V6: A | W6: Industrial Welding & Engineering | X6: 747 Carle Ave. | Y6: Lewis Center, OH 43035 | Z6: 614-883-6109 | AA6: email only | AB6: iwe@columbus.rr.com | AC6: www.iweohio.com | AD6: 3NBK9 | AE6: IWE
B7: =IF(U9<2,"Check DoDAAC Code for Error.","DoDAAC Good") -> Check DoDAAC Code for Error. | C7: Customer Phone | G7: =VLOOKUP(Company, CompanyTable, 5, FALSE) -> email only | I7: <-Fax: | U7: =IF(DoDACC="S0512A",1," ") ->  | V7: B | W7: MTC Engineering, LLC | X7: 747 Carle Ave. | Y7: Lewis Center, OH 43035 | Z7: 614-657-8666 | AA7: 614-540-7442 | AB7: mtcengllc@att.net | AC7: www.mtcengco.com | AD7: 5TVD6 | AE7: MTC
C8: Customer PO-->: | G8: =VLOOKUP(Company, CompanyTable, 6, FALSE) -> iwe@columbus.rr.com | I8: <-Email: | U8: =IF(InspectPoint="S",1," ") ->  | V8: C | W8: Alannas Engineer | X8: 9710-A Owensmouth Ave. | Y8: Chatsworth, CA 91311 | Z8: 818-701-1522 | AA8: 818-701-0316 | AB8: alannasengineer@yahoo.com | AD8: 5KBD7 | AE8: ALE
B9: =IF(TDPFAT<>"TDP Package","GOV CONTRACT #-->:","SOLICITATION #-->:") -> GOV CONTRACT #-->: | G9: =VLOOKUP(Company, CompanyTable, 7, FALSE) -> www.iweohio.com | I9: <-Website: | U9: =SUM(U6:U8) -> 0 | W9: LCG Machine & Tool | X9: 2923 Grasemere Ave. | Y9: Columbus, OH 43224 | Z9: 614-261-1651 | AA9: 614-447-8051 | AB9: sales@lcgmachine.com | AC9: www.lcgmachine.com | AD9: 4HYL7 | AE9: LCG
B10: Blk #6 PCO (Email) --->: | D10: <---Click link to send email to PCO. | G10: =VLOOKUP(Company, CompanyTable, 8, FALSE) -> 3NBK9 | I10: <-Cage Code: | U10: ="~QA "&WO&" ("&NSN&")" -> ~QA () | W10: Westerville Mfg | X10: 935 Schrock Road | Y10: Columbus, OH 43229 | Z10: 614-888-9088 | AA10: 614-888-9188 | AB10: wmfginc@sbcglobal.net | AC10: www.wmfginc.com | AD10: 7Y162 | AE10: WMFG
B11: =IF(TDPFAT<>"TDP Package","Contract Issue Date:","Solicitation Due Date:") -> Contract Issue Date: | G11: Please set TDP or FAT with drop-down | I11: <-Drop-down list for TDP / FAT Package only. Leave blank for Source/Destination shipments | U11: For Barcode- No (-)'s -> | V11: =SUBSTITUTE(C9,"-","") ->  | W11: Boehm Machine | X11: 1297 Memory Lane, N | Y11: Columbus, OH 43209 | Z11: 614-252-3778 | AA11: 614-237-5262 | AB11: gkboehm@wideopenwest.com | AD11: 1P723 | AE11: GKT
B12: Criticality (Priority) Codes: | C12: Select Code A, B or C | D12: Block #5 | E12: Priority Code | U12: FOLDER LIST | W12: RC Industries, Inc. | X12: 7755 Alabama Ave., Ste 6/8 | Y12: Canoga Park, CA 91304 | Z12: 818-883-0855 | AA12: 818-883-2537 | AB12: rcind@sbcglobal.net | AC12: www.rcingcorp.com | AD12: 6CH54 | AE12: RCI
B13: NSN---->: | D13: <---Include (-) Dash's | F13: =IF(TDPFAT="TDP Package", "(Est) FAT DUE DATE","FAT DUE DATE") -> FAT DUE DATE | M13: <--Double click to open DD1694 form. | U13: DRAWINGS | V13: Please set TDP or FAT with drop-down | W13: DSE Development | X13: 747 Carle Ave. | Y13: Lewis Center, OH 43035 | Z13: 614-843-5523 | AA13: email only | AB13: dse.ohio@hotmail.com | AD13: 713G7 | AE13: DSE
B14: PART NAME: | D14: Days FAT Due: | F14: =IF(E14>=30,DwgRvw+E14,"") ->  | M14: <- - - - | N14: NOTE: Numbering should begin with "D" for Pre-Production or "W" for Post-Production. Example: D (Job #-Contract last 4) i.e. Pre-Production for Job 1056, contract ending with E562 would be numbered as: | U14: PO | V14: TDP Package | W14: DuLond Tool & Engineering, Inc. | X14: 2306 Whitfield Park Loop | Y14: Sarasota, FL 34243 | Z14: 941-758-4489 | AA14: 941-753-5592 | AB14: gbrunette@dulondtool.com | AC14: www.dulondtool.com | AD14: 9M680 | AE14: DTE
B15: (Drawing)/ Part Number: | D15: <---Include (-) Dash # | F15: FAT Cost---> | U15: PROJECT MANAGEMENT | V15: FAT Package | W15: Maven Engineering Corporation | X15: 15946 Derwood Rd. | Y15: Rockville, MD 20855 | Z15: 301-519-3400 | AA15: 301-947-6271 | AB15: sales@mavencorporation.com | AC15: www.mavencorporation.com | AD15: 46YF5 | AE15: MAV
B16: REV (or NC for No Chg): | F16: =IF(TDPFAT="TDP Package", "(Est) DELIVERY DUE DATE","DELIVERY DUE DATE") -> DELIVERY DUE DATE | U16: QUALITY | W16: ADJ Finishing | X16: 7845 Gloria Ave. | Y16: Van Nuys, CA 91406 | Z16: 818-786-5131 | AA16: 818-786-6165 | AB16: adjfinishing@hotmail.com | AC16: www.adjfinishing.com | AD16: 6NVY2 | AE16: ADJ
B17: FSCM (Design Cage): | D17: Unit Wt (Lbs): | K17: § - DD1694 Instructions | U17: RFQ | W17: Lewis Center Mfg. | X17: 747 Carle Ave. | Y17: Lewis Center, OH 43035 | Z17: 614-560-6122 | AA17: 614-737-9320 | AB17: Lewiscentermfg@gmail.com | AC17: Www.lewiscentermfg.com | AD17: 6QCA7 | AE17: LCM
B18: =IF(TDPFAT<>"TDP Package","WO (Job Number)","RFQ/RFP reference #") -> WO (Job Number) | D18: Weight is needed for label printing | F18: Unit Cost---> | I18: =IF(FastPay="Fast Pay", "Check for TCN-FMS WAWF Invoice Only","") ->  | U18: Shipping | W18: Fourply Design House | X18: 747 Carle Ave. | Y18: Lewis Center, OH 43035 | Z18: 910-381-3110 | AA18: 614-737-9320 | AB18: Njsanna@fourplydesign.com | AC18: www.fourplydesign.com | AD18: 6Q2Z8 | AE18: FDH
B19: =IF(TDPFAT<="FAT Package","Enter TE QTY = 1","QTY (Total parts to Ship)") -> QTY (Total parts to Ship) | D19: =IF(TDPFAT<="FAT Package","<=Enter the TE QTY as 1","<=Enter the Total Qty to ship") -> <=Enter the Total Qty to ship | F19: Fast Pay?-> | N19: D1056E562 | U19: For Barcode- No (-)'s -> | V19: =SUBSTITUTE(C13,"-","") ->  | W19: GTA Containers Inc. | X19: 4201 Linden Ave. | Y19: South Bend, IN. 46619 | Z19: 574-288-3459 | AA19: 574-288-1997 | AB19: victoria@gtacontainers.com | AC19: www.gtacontainers.com | AD19: 1YFX5 | AE19: GTA
B20: =UPPER(IF(TDPFAT="FAT Package","^_Enter TE Qty, Not Ship Qty_^","")) ->  | C20: v---CLIN---v | D20: Packaged QUP | E20: =IF(TDPFAT<="FAT Package","# Units per TE","QUP per Box") -> QUP per Box | F20: Boxes / Shipment | H20: Ship-to Code | W20: Acromil Corp. | X20: 18421 Railroad St. | Y20: City of Industry, CA 91748 | Z20: 626-694-2522 | AA20: 626-810-6100 | AB20: jkonheim@acromil.com | AC20: www.acromil.com | AD20: 4F112 | AE20: ACI
B21: =IF(TDPFAT="FAT Package","Enter FAT CLIN (WT: "&WT*Unit_Qty*Qty_Packages&")","CLIN (WT: "&WT*Unit_Qty*Qty_Packages&")") -> CLIN (WT: 0) | I21: =VLOOKUP(FAT_Code, ShipCodeTable, 2,FALSE ) ->  | M21: NOTE: ALL SHADED BOXES ON THIS PAGE ARE REQUIRED FOR AUTO-LOAD FEATURE TO WORK ON ADDITIONAL SHEETS IN THIS WORKBOOK. | V21: Fast Pay | W21: C. O. W. Industries, Inc. | X21: 1875 Progress Ave. | Y21: Columbus, OH 43207 | Z21: 614-445-5516 | AA21: 614-443-5530 | AB21: james.dailey@cowind.com | AC21: www.cowind.com | AD21: 73320/5A106 | AE21: COW
B22: =IF(TDPFAT="FAT Package","Prod CLIN (WT: "&WT*Unit_Qty_2*Qty_Packages_2&")","CLIN (WT: "&WT*Unit_Qty_2*Qty_Packages_2&")") -> CLIN (WT: 0) | I22: =VLOOKUP(Ship_2, ShipCodeTable, 2, FALSE) -> 
B23: =IF(TDPFAT="FAT Package","Prod CLIN (WT: "&WT*Unit_Qty_3*Qty_Packages_3&")","CLIN (WT: "&WT*Unit_Qty_3*Qty_Packages_3&")") -> CLIN (WT: 0) | I23: =VLOOKUP(Ship_3, ShipCodeTable, 2, FALSE) -> 
B24: =IF(TDPFAT="FAT Package","Prod CLIN (WT: "&WT*Unit_Qty_4*Qty_Packages_4&")","CLIN (WT: "&WT*Unit_Qty_4*Qty_Packages_4&")") -> CLIN (WT: 0) | I24: =VLOOKUP(Ship_4, ShipCodeTable, 2, FALSE) -> 
B25: =IF(TDPFAT="FAT Package","Prod CLIN (WT: "&WT*Unit_Qty_5*Qty_Packages_5&")","CLIN (WT: "&WT*Unit_Qty_5*Qty_Packages_5&")") -> CLIN (WT: 0) | I25: =VLOOKUP(Ship_5, ShipCodeTable, 2, FALSE) -> 
B26: (M) PRESERVE METHOD: | D26: =IF(PackageMethod="ASTM D3951","ASTM D3951","MIL-STD-2073-1D") -> MIL-STD-2073-1D | F26: <---MIL SPEC Pkg Reference (If noted)
B27: INSPECTION POINT: | D27: =IF(InspectPoint="","<--D=Dest, S=Origin, O=Other",IF(InspectPoint="D","<- Inspect @ Destination", IF(InspectPoint="S", "<- Inspect @ Prime-Cage Loaction",IF(InspectPoint="O","<- Inspect @ Other Source location","<Please select Inspect Point")))) -> <--D=Dest, S=Origin, O=Other | F27: =IF(InspectPoint="D","<--(Section E - FAR 52.246-9007)","<--(See Contract Section E for details)") -> <--(See Contract Section E for details)
B28: ACCEPTANCE POINT: | D28: =IF(AcceptPoint="","<--D=Dest, S=Origin, O=Other",IF(AcceptPoint="D","<- Accept Packing @ Destination", IF(AcceptPoint="S", "<- Accept Packing @ Prime Loction",IF(AcceptPoint="O","<- Accept Packing @ Other-Alt location","<Please select Accept Point")))) -> <--D=Dest, S=Origin, O=Other | F28: =IF(AcceptPoint="D","<--(Section E - FAR 52.246-9007)","<--(See Contract Section E for details)") -> <--(See Contract Section E for details)
B29: CLIN FOB: | D29: =IF(FOB="","<--D=Dest, S=Origin, O=Other",IF(FOB="D","<- Vendor Paid Shipment", IF(FOB="S", "<- Gov reimbursed or Gov pickup. SEE CONTRACT DETAILS",IF(FOB="O","<- Ship from or Gov pickup @ alt location. SEE CONTRACT DETAILS","<Please select FOB Point")))) -> <--D=Dest, S=Origin, O=Other
B30: =IF(FOB="S","CHECK SHIPPING CHARGE FOR WAWF",IF(FOB="O","CHECK SHIPPING CHARGE FOR WAWF","")) ->  | D30: ^-- Check Contract Section D for RFID requirement per FAR 52.246-7006-^
C31: Job Master Schedule Summary
B32: Activity | C32: Date
B34: Inspector-Project Mgr Name: | D34: <--Project Manager Drop-Down menu
B36: =IF(TDPFAT="FAT Package", "FAT Requirements Review","(FAI) First-Part Review:") -> (FAI) First-Part Review: | D36: <-- Fill in @ FAI inspection acceptance.
B37: =IF(TDPFAT="FAT Package", "(FAI) First-Part Review:","(Production) Start Release:") -> (Production) Start Release: | D37: <-- Fill in AFTER FAI acceptance to authorize production run.
B38: MRB Action (If required) | C38: CAR/QDR #: | F38: <--Use DCMA-QAS assigned number or WO-Contract Last 4
C39: QDR Issue Date:
C40: Rwk Date:
C41: QDR Closed Date:
B42: Corrective Action Summary (CAR) | C42: CAR Issued
C43: CAR Closed
B44: =IF(TDPFAT="TDP Package", "(Est) QA Final Inspection:",IF(TDPFAT="FAT Package","(Est) FAT Final Inspection:","(Est) Final Acceptance")) -> (Est) Final Acceptance
B45: (Est) Ship Date:

Sheet Table of Content
B1: QA Contract Workbook
B3: TABLE OF CONTENT
B5: Tab 1 | C5: Input Data Tab | D5: =CHAR(214) -> Ö | F5: To show a sheet, Put a check in the box
B7: Tab 2 | C7: Barcode Labels, Parts | F7: To hide a sheet, remove the check from the box.
B9: Tab 3 | C9: Barcode Labels, Package | E9: VECP | F9: VECP Form w/Performa
B11: Tab 4 | C11: DD250 | E11: Tab 20 | F11: Packaging Waiver Request
B13: Tab 5 | C13: DD1222 | E13: Tab 21 | F13: QA 001 CAR
B15: Tab 6 | C15: QA 011 - Packing List | E15: Tab 22 | F15: QA 002 Audit
B17: Tab 7 | C17: QA 012 - Final Accept-CoC | E17: Tab 23 | F17: QA 005 QDR
B19: Tab 8 | C19: QA 013 - Contract Review | E19: Tab 24 | F19: QA 009 FAI
B21: Tab 9 | C21: QA 015a - Top Assy | E21: Tab 25 | F21: QA 010 QCP
B23: Tab 10 | C23: QA 015b - Det-Sub Assy | E23: Tab 26 | F23: QAP 111 AQL
B25: Tab 11 | C25: 831 Test Report - Cover Page | E25: Tab 27 | F25: ME 001 SOP
B27: Tab 12 | C27: 831 Test Report T of C | E27: Tab 28 | F27: Serial Number Sheet
B29: Tab 13 | C29: 831 Test Repory Appendix | E29: Tab 29 | F29: FAT Waiver Letter for TDP
B31: Tab 14 | C31: 831 Test Report Tech Data Cert | E31: Tab 30 | F31: Commercial - Invoice
B33: Tab 15 | C33: QA 012-1 - Special - CoC | E33: Tab 31 | F33: Commercial - Packing List
B35: Tab 16 | C35: QA 012-2 - Special - CoC | E35: Tab 32 | F35: DDC Shpg Inst Reqt
B37: Tab 17 | C37: QA 012-3 Prime & Paint CoC | E37: Tab 33 | F37: (SAR)/TDP Cost Breakdown
B39: Tab 18 | C39: Packaging Instructions | E39: Tab 34 | F39: TDP CDRL
B41: Tab 19 | C41: RFP Mailing Label | E41: Tab 35 | F41: Discount Extension Request

Sheet Barcode Labels - Each
B1: =NSN_2 ->  | G1: =NSN_2 ->  | Q1: ="001" -> 001
B2: =NSN_2 ->  | G2: =NSN_2 ->  | Q2: ="00"&Q1+1 -> 002
Q3: ="00"&Q2+1 -> 003
A4: =NSN -> 0 | F4: =NSN -> 0 | Q4: 004
A5: CAGE | B5: =UPPER(Cage) -> 3NBK9 | C5: CDA | D5: =FSCM -> 0 | F5: CAGE | G5: =UPPER(Cage) -> 3NBK9 | H5: CDA | I5: =FSCM -> 0 | Q5: 005
A6: PN | B6: =PN -> 0 | F6: PN | G6: =PN -> 0 | Q6: 006
A7: =PROPER(Name) ->  | B7: =UPPER(IF(A7>1,"Per Pack","EA")) -> PER PACK | F7: =PROPER(Name) ->  | G7: =UPPER(IF(F7>1,"Per Pack","EA")) -> PER PACK | Q7: 007
A8: =Unit_Qty -> 0 | B8: =(IF(A8>1,"Per Pack","EA")) -> EA | C8: =IF(M11<1,"","S/N") ->  | D8: =IF(M11>=1,REPLACE(Contract,1,12,)&Q1,"") ->  | F8: =IF(Unit_Qty_2>1,Unit_Qty_2,Unit_Qty) -> 0 | G8: =(IF(F8>1,"Per Pack","EA")) -> EA | H8: =IF(M11<1,"","S/N") ->  | I8: =IF(M11>=1,REPLACE(Contract,1,12,)&Q2,"") ->  | Q8: 008
A9: =UPPER(Contract) ->  | F9: =UPPER(Contract) ->  | Q9: 009
B10: =MCode&" - " -> - | C10: =ShipDate -> 00:00:00 | G10: =MCode&" - " -> - | H10: =ShipDate -> 00:00:00 | Q10: ="0"&Q9+1 -> 010
A11: =IF(TDPFAT="FAT Package","FIRST ARTICLE TEST - DO NOT POST",IF(M12>0,N12,"")) ->  | F11: =IF(TDPFAT="FAT Package","FIRST ARTICLE TEST - DO NOT POST",IF(M12>0,N12,"")) ->  | L11: Serialization: | N11: <-- "X" will serialize Labels | Q11: ="0"&Q10+1 -> 011
B12: =NSN_2 ->  | G12: =NSN_2 ->  | L12: Mark Labels->"X": | N12: "FOR MILITARY USE ONLY" | Q12: 012
B13: =NSN_2 ->  | G13: =NSN_2 ->  | K13: ^--- NOTE: DO NOT USE WITH FAT ---^ | Q13: 013
Q14: 014
A15: =NSN -> 0 | F15: =NSN -> 0 | Q15: 015
A16: CAGE | B16: =UPPER(Cage) -> 3NBK9 | C16: CDA | D16: =FSCM -> 0 | F16: CAGE | G16: =UPPER(Cage) -> 3NBK9 | H16: CDA | I16: =FSCM -> 0 | Q16: 016
A17: PN | B17: =PN -> 0 | F17: PN | G17: =PN -> 0 | Q17: 017
A18: =PROPER(Name) ->  | B18: =UPPER(IF(A18>1,"Per Pack","EA")) -> PER PACK | F18: =PROPER(Name) ->  | G18: =UPPER(IF(F18>1,"Per Pack","EA")) -> PER PACK | Q18: 018
A19: =IF(Unit_Qty_3>1,Unit_Qty_3,Unit_Qty) -> 0 | B19: =(IF(A19>1,"Per Pack","EA")) -> EA | C19: =IF(M11<1,"","S/N") ->  | D19: =IF(M11>=1,REPLACE(Contract,1,12,)&Q3,"") ->  | F19: =IF(Unit_Qty_4>1,Unit_Qty_4,Unit_Qty) -> 0 | G19: =(IF(F19>1,"Per Pack","EA")) -> EA | H19: =IF(M11<1,"","S/N") ->  | I19: =IF(M11>=1,REPLACE(Contract,1,12,)&Q4,"") ->  | Q19: 019
A20: =UPPER(Contract) ->  | F20: =UPPER(Contract) ->  | Q20: 020
B21: =MCode&" - " -> - | C21: =ShipDate -> 00:00:00 | G21: =MCode&" - " -> - | H21: =ShipDate -> 00:00:00 | Q21: 021
A22: =IF(TDPFAT="FAT Package","FIRST ARTICLE TEST - DO NOT POST",IF(M23>0,N23,"")) ->  | F22: =IF(TDPFAT="FAT Package","FIRST ARTICLE TEST - DO NOT POST",IF(R23>0,S23,"")) ->  | Q22: ="0"&Q21+1 -> 022
B23: =NSN_2 ->  | G23: =NSN_2 -> 
B24: =NSN_2 ->  | G24: =NSN_2 -> 
A26: =NSN -> 0 | F26: =NSN -> 0
A27: CAGE | B27: =UPPER(Cage) -> 3NBK9 | C27: CDA | D27: =FSCM -> 0 | F27: CAGE | G27: =UPPER(Cage) -> 3NBK9 | H27: CDA | I27: =FSCM -> 0
A28: PN | B28: =PN -> 0 | F28: PN | G28: =PN -> 0
A29: =PROPER(Name) ->  | B29: =UPPER(IF(A29>1,"Per Pack","EA")) -> PER PACK | F29: =PROPER(Name) ->  | G29: =UPPER(IF(F29>1,"Per Pack","EA")) -> PER PACK
A30: =IF(Unit_Qty_5>1,Unit_Qty_5,Unit_Qty) -> 0 | B30: =(IF(A30>1,"Per Pack","EA")) -> EA | C30: =IF(M11<1,"","S/N") ->  | D30: =IF(M11>=1,REPLACE(Contract,1,12,)&Q5,"") ->  | F30: =Unit_Qty -> 0 | G30: =(IF(F30>1,"Per Pack","EA")) -> EA | H30: =IF(M11<1,"","S/N") ->  | I30: =IF(M11>=1,REPLACE(Contract,1,12,)&Q6,"") -> 
A31: =UPPER(Contract) ->  | F31: =UPPER(Contract) -> 
B32: =MCode&" - " -> - | C32: =ShipDate -> 00:00:00 | G32: =MCode&" - " -> - | H32: =ShipDate -> 00:00:00
A33: =IF(TDPFAT="FAT Package","FIRST ARTICLE TEST - DO NOT POST",IF(M34>0,N34,"")) ->  | F33: =IF(TDPFAT="FAT Package","FIRST ARTICLE TEST - DO NOT POST",IF(R34>0,S34,"")) -> 
B34: =NSN_2 ->  | G34: =NSN_2 -> 
B35: =NSN_2 ->  | G35: =NSN_2 -> 
A37: =NSN -> 0 | F37: =NSN -> 0
A38: CAGE | B38: =UPPER(Cage) -> 3NBK9 | C38: CDA | D38: =FSCM -> 0 | F38: CAGE | G38: =UPPER(Cage) -> 3NBK9 | H38: CDA | I38: =FSCM -> 0
A39: PN | B39: =PN -> 0 | F39: PN | G39: =PN -> 0
A40: =PROPER(Name) ->  | B40: =UPPER(IF(A40>1,"Per Pack","EA")) -> PER PACK | F40: =PROPER(Name) ->  | G40: =UPPER(IF(F40>1,"Per Pack","EA")) -> PER PACK
A41: =Unit_Qty -> 0 | B41: =(IF(A41>1,"Per Pack","EA")) -> EA | C41: =IF(M11<1,"","S/N") ->  | D41: =IF(M11>=1,REPLACE(Contract,1,12,)&Q7,"") ->  | F41: =Unit_Qty -> 0 | G41: =(IF(F41>1,"Per Pack","EA")) -> EA | H41: =IF(M11<1,"","S/N") ->  | I41: =IF(M11>=1,REPLACE(Contract,1,12,)&Q8,"") -> 
A42: =UPPER(Contract) ->  | F42: =UPPER(Contract) -> 
B43: =MCode&" - " -> - | C43: =ShipDate -> 00:00:00 | G43: =MCode&" - " -> - | H43: =ShipDate -> 00:00:00
A44: =IF(TDPFAT="FAT Package","FIRST ARTICLE TEST - DO NOT POST",IF(M45>0,N45,"")) ->  | F44: =IF(TDPFAT="FAT Package","FIRST ARTICLE TEST - DO NOT POST",IF(R45>0,S45,"")) -> 
B45: =NSN_2 ->  | G45: =NSN_2 -> 
B46: =NSN_2 ->  | G46: =NSN_2 -> 
A48: =NSN -> 0 | F48: =NSN -> 0
A49: CAGE | B49: =UPPER(Cage) -> 3NBK9 | C49: CDA | D49: =FSCM -> 0 | F49: CAGE | G49: =UPPER(Cage) -> 3NBK9 | H49: CDA | I49: =FSCM -> 0
A50: PN | B50: =PN -> 0 | F50: PN | G50: =PN -> 0
A51: =PROPER(Name) ->  | B51: =UPPER(IF(A51>1,"Per Pack","EA")) -> PER PACK | F51: =PROPER(Name) ->  | G51: =UPPER(IF(F51>1,"Per Pack","EA")) -> PER PACK
A52: =Unit_Qty -> 0 | B52: =(IF(A52>1,"Per Pack","EA")) -> EA | C52: =IF(M11<1,"","S/N") ->  | D52: =IF(M11>=1,REPLACE(Contract,1,12,)&Q9,"") ->  | F52: =Unit_Qty -> 0 | G52: =(IF(F52>1,"Per Pack","EA")) -> EA | H52: =IF(M11<1,"","S/N") ->  | I52: =IF(M11>=1,REPLACE(Contract,1,12,)&Q10,"") -> 
A53: =UPPER(Contract) ->  | F53: =UPPER(Contract) -> 
B54: =MCode&" - " -> - | C54: =ShipDate -> 00:00:00 | G54: =MCode&" - " -> - | H54: =ShipDate -> 00:00:00
A55: =IF(TDPFAT="FAT Package","FIRST ARTICLE TEST - DO NOT POST",IF(M56>0,N56,"")) ->  | F55: =IF(TDPFAT="FAT Package","FIRST ARTICLE TEST - DO NOT POST",IF(R56>0,S56,"")) -> 

Sheet Barcode Labels - Package
A1: =NSN_2 ->  | D1: =IF(F11>0.1,F11," ") ->  | F1: =NSN -> 0
D3: =IF(F11>0.1,F11," ") ->  | F3: CAGE | G3: =Cage -> 3NBK9 | I3: PN | J3: =PN -> 0
A4: =NSN_2 ->  | F4: =Name -> 0 | I4: CDA | J4: =FSCM -> 0
D5: =D7 -> IWE0000 | F5: =Qty_Packages -> 0 | G5: =IF(Unit_Qty>1,"Packs","Ea") -> Ea | H5: =IF(TDPFAT="FAT Package","(1 TE)","") ->  | I5: =IF(G5="Packs",Qty_Packages*Unit_Qty,"") ->  | J5: =IF(G5="Packs","Total Units","") -> 
A6: =Contract2 ->  | F6: =Contract -> 0 | J6: =IF(FastPay="Fast Pay",FastPay&" Item","") -> 
D7: =IF(TDPFAT="FAT Package",VLOOKUP(Company,CompanyTable,9,FALSE)&"0001",IF(CLIN0002=CLIN0001,VLOOKUP(Company,CompanyTable,9,FALSE)&"000"&F11,IF(CLIN0002<1,VLOOKUP(Company,CompanyTable,9,FALSE)&"000"&F11&"Z",VLOOKUP(Company,CompanyTable,9,FALSE)&"000"&F11))) -> IWE0000 | F7: =IF(PackageMethod="ASTM D3951"," ",IF(PackageMethod<1," ",PackageMethod)) ->  | G7: =ShipDate -> 00:00:00 | H7: =IF(MilSpec>1,MilSpec," ") -> MIL-STD-2073-1D | J7: =IF(H7="ASTM D3951","(M-CP)","") -> 
F8: WT | G8: =IF(Qty_Packages*Unit_Qty<1," ",IF(Qty_Packages*Unit_Qty>=1,IF(WT*Qty_Packages*Unit_Qty<1,1,WT*Qty_Packages*Unit_Qty))) ->  | J8: =IF(TDPFAT="FAT Package","",IF(CLIN0005=1,"Box 1 of "&Qty_Boxes_4,IF(CLIN0004=1,"Box 1 of "&Qty_Boxes_3,IF(CLIN0003=1,"Box 1 of "&Qty_Boxes_2,IF(CLIN0003=2,"Box 1 of "&Qty_Boxes_2,IF(CLIN0001=2," ",IF(CLIN0002=1,"Box 1 of "&Qty_Boxes," "))))))) -> 
A9: =Contract2 ->  | D9: =VLOOKUP(Company, CompanyTable, 8, FALSE) -> 3NBK9 | F9: =Company -> Industrial Welding & Engineering
F10: =State -> Lewis Center, OH 43035
D11: =VLOOKUP(Company, CompanyTable, 8, FALSE) -> 3NBK9 | F11: =CLIN0001 -> 0 | G11: =IF(TDPFAT="FAT Package","FIRST ARTICLE TEST UNIT"," ") -> 
A13: =NSN_2 ->  | D13: =IF(F23>0.1,F23,"") ->  | F13: =NSN -> 0
D15: =IF(F23>0.1,F23,"") ->  | F15: CAGE | G15: =Cage -> 3NBK9 | I15: PN | J15: =PN -> 0
A16: =NSN_2 ->  | F16: =Name -> 0 | I16: CDA | J16: =FSCM -> 0
D17: =D19 -> IWE | F17: =IF(CLIN0002=1,Qty_Packages_2,IF(CLIN0002=2,Qty_Packages_2," ")) ->  | G17: =IF(Unit_Qty_2>1,"Packs","Ea") -> Ea | I17: =IF(G17="Packs",Qty_Packages_2*Unit_Qty_2,"") ->  | J17: =IF(G17="Packs","Total Units","") -> 
A18: =Contract2 ->  | F18: =Contract -> 0 | J18: =IF(FastPay="Fast Pay",FastPay&" Item","") -> 
D19: =IF(TDPFAT="FAT Package",VLOOKUP(Company,CompanyTable,9,FALSE)&"0002",IF(F23>9000,VLOOKUP(Company,CompanyTable,9,FALSE)&CLIN0002,IF(CLIN0003=CLIN0002,VLOOKUP(Company,CompanyTable,9,FALSE)&"000"&F23,IF(CLIN0003<1,VLOOKUP(Company,CompanyTable,9,FALSE)&"000"&F23&"Z",VLOOKUP(Company,CompanyTable,9,FALSE)&"000"&F23)))) -> IWE | F19: =IF(PackageMethod="ASTM D3951"," ",IF(PackageMethod<1," ",PackageMethod)) ->  | G19: =ShipDate -> 00:00:00 | H19: =IF(MilSpec>1,MilSpec," ") -> MIL-STD-2073-1D | J19: =IF(H19="ASTM D3951","(M-CP)","") -> 
F20: WT | G20: =IF(Qty_Packages_2*Unit_Qty_2<1," ",IF(Qty_Packages_2*Unit_Qty_2>=1,IF(WT*Qty_Packages_2*Unit_Qty_2<1,1,WT*Qty_Packages_2*Unit_Qty_2))) ->  | J20: =IF(CLIN0005=1,"Box 2 of "&Qty_Boxes_4,IF(CLIN0004=1,"Box 2 of "&Qty_Boxes_3,IF(CLIN0003=1,"Box 2 of "&Qty_Boxes_2,IF(CLIN0001=2," ",IF(CLIN0002=1,"Box 2 of "&Qty_Boxes,IF(CLIN0003=2,"Box 1 of "&Qty_Boxes," ")))))) -> 
A21: =Contract2 ->  | D21: =VLOOKUP(Company, CompanyTable, 8, FALSE) -> 3NBK9 | F21: =Company -> Industrial Welding & Engineering
F22: =State -> Lewis Center, OH 43035
D23: =VLOOKUP(Company, CompanyTable, 8, FALSE) -> 3NBK9 | F23: =IF(CLIN0002=2,2,IF(CLIN0002=1,1," ")) -> 
A25: =NSN_2 ->  | D25: =IF(F35>0.1,F35,"") ->  | F25: =NSN -> 0 | L25: =IF(M27<1,"Serial No:","") -> 
D27: =IF(F35>0.1,F35,"") ->  | F27: CAGE | G27: =Cage -> 3NBK9 | I27: PN | J27: =PN -> 0 | M27: ='Barcode Labels - Each'!D8 ->  | N27: =M27 -> 
A28: =NSN_2 ->  | F28: =Name -> 0 | I28: CDA | J28: =FSCM -> 0
D29: =D31 -> IWE | F29: =IF(CLIN0003=2,Qty_Packages_3,Qty_Packages_3) -> 0 | G29: =IF(Unit_Qty_3>1,"Packs","Ea") -> Ea | I29: =IF(G29="Packs",Qty_Packages_3*Unit_Qty_3,"") ->  | J29: =IF(G29="Packs","Total Units","") ->  | M29: ='Barcode Labels - Each'!I8 ->  | N29: =M29 -> 
A30: =Contract2 ->  | F30: =Contract -> 0 | J30: =IF(FastPay="Fast Pay",FastPay&" Item","") -> 
D31: =IF(F35>9000,VLOOKUP(Company,CompanyTable,9,FALSE)&CLIN0003,IF(CLIN0004=CLIN0003,VLOOKUP(Company,CompanyTable,9,FALSE)&"000"&F35,IF(CLIN0004<1,VLOOKUP(Company,CompanyTable,9,FALSE)&"000"&F35&"Z",VLOOKUP(Company,CompanyTable,9,FALSE)&"000"&F35))) -> IWE | F31: =IF(PackageMethod="ASTM D3951"," ",IF(PackageMethod<1," ",PackageMethod)) ->  | G31: =ShipDate -> 00:00:00 | H31: =IF(MilSpec>1,MilSpec," ") -> MIL-STD-2073-1D | J31: =IF(H31="ASTM D3951","(M-CP)","") ->  | M31: ='Barcode Labels - Each'!D19 ->  | N31: =M31 -> 
F32: WT | G32: =IF(Qty_Packages_3*Unit_Qty_3<1," ",IF(Qty_Packages_3*Unit_Qty_3>=1,IF(WT*Qty_Packages_3*Unit_Qty_3<1,1,WT*Qty_Packages_3*Unit_Qty_3))) ->  | J32: =IF(CLIN0005=1,"Box 3 of "&Qty_Boxes_4,IF(CLIN0004=1,"Box 3 of "&Qty_Boxes_3,IF(CLIN0003=1,"Box 3 of "&Qty_Boxes_2,IF(CLIN0003=2,"Box 2 of "&Qty_Boxes_2,"")))) -> 
A33: =Contract2 ->  | D33: =VLOOKUP(Company, CompanyTable, 8, FALSE) -> 3NBK9 | F33: =Company -> Industrial Welding & Engineering
F34: =State -> Lewis Center, OH 43035 | L34: =IF(M37<1,"Serial No:","") -> 
D35: =VLOOKUP(Company, CompanyTable, 8, FALSE) -> 3NBK9 | F35: =IF(CLIN0003=3,3,IF(CLIN0003=2,2,IF(CLIN0003=1,1," "))) -> 
A37: =NSN_2 ->  | D37: =F47 ->  | F37: =NSN -> 0 | M37: ='Barcode Labels - Each'!I19 ->  | N37: =M37 -> 
D39: =F47 ->  | F39: CAGE | G39: =Cage -> 3NBK9 | I39: PN | J39: =PN -> 0 | M39: ='Barcode Labels - Each'!D30 ->  | N39: =M39 -> 
A40: =NSN_2 ->  | F40: =Name -> 0 | I40: CDA | J40: =FSCM -> 0
D41: =D43 -> IWE | F41: =IF(Qty_Packages_4>0.9,Qty_Packages_4," ") ->  | G41: =IF(Unit_Qty_4>1,"Packs","Ea") -> Ea | I41: =IF(G41="Packs",Qty_Packages_4*Unit_Qty_4,"") ->  | J41: =IF(G41="Packs","Total Units","") -> 
A42: =Contract2 ->  | F42: =Contract -> 0 | J42: =IF(FastPay="Fast Pay",FastPay&" Item","") -> 
D43: =IF(F47>9000,VLOOKUP(Company,CompanyTable,9,FALSE)&CLIN0004,IF(CLIN0005=CLIN0004,VLOOKUP(Company,CompanyTable,9,FALSE)&"000"&F47,IF(CLIN0005<1,VLOOKUP(Company,CompanyTable,9,FALSE)&"000"&F47&"Z",VLOOKUP(Company,CompanyTable,9,FALSE)&"000"&F47))) -> IWE | F43: =IF(PackageMethod="ASTM D3951"," ",IF(PackageMethod<1," ",PackageMethod)) ->  | G43: =ShipDate -> 00:00:00 | H43: =IF(MilSpec>1,MilSpec," ") -> MIL-STD-2073-1D | J43: =IF(H43="ASTM D3951","(M-CP)","") -> 
F44: WT | G44: =IF(Qty_Packages_4*Unit_Qty_4<1," ",IF(Qty_Packages_4*Unit_Qty_4>=1,IF(WT*Qty_Packages_4*Unit_Qty_4<1,1,WT*Qty_Packages_4*Unit_Qty_4))) ->  | J44: =IF(CLIN0005=1,"Box 4 of "&Qty_Boxes_4,IF(CLIN0004=1,"Box 4 of "&Qty_Boxes_3,IF(CLIN0004=2,"Box 1 of "&Qty_Boxes_2,IF(CLIN0004=3,"Box 2 of "&Qty_Boxes_2," ")))) -> 
A45: =Contract2 ->  | D45: =VLOOKUP(Company, CompanyTable, 8, FALSE) -> 3NBK9 | F45: =Company -> Industrial Welding & Engineering
F46: =State -> Lewis Center, OH 43035
D47: =VLOOKUP(Company, CompanyTable, 8, FALSE) -> 3NBK9 | F47: =IF(CLIN0004=4,4,IF(CLIN0004=3,3,IF(CLIN0004=2,2,IF(CLIN0004=1,1," ")))) -> 
A49: =IF(CLIN0004>0.09,NSN_2,"") ->  | D49: =F59 ->  | F49: =IF(CLIN0004>0.09,NSN," ") -> 
D51: =F59 ->  | F51: =IF(CLIN0004>0.09,"CAGE"," ") ->  | G51: =IF(CLIN0004>0.09,Cage," ") ->  | I51: =IF(CLIN0004>0.09,"PN"," ") ->  | J51: =IF(CLIN0004>0.09,PN," ") -> 
A52: =IF(CLIN0004>0.09,NSN_2," ") ->  | F52: =Name -> 0 | I52: CDA | J52: =FSCM -> 0
D53: =D55 -> IWE | F53: =IF(Qty_Packages_5>0.9,Qty_Packages_5," ") ->  | G53: =IF(Unit_Qty_5>1,"Packs","Ea") -> Ea | I53: =IF(G53="Packs",Qty_Packages_5*Unit_Qty_5,"") ->  | J53: =IF(G53="Packs","Total Units","") -> 
A54: =IF(CLIN0004>0.09,Contract2,"") ->  | F54: =IF(CLIN0004>0.09,Contract," ") ->  | J54: =IF(FastPay="Fast Pay",FastPay&" Item","") -> 
D55: =IF(F59>9000,VLOOKUP(Company,CompanyTable,9,FALSE)&CLIN0005,IF(CLIN0005>1,VLOOKUP(Company,CompanyTable,9,FALSE)&"000"&F59&"Z",IF(CLIN0005<1,VLOOKUP(Company,CompanyTable,9,FALSE)&"000"&F59&"Z"," "))) -> IWE | F55: =IF(PackageMethod="ASTM D3951"," ",IF(PackageMethod<1," ",PackageMethod)) ->  | G55: =IF(CLIN0004>0.09,ShipDate," ") ->  | H55: =IF(CLIN0004>0.09,MilSpec,IF(MilSpec="ASTM D4951","ASTM D4951"," ")) ->  | J55: =IF(H55="ASTM D3951","(M-CP)","") -> 
F56: =IF(CLIN0004>0.09,"WT"," ") ->  | G56: =IF(Qty_Packages_5*Unit_Qty_5<1," ",IF(Qty_Packages_5*Unit_Qty_5>=1,IF(WT*Qty_Packages_5*Unit_Qty_5<1,1,WT*Qty_Packages_5*Unit_Qty_5))) ->  | J56: =IF(CLIN0005=1,"Box 5 of "&Qty_Boxes_5,IF(CLIN0004=2,"Box 2 of "&Qty_Boxes_4,IF(CLIN0005=3,"Box 2 of "&Qty_Boxes_3,IF(CLIN0005=2,"Box 2 of "&Qty_Boxes_2," ")))) -> 
A57: =IF(CLIN0004>0.09,Contract2," ") ->  | D57: =VLOOKUP(Company, CompanyTable, 8, FALSE) -> 3NBK9 | F57: =IF(CLIN0004>0.09,Company," ") -> 
F58: =IF(CLIN0004>0.09,State," ") -> 
D59: =VLOOKUP(Company, CompanyTable, 8, FALSE) -> 3NBK9 | F59: =IF(CLIN0005>=1,CLIN0005," ") -> 

Sheet Serial No (hidden)
A1: SERIAL NUMBER DATA | O1: =Serial_No -> 001
O2: 002
A3: 43160023 | C3: 43160023 | E3: 43160028 | G3: 43160028 | O3: 003
A4: 43160033 | C4: 43160033 | E4: 43160044 | G4: 43160044 | O4: 004
A5: 43160050 | C5: 43160050 | E5: 43160051 | G5: 43160051 | O5: 005
O6: 006
O7: 007
O8: 008
O15: 015
O16: 016
O17: 017
O18: 018
O19: 019
O20: 020
O21: 021
O22: 022

Sheet DD250
Y1: DCMA QAR
A2: MATERIAL INSPECTION AND RECEIVING REPORT | Q2: Form Approved OMB No. 0704-0248 | X2: Contact Name | Y2: Mark Monroe
X3: DCMA Local DoDACC | Y3: S3605A
A4: The public reporting burden for this collection of information is estimated to average 30 minutes per response, including the time for reviewing instructions, searching existing data sources, gathering and maintaining the data needed, and completing and reviewing the collection of information. Send comments regarding this burden estimate or any other aspect of this collection of information, | X4: Mailing Address | Y4: 3990 East Broad St.
A5: including suggestions for reducing the burden, to the Department of Defense, Executive Services and Communications Directorate (0704-0248). Respondents should be aware that notwithstanding any other provision of law, no person shall be subject to any penalty for failing to comply with a collection of information if it does not display a currently valid OMB control number. | Y5: Columbus, OH 43218
A6: PLEASE DO NOT RETURN YOUR COMPLETED FORM TO THE ABOVE ORGANIZATION | X6: QAR Phone | Y6: 614-692-6495
A7: SEND THIS FORM IN ACCORDANCE WITH THE INSTRUCTIONS CONTAINED IN THE DFARS, APPENDIX F-401. | X7: QAR Fax
A8: 1. PROCUREMENT INSTRUMENT IDENTIFICATION (CONTRACT) NO. | G8: ORDER NO. | K8: 6. INVOICE NO./DATE | O8: 7. PAGE | P8: OF | Q8: 8. ACCEPTANCE POINT | U8: <--Fill In Data | X8: Email | Y8: Mark.Monroe@dcma.mil
A9: =Contract -> 0 | M9: =ShipDate -> 00:00:00 | O9: 1 | P9: 1 | Q9: =IF(AcceptPoint="S - CONTRACT CAGE LOCATION","S","D") -> D
A10: 2. SHIPMENT NO. | E10: 3. DATE SHIPPED | G10: 4. B/L | M10: 5. DISCOUNT TERMS
E11: =ShipDate -> 00:00:00 | G11: TCN | M11: 1/2% 12, NET 30
A12: 9. PRIME CONTRACTOR | E12: CODE | F12: =Cage -> 3NBK9 | K12: 10. ADMINISTERED BY | P12: CODE | R12: =DoDACC -> 0
A13: =Company -> Industrial Welding & Engineering | K13: =IF(QARAddress>=1,QARAddress,"") -> 3990 East Broad St.
A14: =Street -> 747 Carle Ave. | K14: =IF(QARState>=1,QARState,"") -> Columbus, OH 43218
A15: =State -> Lewis Center, OH 43035 | K15: =IF(QARPhone>=1,QARPhone,"") -> 614-692-6495
A16: Phone: | B16: =Phone -> 614-883-6109 | E16: Fax: | F16: =Fax -> email only
A17: 11. SHIPPED FROM (If other than 9) CODE | F17: =Cage -> 3NBK9 | G17: FOB: | H17: =IF(FOB="D","DEST",IF(FOB="S","ORG","Other")) -> Other | K17: 12. PAYMENT WILL BE MADE BY | P17: CODE | R17: SL4701
A18: =Company -> Industrial Welding & Engineering | K18: DFAS BVDP (SL4701)
A19: =Street -> 747 Carle Ave. | K19: PO BOX 369031
A20: =State -> Lewis Center, OH 43035 | K20: Columbus OH 43236-9031
A21: Phone: | B21: =Phone -> 614-883-6109 | E21: Fax: | F21: =Fax -> email only | K21: EFT:T
A22: 13. SHIPPED TO | E22: CODE | K22: 14. MARKED FOR | P22: CODE
A23: =VLOOKUP(FATDoDACC2, FATTable, 2, FALSE) -> 
A24: =VLOOKUP(FATDoDACC2, FATTable, 3, FALSE) -> 
A25: =VLOOKUP(FATDoDACC2, FATTable, 4, FALSE) -> 
A26: =VLOOKUP(FATDoDACC2, FATTable, 5, FALSE) -> 
A27: 15. | E27: 16. STOCK/PART NO. | G27: DESCRIPTION | L27: 17. QUANTITY | N27: 18. | O27: 19. | R27: 20.
A28: ITEM NO. | E28: (Indicate number of shipping containers -type ofcontainer -container number.) | L28: SHIP/REC'D* | N28: UNIT | O28: UNIT PRICE | R28: AMOUNT
C29: =CLIN0001 -> 0 | E29: =NSN -> 0 | F29: - | G29: =Name -> 0 | L29: =IF(CLIN0001>=9906,1,QTY) -> 0 | N29: =IF(TDPFAT="FAT Package","TE","EA") -> EA | O29: =IF(TDPFAT="FAT Package",FAT_Cost,Unit_Cost) -> 0 | R29: =IF(L29>0.1,O29*L29," ") -> 
E30: =PN -> 0 | G30: Rev | I30: =REV -> 0 | R30: =IF(L30>0.1,O30*L30," ") -> 
R31: =IF(L31>0.1,O31*L31," ") -> 
E33: =IF(FOB="O","Shipping Cost","") ->  | L33: =IF(FOB="O",1,"") ->  | N33: =IF(FOB="O","EA","") ->  | R33: =IF(N33="EA",O33*L33," ") -> 
R39: =IF(L39>0.1,O39*L39," ") -> 
E40: GROSS WEIGHT: | L40: =IF(WT<1,1*QTY,WT*QTY) -> 0 | N40: =IF(L40>=1,"LBS","") ->  | O40: TOTAL: | R40: =SUM(R29:R39) -> 0
A41: 21. CONTRACT QUALITY ASSURANCE | N41: 22. RECEIVER'S USE
A42: a. ORIGIN | G42: b. DESTINATION | N42: Quantities shown in column 17 were received in apparent good condition except as noted.
B43: CQA | E43: ACCEPTANCE of listed items | H43: CQA | J43: ACCEPTANCE of listed items has
A44: has been made by me or under my supervision and they conform to contract, except as noted herein or on supporting documents. | G44: been made by me or under my supervision and they conform to contract, except as noted herein or on supporting documents.
N45: DATE RECEIVED | P45: SIGNATURE OF AUTHORIZED GOVERNMENT REPRESENTATIVE
A47: =NOW() -> 2015-01-07T11:27:39.020 | N47: TYPED NAME:
N48: TITLE:
A49: DATE | D49: SIGNATURE - GOV REP | G49: DATE | J49: SIGNATURE - GOV REP | N49: MAILING ADDRESS:
A51: TYPED NAME: | D51: =IF(QARName>=1,QARName,"") -> Mark Monroe | G51: TYPED NAME:
A52: TITLE: | D52: ="DCMA QAR"&" - "&QARDoDACC -> DCMA QAR - S3605A | G52: TITLE:
A53: MAILING ADDRESS: | G53: MAILING ADDRESS:
A54: =IF(QARAddress>=1,QARAddress,"") -> 3990 East Broad St.
A55: =IF(QARState>=1,QARState,"") -> Columbus, OH 43218 | N55: COMMERCIAL TELEPHONE
N56: NUMBER:
N57: * If quantity received by the Government is the same as quantity shipped, indicate by (X) mark; if different, enter actual quantity received below quantity shipped and encircle.
A58: COMMERCIAL TELEPHONE | G58: COMMERCIAL TELEPHONE
A59: NUMBER: | C59: =IF(QARPhone>=1,QARPhone,"") -> 614-692-6495 | G59: NUMBER:
A60: 23. CONTRACTOR USE ONLY
A61: ="Please fax complete DD250 to Attn:"&" "&Inspector&" - "&Fax -> Please fax complete DD250 to Attn: - email only

Sheet DD1222
A1: REQUEST FOR AND RESULTS TESTS | M1: PAGE NO. | O1: NO. OF PAGES | U1: No. | V1: Facility | W1: DoDAAC | X1: Ship To:
M2: 1 | O2: 1 | U2: 1
A3: SECTION A – REQUEST FOR TEST | U3: 2 | V3: Brooks AFB | W3: FA2080 | X3: 311 HSW/YAPT | Y3: ATTN: TEXTILE / FIRST ARTICLE MONITOR | Z3: 7980 LINDBERGH LANDING, MATERIAL LABORATORY, BLDG. 578 | AA3: BROOKS CITY-BASE, TX. 78235-5119
A4: 1. TO: (Include ZIP Code) | G4: 2. FROM: (Include ZIP Code) | U4: 3 | V4: Tinker ALC | W4: FA8111 | X4: SHIP MATERIAL CERTIFICATIONS AND CONTRACT COPY | Y4: ATTN: FIRST ARTICLE MONITOR | Z4: 3001 STAFF DRIVE, STE 1AB-85A, 448 MSUG/GBMUED | AA4: TINKER AFB, OK 73145-3036
A5: =VLOOKUP(FATDoDACC2, FATTable, 2, FALSE) ->  | G5: =Company&" ("&Cage&")" -> Industrial Welding & Engineering (3NBK9) | U5: 4 | V5: Hill ALC | W5: FB2029 | X5: FIRST ARTICLE EXHIBIT AND TEST REPORT | Y5: DEAR JOHN BAY, MARK FOR: FAT INSPECTION AND TEST | Z5: 809 MXSS/MXDEB, BLDG 849 | AA5: HILL AFB, UT. 84056-5713
A6: =VLOOKUP(FATDoDACC2, FATTable, 3, FALSE) ->  | G6: =Street -> 747 Carle Ave. | U6: 5 | V6: Warner Robins ALC | W6: FD2060 | X6: INSPECTION REPORTS: | Y6: ATTN: FIRST ARTICLE TEST LAB | Z6: 450 THIRD ST. BLDG 323, 402 MXSG/MXRILM | AA6: ROBINS AFB, GA. 31098-1640
A7: =VLOOKUP(FATDoDACC2, FATTable, 4, FALSE) ->  | G7: =State -> Lewis Center, OH 43035 | U7: 6 | V7: Robins AFB | W7: FD2060 | X7: DLA CENTRAL RECEIVING, SPECIAL HANDLING, FIRST ARTICLE UNIT | Y7: DDWG ER, WR-ALC | Z7: 455 BYRON STREET | AA7: ROBINS AFB, GA 31098-1887
A8: =VLOOKUP(FATDoDACC2, FATTable, 5, FALSE) ->  | G8: =Phone -> 614-883-6109 | I8: fax: | J8: =Fax -> email only | U8: 7 | V8: Tinker ALC | W8: FY2303 | X8: DDOO-SOP(FIRST ARTICLE) DODAAC FY2303 | Y8: ATTN: DDOO-SOP | Z8: 8080 PERIMETER RD., BLDG 18 DOOR 16 (405) 739-7667 | AA8: TINKER AFB, OK 73145-8000
U9: 8 | V9: RTTC Redstone | W9: W31P0W | X9: TRANSPORTATION OFFICER, BUILDING 8022 | Y9: REDSTONE TECHNICAL TEST CENTER, TEDT-RT-EMC | Z9: BUILDING 4500 ATTN: CHARLES EAKES | AA9: REDSTONE ARSENAL, AL 35898
A10: 3. PRIME CONTRACTOR AND ADDRESS (Include ZIP Code) | G10: 4. MANUFACTURING PLANT NAME AND ADDRESS (Include ZIP Code) | U10: 9 | V10: Hunter AAF, Ft. Stewart, GA | W10: W33KD9 | X10: AMCOM/PROJECT OLR(EAST) | Y10: ATTN: LARRY SYLVESTER | Z10: 872 NORTH LIGHTNING RD., BLDG 835T HUNTER AAF | AA10: SAVANNAH, GA 31409
A11: =Company&" ("&Cage&")" -> Industrial Welding & Engineering (3NBK9) | G11: =Company&" ("&Cage&")" -> Industrial Welding & Engineering (3NBK9) | U11: 10 | V11: Ft. Drum, NY | W11: W81GJX | X11: DIRECTORATE OF LOGISTICS, ATTN: FIRST ARTICLE TEST | Y11: AVIATION INTERMEDIATE MAINTENANCE FACILITY | Z11: P2050 MUNNS CORNER RD. | AA11: FT. DRUM, NY 13612
A12: =Street -> 747 Carle Ave. | G12: =Street -> 747 Carle Ave. | U12: 11 | V12: Ft. Hood (San Angelo) | W12: W90JT5 | X12: AMCOM PROJECT OLR | Y12: ATTN: FIRST ARTICLE TEST LAB | Z12: HANGAR RD., BLDG. 8154 | AA12: SAN ANGELO, TX. 76904
A13: =State -> Lewis Center, OH 43035 | G13: =State -> Lewis Center, OH 43035 | U13: 12 | V13: NSWC Crane, Indiana | W13: N00164 | X13: COMMANDER, NAVAL SURFACE WARFARE CENTER | Y13: (ATTN: ALAN GOODMAN, CODE 6095, ext. 6151) | Z13: 300 HIWAY 361, BUILDING 3287 | AA13: CRANE, IN 47522-5000
A14: 614-657-8666 | C14: FAX: | D14: =Fax -> email only | G14: =Phone -> 614-883-6109 | I14: FAX: | J14: =Fax -> email only | U14: 13 | V14: NSWC Crane, Indiana | W14: N00164 | X14: COMMANDER | Y14: NAVSURFWARCENDIV CRANE | Z14: 300 HIGHWAY 361, BUILDING 3235 CODE 6093 | AA14: CRANE, IN 47522-5000
A15: CONTRACT NUMBER | D15: =Contract -> 0 | G15: P.O. NUMBER | U15: 14 | V15: Keyport, WA | W15: N00253 | X15: COMMANDER (CODE 70(Y)) | Y15: NAVAL UNDERSEA WARFARE CENTER DIVISION, KEYPORT | Z15: 610 DOWELL STREET | AA15: KEYPORT, WA 98345
A16: 5. END ITEM AND/OR PROJECT | F16: 6. CLIN # | G16: 7. LOT NO. | I16: 8. REASON FOR SUBMITTAL | N16: 9. DATE SUBMITTED | U16: 15 | V16: NAWC Patuxent River (AIR) | W16: N00421 | X16: COMMANDING OFFICER, NAVAL AWC AIRCRAFT DIVISION | Y16: ATTN: DR. ROBERT POLANOWSKI ALDAC - MSD | Z16: 47671 RANCH ROAD; BLDG 2186 | AA16: PATUXENT RIVER, MD. 20670-1539
A17: =PN&" - "&Name -> - | N17: =InspectDate -> 00:00:00 | U17: 16 | V17: NAWC Patuxent River | W17: N00421 | X17: QUALITY ASSURANCE MONITOR | Y17: ATTN: ROBERT J. HUDSON, HUMAN SYSTEMS DEPARTMENT CODE 4.6.8.3 | Z17: 48110 SHAW RD, BUILDING 2187 RM 1240 F-10 | AA17: PATUXENT RIVER, MD 20670-1906
U18: 17 | V18: FRCSW North Island, CA | W18: N3096A | X18: COMMANDER, FLEET READINESS CENTER SOUTHWEST | Y18: ATTN: TESTING COORDINATOR | Z18: CUSTOMER SERVICE BLDG 341 CODE 93001 | AA18: SAN DIEGO, CA 92135
U19: 18 | V19: FRCSE JAX, FL (old DoDAAC N65886) | W19: N50068 | X19: FLEET READINESS CENTER SOUTHEAST | Y19: ATTN: TESTING COORDINATOR, CECIL COMMERCE CENTER | Z19: 6206 AVIATION AVE., CODE 41900 | AA19: JACKSONVILLE, FL 32221-8112
A20: 10. MATERIAL BEING TESTED | C20: 10a. QUANTITY SUBMITTED | F20: 11. QUANTITY REPRESENTED | I20: 12. SPEC. & AMEND AN OR DRAWING NO. & REV. FOR SAMPLE & DATE | U20: 19 | V20: MCAS Cherry Point, NC | W20: N50078 | X20: IN SERVICE SUPPORT CENTER CHERRY POINT | Y20: FIRST ARTICLE TEST-STA. 31B, ATTN: 3.3.2 (252) 464-7748 | Z20: BLDG 154B CLEVELAND DR. | AA20: MCAS CHERRY POINT, NC 28533
A21: =PN -> 0 | I21: =PN &" REV " &REV -> REV | N21: Rev Release Date | U21: 20 | V21: NAWC China Lake, CA | W21: N60530 | X21: COMMANDER, CODE 466200D | Y21: NAVAIRWARCENWPNDIV | Z21: 1 ADMINISTRATION CIRCLE, BLDG 20210, STOP 1118 | AA21: CHINA LAKE, CA 93555-6100
A22: =Contract -> 0 | U22: 21 | V22: NSWC Carderock Div. | W22: N65540 | X22: NAVAL SURFACE WARFARE CENTER, CODE 9532, BUILDING #4 | Y22: SHIP SYSTEMS ENGINEERING STATION, CARDEROCK DIVISION | Z22: 5001 SOUTH BROAD STREET | AA22: PHILADELPHIA PA 19112-1403
A23: 13. PURCHASED FROM OR SOURCE | F23: 14. SHIPMENT METHOD | I23: 15. DATE SAMPLED AND SUBMITTED BY | U23: 22 | V23: FRCSW North Island (Bearings) | W23: N65888 | X23: FLEET READINESS CENTER SOUTHWEST | Y23: ATTN: JEFFREY MALLERY, CUSTOMER SERVICE | Z23: BLDG 341, CODE 93000 | AA23: SAN DIEGO, CA. 92135
A24: N/A | F24: UPS Ground | I24: =ShipDate -> 00:00:00 | L24: =IF(QARDoDACC>=1,QARName&" - DCMA QAR - "&QARDoDACC," ") -> Mark Monroe - DCMA QAR - S3605A
A26: 16. REMARKS AND/OR SPECIAL INSTRUCTIONS AND/OR WAIVERS
A28: =IF(QARDoDACC>=1,QARName&" - DCMA QAR - "&QARDoDACC&" - "&QARPhone," ") -> Mark Monroe - DCMA QAR - S3605A - 614-692-6495 | I28: =NOW() -> 2015-01-07T11:27:39.020
A36: 17. SEND TEST REPORT TO
A38: =IF(QARDoDACC>=1,QARName&" - DCMA QAR - "&QARDoDACC&" - "&QARAddress&", "&QARState&" - "&QAReMail," ") -> Mark Monroe - DCMA QAR - S3605A - 3990 East Broad St., Columbus, OH 43218 - Mark.Monroe@dcma.mil
A40: SECTION B - RESULTS OF TEST (Continue on plain white paper if more space is required)
A42: 1. DATE SAMPLE RECEIVED | E42: 2. DATE RESULTS REPORTED | K42: 3. LAB REPORT NUMBER
A45: 4. TEST PERFORMED | D45: RESULTS OF TEST | H45: SAMPLE RESULT | L45: REQUIREMENTS
A53: DATE | B53: TYPED NAME AND TITLE OF PERSON CONDUCTING TEST | J53: SIGNATURE
A56: DD FORM 1222, (2000) REPLACES DD FORM 1222, 1JUL 58, WHICH IS OBSOLETE. | N56: PerFORM (DLA)

Sheet QA 011 - Packing List
A1: =VLOOKUP(Company, PicTable2, 2, FALSE) -> Picture2 | L1: COMPANY | M1: PHOTO
F2: =Company -> Industrial Welding & Engineering | L2: MTC Engineering | M2: Picture1
F3: =Street -> 747 Carle Ave. | L3: Industrial Welding & Engineering | M3: Picture2
F4: =State -> Lewis Center, OH 43035 | L4: MTC Engineering, LLC | M4: Picture1
F5: =Email -> iwe@columbus.rr.com | L5: LCG Machine & Tool | M5: Picture3
F6: ="Phone: "&Phone -> Phone: 614-883-6109 | H6: =IF(Web>0.1,Web,"") -> www.iweohio.com | L6: Alannas Engineer | M6: Picture4
F7: ="Fax: "&Fax -> Fax: email only | L7: Westerville Mfg | M7: Picture5
B8: "A Defense Contractor for Machined and Fabricated Spare Parts and Assemblies." | L8: Boehm Machine | M8: Picture7
L9: RC Industries, Inc. | M9: Picture 3
B10: INSPECTION/ACCEPTANCE RELEASE | L10: DSE Development | M10: Picture 19
L11: DuLond Tool & Engineering, Inc. | M11: Picture 8
L12: Maven Engineering Corporation | M12: Picture 9
B13: WORK ORDER#: | D13: =WO -> 0 | F13: (est) SHIPPING DATE: | H13: =IF(ShipDate>1,ShipDate," ") ->  | L13: Fourply Design House | M13: Picture 6
B14: =IF(FAT_Code="TCN","[X] - This is a TCN Shipment. Shipping Instructions required.",IF(TDPFAT="FAT Package","[X] - This is a FAT, Non-Post Shipment"," ")) ->  | L14: Lewis Center Mfg. | M14: Picture 11
L15: GTA Containers Inc. | M15: Picture 12
D16: CLIN # | F16: SHIP TO:
D17: =IF(E17="X",CLIN0001,"") ->  | E17: =IF(FAT_Code>1,"X","") ->  | F17: =IF(E17="X",FAT_Code&" - "&L22,"") ->  | L17: Acromil Corp | M17: Picture 20
D18: =IF(E18="X",CLIN0002,"") ->  | E18: =IF(F17="FAT - *Per 52.209-4"," ",IF(Ship_2>1,"X","")) ->  | F18: =IF(F17="FAT - *Per 52.209-4"," ",IF(E18="X",Ship_2&" - "&L23,"")) ->  | L18: C. O. W. Industries, Inc. | M18: Picture6
D19: =IF(E19="X",CLIN0003,"") ->  | E19: =IF(Ship_3>1,"X","") ->  | F19: =IF(E19="X",Ship_3&" - "&L24," ") -> 
D20: =IF(E20="X",CLIN0004,"") ->  | E20: =IF(Ship_4>1,"X","") ->  | F20: =IF(E20="X",Ship_4&" - "&L25,"") -> 
D21: =IF(E21="X",CLIN0005,"") ->  | E21: =IF(Ship_5>1,"X","") ->  | F21: =IF(E21="X",Ship_5&" - "&L26,"") -> 
L22: =VLOOKUP(FAT_Code, ShipCodeTable, 2,FALSE ) -> 
B23: QUANTITY: | D23: =QTY -> 0 | F23: ITEM DESCIRPTION: | H23: =Name -> 0 | L23: =VLOOKUP(Ship_2, ShipCodeTable, 2, FALSE) -> 
F24: P/N | H24: =PN -> 0 | L24: =VLOOKUP(Ship_3, ShipCodeTable, 2, FALSE) -> 
B25: (I) Inspection Release | F25: REV | H25: =REV -> 0 | L25: =VLOOKUP(Ship_4, ShipCodeTable, 2, FALSE) -> 
L26: =VLOOKUP(Ship_5, ShipCodeTable, 2, FALSE) -> 
B27: (A) Acceptance Release to WAWF | F27: NSN: | H27: =NSN -> 0
F28: CONTRACT #: | H28: =Contract -> 0
B29: ADDITIONAL NOTES OR COMMENTS:
B35: THE REQUIRED CQA HAS BEEN PREFORMED ON THE ABOVE LISTED ITEMS
B37: DATE: | D37: =IF(AcceptDate>1,AcceptDate," ") ->  | F37: SIGNED:
H38: =IF(DoDACC<"SP",DoDACC&", DCMA-QAR","") -> , DCMA-QAR

Sheet QA 012 - Final Accept-CoC
A1: =VLOOKUP(Company, PicTable3, 2, FALSE) -> Picture2 | C1: =Company -> Industrial Welding & Engineering | H1: COMPANY | I1: PHOTO
C2: =Street -> 747 Carle Ave. | H2: MTC Engineering | I2: Pic6
C3: =State -> Lewis Center, OH 43035 | H3: Industrial Welding & Engineering | I3: Picture2
C4: ="Phone: "&Phone&" - "&Email -> Phone: 614-883-6109 - iwe@columbus.rr.com | H4: MTC Engineering, LLC | I4: Pic6
C5: ="Fax: "&Fax -> Fax: email only | E5: Inspection Release Type | F5: <-Select Contract Clause | H5: LCG Machine & Tool | I5: Pic8
B6: "A Defense Contractor for Machined and Fabricated Spare Parts and Assemblies." | E6: Source-General FAR 52.246-1 or 52.246-2 | H6: Alannas Engineer | I6: Picture4
H7: Westerville Mfg | I7: Pic10
E8: See Contract Clause Section "E" | H8: Boehm Machine | I8: Boehm
B9: =IF(TDPFAT="TDP Package","SOLICITATION REQUIREMENT(S) REVIEW",IF(TDPFAT="FAT Package","FAT Review and Final Acceptance","FINAL ACCEPTANCE")) -> FINAL ACCEPTANCE | H9: RC Industries, Inc. | I9: Picture 3
A10: =IF(InspectClause="Source CoQC Contract FAR 52.246-9000","CERTIFICATE OF QUALITY COMPLIANCE","CERTIFICATE OF COMPLIANCE") -> CERTIFICATE OF COMPLIANCE | E10: =IF(InspectClause="Source CoGC Contract FAR 52.246-9000","NOTE: With a CofGC, you must attach the Contract Review sheet and upload into WAWF.","") ->  | H10: DuLond Tool & Engineering, Inc. | I10: Picture 1
H11: Maven Engineering Corporation | I11: Picture 9
B12: CUSTOMER | C12: =IF(Customer>0.1,Customer," ") ->  | H12: Fourply Design House | I12: Picture 6
B13: =IF(TDPFAT<>"TDP Package","CONTRACT/PO","SOLICITATION") -> CONTRACT/PO | C13: =IF(Customer_PO>=Contract,Customer_PO,Contract) -> 0 | H13: Lewis Center Mfg. | I13: Picture 11
B14: =IF(TDPFAT<>"TDP Package","WORK ORDER No.","RFQ/RFP Reference No.:") -> WORK ORDER No. | C14: =IF(WO>0.1,WO," ") ->  | H14: ADJ Finishing | I14: Picture 4
H15: GTA Containers Inc. | I15: Picture 12
B16: NSN | C16: =IF(NSN>0.1,NSN," ") ->  | H16: Acromil Corp. | I16: Picture 20
B17: NAME | C17: =IF(Name>0.1,Name," ") ->  | H17: C. O. W. Industries, Inc. | I17: Picture6
B18: P/N - DRAWING | C18: =IF(PN>0.1,PN," ") ->  | H18: DSE Development | I18: Picture 23
B19: REVISION LEVEL | C19: =IF(REV>0.1,REV," ") -> 
B20: QUANTITY | C20: =IF(QTY>0.1,QTY," ") -> 
B21: SPECIAL NOTES: | C21: =IF(TDPFAT="FAT Package",FAT_FAR,"") ->  | H21: Note: FAT units are herein certified to be representative of production units as required per contract clause FAR 52.209-901(G).
B22: =VLOOKUP(InspectClause, InspClauseTable, 2, FALSE) -> I, the undersigned, certify that on this date of execution and as the representative agent for the above forgoing company and/or legal entity did furnish the supplies or services as duly noted by hereon referenced contract/purchase order and which said items/services were shipped in accordance with all applicable requirements as noted per FAR 52.246-1 & 52.246-2 and duly noted on attached shipping documents.
B24: =VLOOKUP(InspectClause, InspClauseTable, 4, FALSE) -> I further certify that the supplies or services are of the quality specified, including inspection to a higher-level quality standard based on a tailored ISO QMS, which meets the requirements of FAR 52.246-11 and conform in all respects with the contract requirements, including specifications, drawings, preservation, packaging, packing, marking requirements, and physical item identification as noted and described above, and are in the quantity shown on this or on the attached acceptance document.
C27: =IF(AcceptDate>1,AcceptDate," ") -> 
B28: =IF(Inspector>1,Inspector,"Enter Inspector Name - Use Dropdown") -> Enter Inspector Name - Use Dropdown | C28: Date of Execution
H31: Inspection C of C Clauses | I31: Clauses | K31: Clauses
H32: Source-General FAR 52.246-1 or 52.246-2 | I32: I, the undersigned, certify that on this date of execution and as the representative agent for the above forgoing company and/or legal entity did furnish the supplies or services as duly noted by hereon referenced contract/purchase order and which said items/services were shipped in accordance with all applicable requirements as noted per FAR 52.246-1 & 52.246-2 and duly noted on attached shipping documents. | K32: I further certify that the supplies or services are of the quality specified, including inspection to a higher-level quality standard based on a tailored ISO QMS, which meets the requirements of FAR 52.246-11 and conform in all respects with the contract requirements, including specifications, drawings, preservation, packaging, packing, marking requirements, and physical item identification as noted and described above, and are in the quantity shown on this or on the attached acceptance document.
H33: Source C of C Contract FAR 52.246-15 | I33: I, the undersigned, certify that on this date of execution and as the representative agent for the above forgoing company and/or legal entity did furnish the supplies or services as duly noted by hereon referenced contract/purchase order and which said items/services were shipped in accordance with all applicable requirements as noted per FAR Clause 52.246-15 and duly noted on attached shipping documents. | K33: I further certify that the supplies or services are of the quality specified, including inspection to a higher-level quality standard based on a tailored ISO QMS, which meets the requirements of FAR 52.246-11, and conform in all respects with the contract requirements, including specifications, drawings, preservation, packaging, packing, marking requirements, and physical item identification as noted and described above, and are in the quantity shown on this or on the attached acceptance document.
H34: Source ARP Contract DFARS 246.471 | I34: I, the undersigned, certify that on this date of execution and as the representative agent for the above forgoing company and/or legal entity did furnish the supplies or services as duly noted by hereon referenced contract/purchase order and which said items/services were shipped in accordance with all applicable requirements as noted per DFARS Clause 246.471 and duly noted on attached shipping documents. | K34: I further certify that the supplies or services are of the quality specified, including inspection to a higher-level quality standard based on a tailored ISO QMS, which meets the requirements of FAR 52.246-11, and conform in all respects with the contract requirements, including specifications, drawings, preservation, packaging, packing, marking requirements, and physical item identification as noted and described above, and are in the quantity shown on this or on the attached acceptance document.
H35: FAT 52.209-4 with ISO QMS Tailored | I35: We certify that the product listed above was manufactured and inspected in accordance with company quality system standards and all applicable specifications, drawings, customer and/or purchase order/contract requirements including a higher-level quality standards based on a tailored ISO9000 QMS, which may be required per FAR 52.246-11. | K35: We certify that the items supplied on the above referenced purchase order/contract have no mercury or mercury components and that no mercury bearing instruments and/or equipment have been used in any manner which may cause contamination in the manufacture, assembly, testing or final processing of said material.
H36: TDP 52.246-11 with ISO QMS Tailored | I36: We certify that the product listed above was manufactured and inspected in accordance with company quality system standards and all applicable specifications, drawings, customer and/or purchase order/contract requirements including a higher-level quality standards based on a tailored ISO9000 QMS, which may be required per FAR 52.246-11. | K36: We certify that the items supplied on the above referenced purchase order/contract have no mercury or mercury components and that no mercury bearing instruments and/or equipment have been used in any manner which may cause contamination in the manufacture, assembly, testing or final processing of said material.
H37: Source CoQC Contract FAR 52.246-9000 | I37: =Company &" herein certifies that per 52.246-9000, all quality requirements and specifications have been adhered to and fully comply as attested to in this certificate and defined on attached supplemental sheets." &" We further certify that (i) the lot has been produced, sampled, tested, and inspected, and marked in accordance with all contract and specification requirements; and (ii) the material complies with all of the contract and specification requirements." -> Industrial Welding & Engineering herein certifies that per 52.246-9000, all quality requirements and specifications have been adhered to and fully comply as attested to in this certificate and defined on attached supplemental sheets. We further certify that (i) the lot has been produced, sampled, tested, and inspected, and marked in accordance with all contract and specification requirements; and (ii) the material complies with all of the contract and specification requirements. | K37: We further certify that the supplies or services are of the quality specified, including inspection to a higher-level quality standard based on a tailored ISO QMS, which meets the requirements of FAR 52.246-11, and conform in all respects with the contract requirements, including specifications, drawings, preservation, packaging, packing, marking requirements, and physical item identification as noted and described above, and are in the quantity shown on this or on the attached acceptance document.
H38: Commercial & Destination General C of C | I38: We certify that the product listed above was manufactured and inspected in accordance with company quality system standards and all applicable specifications, drawings, customer and/or purchase order/contract requirements including a higher-level quality standards based on a tailored ISO9000 QMS, which may be required per FAR 52.246-11. | K38: We certify that the items supplied on the above referenced purchase order/contract have no mercury or mercury components and that no mercury bearing instruments and/or equipment have been used in any manner which may cause contamination in the manufacture, assembly, testing or final processing of said material.
K40: I certify that on ______ [insert date], the ____ [insert Contractor’s name] furnished the supplies or services called for by Contract No._____ via ____ [Carrier] on ________ [identify the bill of lading or shipping document] in accordance with all applicable requirements.

Sheet QA 012-1 - Special - CoC (hidden)
A1: =VLOOKUP(Company4, PicTable7, 2, FALSE) -> Picture2 | C1: Industrial Welding & Engineering | F1: <- Company Drop-Down | H1: COMPANY | I1: PHOTO | J1: Address | K1: State | L1: Phone | M1: Fax | N1: Email | O1: Web
C2: =VLOOKUP(Company4, PicTable7, 3, FALSE) -> 747 Carle Ave. | D2: =VLOOKUP(Company4, PicTable7, 8, FALSE) -> www.iweohio.com | H2: MTC Engineering | I2: Pic11 | J2: 747 Carle Ave. | K2: Lewis Center, OH 43035 | L2: 614-657-8666 | M2: FX: 614-540-7442 | N2: mtcengineering@att.net | O2: www.mtcengco.com
C3: =VLOOKUP(Company4, PicTable7, 4, FALSE) -> Lewis Center, OH 43035 | H3: Industrial Welding & Engineering | I3: Picture2 | J3: 747 Carle Ave. | K3: Lewis Center, OH 43035 | L3: 614-883-6109 | M3: FX: 614-737-9320 | N3: iwe@columbus.rr.com | O3: www.iweohio.com
C4: =VLOOKUP(Company4, PicTable7, 7, FALSE) -> iwe@columbus.rr.com | H4: MTC Engineering, LLC | I4: Pic11 | J4: 747 Carle Ave. | K4: Lewis Center, OH 43035 | L4: 614-657-8666 | M4: FX: 614-540-7442 | N4: mtcengllc@att.net | O4: www.mtcengco.com
C5: =VLOOKUP(Company4, PicTable7, 5, FALSE) -> 614-883-6109 | D5: =VLOOKUP(Company4, PicTable7, 6, FALSE) -> FX: 614-737-9320 | H5: Alannas Engineer | I5: Picture4 | J5: 9710-A Owensmouth Ave. | K5: Chatsworth, CA 91311 | L5: 818-701-1522 | M5: FX: 818-701-0316 | N5: alannasengineer@yahoo.com
H6: LCG Machine & Tool | I6: Pic13 | J6: 2923 Grasemere Ave. | K6: Columbus, OH 43224 | L6: 614-261-1651 | M6: FX: 614-447-8051 | N6: sales@lcgmachine.com | O6: www.lcgmachine.com
A7: Defense Contractors- Spare Parts and Assemblies Machined, Welded and Fabricated | H7: Westerville Mfg | I7: Pic15 | J7: 935 Schrock Rd. | K7: Columbus, OH 43229 | L7: 614-888-9088 | M7: FX: 614-888-9188 | N7: wmfginc@sbcglobal.net | O7: www.wmfginc.com
H8: Boehm Machine | I8: Boehm | J8: 1297 Memory Lane, N | K8: Columbus, OH 43209 | L8: 614-252-3778 | M8: FX: 614-237-5262 | N8: gkboehm@wideopenwest.com
A9: CERTIFICATE OF CONFORMANCE & TESTING | H9: RC Industries, Inc. | I9: Picture 3 | J9: 7755 Alabama Ave., Ste 6/8 | K9: Canoga, CA 91304 | L9: 818-883-0855 | M9: FX: 818-883-2537 | N9: rcind@sbcglobal.net | O9: www.rcindcorp.com
H10: Lewis Center Mfg. | I10: Picture 11 | J10: 747 Carle Ave. | K10: Lewis Center, OH 43035 | L10: 614-560-6122 | M10: 614-737-9320 | N10: Lewiscentermfg@gmail.com
A11: Customer | B11: =Customer -> 0 | C11: NSN | D11: =NSN -> 0 | H11: Fourply Design House | I11: Picture 5 | J11: 747 Carle Ave. | K11: Lewis Center, OH 43035 | L11: 910-381-3110 | M11: 614-737-9320 | N11: njsanna@fourplydesign.com | O11: www.fourplydesign.com
A12: Date | B12: =ShipDate -> 00:00:00 | C12: Rev | D12: =UPPER(REV) ->  | H12: DuLond Tool & Engineering, Inc. | I12: Picture 1 | J12: 2306 Whitfield Park Loop | K12: Sarasota, FL 34243 | L12: 941-758-4489 | M12: FX: 941-753-5592 | N12: gbrunette@dulondtool.com | O12: www.dulondtool.com
A13: Customer PO # | B13: =IF(Customer_PO>0.1,Customer_PO,Contract) -> 0 | C13: Part Number | D13: =UPPER(PN) ->  | H13: ADJ Finishing | I13: Picture 4 | J13: 7845 Gloria Ave. | K13: Van Nuys, CA 91406 | L13: 818-786-5131 | M13: 818-786-6165 | N13: adjfinishing@hotmail.com | O13: www.adjfinishing.com
A14: Work Order # | B14: =WO -> 0 | C14: Order Quantity | D14: =QTY -> 0 | H14: GTA Containers Inc. | I14: Picture 12 | J14: 4201 Linden Ave. | K14: South Bend, IN. 46619 | L14: 574-288-3459 | M14: 574-288-1997 | N14: victoria@gtacontainers.com | O14: www.gtacontainers.com
H15: C. O. W. Industries, Inc. | I15: Picture6 | J15: 1875 Progress Ave. | K15: Columbus, OH 43207 | L15: 614-445-5516 | M15: FX: 614-443-5530 | N15: james.dailey@cowind.com | O15: www.cowind.com
A16: Special Requirement: | B16: Water Washable Fluorescent Penetrant testing and visual inspection was preformed on (QTY) (PN) per MIL-STD-6866 (Supr by ASTM E1417). No relevant indications were found and parts were found acceptable.
A18: Test Quantity | C18: Acceptance Quantity
A19: Special Material Requirements: | B19: Magnaflux Penetrant Zyglo, Batch # 99H047
B20: Magnaflux Cleaner SKC-S, Batch # 01G12K
B21: Magnaflux Developer SKD-S2, Batch # 88L043
B22: Water Remover
A23: =VLOOKUP(InspectClause, InspClauseTable, 2, FALSE) -> I, the undersigned, certify that on this date of execution and as the representative agent for the above forgoing company and/or legal entity did furnish the supplies or services as duly noted by hereon referenced contract/purchase order and which said items/services were shipped in accordance with all applicable requirements as noted per FAR 52.246-1 & 52.246-2 and duly noted on attached shipping documents.
A25: =VLOOKUP(InspectClause, InspClauseTable, 4, FALSE) -> I further certify that the supplies or services are of the quality specified, including inspection to a higher-level quality standard based on a tailored ISO QMS, which meets the requirements of FAR 52.246-11 and conform in all respects with the contract requirements, including specifications, drawings, preservation, packaging, packing, marking requirements, and physical item identification as noted and described above, and are in the quantity shown on this or on the attached acceptance document.
B28: Signed/Dated: | F28: <--Select from Drop-down
C29: QE/Quality Tech
B31: Signed/Dated: | F31: <--Select from Drop-down
C32: Engineering/QA

Sheet QA 012-2 - Special - CoC (hidden)
A1: =VLOOKUP(Company3, PicTable6, 2, FALSE) -> Picture2 | C1: Industrial Welding & Engineering | F1: <-Company Drop-Down | H1: COMPANY | I1: PHOTO | J1: Address | K1: State | L1: Phone | M1: Fax | N1: Email | O1: Web
C2: =VLOOKUP(Company3, PicTable6, 3, FALSE) -> 747 Carle Ave. | D2: =VLOOKUP(Company3, PicTable6, 8, FALSE) -> www.iweohio.com | H2: MTC Engineering | I2: Pic11 | J2: 747 Carle Ave. | K2: Lewis Center, OH 43035 | L2: 614-657-8666 | M2: FX: 614-540-7442 | N2: mtcengineering@att.net | O2: www.mtcengco.com
C3: =VLOOKUP(Company3, PicTable6, 4, FALSE) -> Lewis Center, OH 43035 | H3: Industrial Welding & Engineering | I3: Picture2 | J3: 747 Carle Ave. | K3: Lewis Center, OH 43035 | L3: 614-883-6109 | M3: FX: 614-737-9320 | N3: iwe@columbus.rr.com | O3: www.iweohio.com
C4: =VLOOKUP(Company3, PicTable6, 7, FALSE) -> iwe@columbus.rr.com | H4: MTC Engineering, LLC | I4: Pic11 | J4: 747 Carle Ave. | K4: Lewis Center, OH 43035 | L4: 614-657-8666 | M4: FX: 614-540-7442 | N4: mtcengllc@att.net | O4: www.mtcengco.com
C5: =VLOOKUP(Company3, PicTable6, 5, FALSE) -> 614-883-6109 | D5: =VLOOKUP(Company3, PicTable6, 6, FALSE) -> FX: 614-737-9320 | H5: Alannas Engineer | I5: Picture4 | J5: 9710-A Owensmouth Ave. | K5: Chatsworth, CA 91311 | L5: 818-701-1522 | M5: FX: 818-701-0316 | N5: alannasengineer@yahoo.com
H6: LCG Machine & Tool | I6: Pic13 | J6: 2923 Grasemere Ave. | K6: Columbus, OH 43224 | L6: 614-261-1651 | M6: FX: 614-447-8051 | N6: sales@lcgmachine.com | O6: www.lcgmachine.com
A7: Defense Contractors- Spare Parts and Assemblies Machined, Welded and Fabricated | H7: Westerville Mfg | I7: Pic15 | J7: 935 Schrock Rd. | K7: Columbus, OH 43229 | L7: 614-888-9088 | M7: FX: 614-888-9188 | N7: wmfginc@sbcglobal.net | O7: www.wmfginc.com
H8: Boehm Machine | I8: Boehm | J8: 1297 Memory Lane, N | K8: Columbus, OH 43209 | L8: 614-252-3778 | M8: FX: 614-237-5262 | N8: gkboehm@wideopenwest.com
A9: CERTIFICATE OF CONFORMANCE & TESTING | H9: RC Industries, Inc. | I9: Picture 3 | J9: 7755 Alabama Ave., Ste 6/8 | K9: Canoga, CA 91304 | L9: 818-883-0855 | M9: FX: 818-883-2537 | N9: rtcind@sbcglobal.net | O9: www.rcindcorp.com
H10: Lewis Center Mfg. | I10: Picture 11 | J10: 747 Carle Ave. | K10: Lewis Center, OH 43035 | L10: 614-560-6122 | M10: 614-737-9320 | N10: Lewiscentermfg@gmail.com
A11: Customer | B11: =Customer -> 0 | C11: NSN | D11: =NSN -> 0 | H11: Fourply Design House | I11: Picture 5 | J11: 747 Carle Ave. | K11: Lewis Center, OH 43035 | L11: 910-381-3110 | M11: 614-737-9320 | N11: njsanna@fourplydesign.com | O11: www.fourplydesign.com
A12: Date | B12: =ShipDate -> 00:00:00 | C12: Rev | D12: =UPPER(REV) ->  | H12: DuLond Tool & Engineering, Inc. | I12: Picture 1 | J12: 2306 Whitfield Park Loop | K12: Sarasota, FL 34243 | L12: 941-758-4489 | M12: FX: 941-753-5592 | N12: gbrunette@dulondtool.com | O12: www.dulondtool.com
A13: Customer PO # | B13: =IF(Customer_PO>0.1,Customer_PO,Contract) -> 0 | C13: Part Number | D13: =UPPER(PN) ->  | H13: ADJ Finishing | I13: Picture 4 | J13: 7845 Gloria Ave. | K13: Van Nuys, CA 91406 | L13: 818-786-5131 | M13: 818-786-6165 | N13: adjfinishing@hotmail.com | O13: www.adjfinishing.com
A14: Work Order # | B14: =WO -> 0 | C14: Order Quantity | D14: =QTY -> 0 | H14: GTA Containers Inc. | I14: Picture 12 | J14: 4201 Linden Ave. | K14: South Bend, IN. 46619 | L14: 574-288-3459 | M14: 574-288-1997 | N14: victoria@gtacontainers.com | O14: www.gtacontainers.com
H15: C. O. W. Industries, Inc. | I15: Picture6 | J15: 1875 Progress Ave. | K15: Columbus, OH 43207 | L15: 614-445-5516 | M15: FX: 614-443-5530 | N15: james.dailey@cowind.com | O15: www.cowind.com
A16: Special Requirement: | B16: Weld per
A18: Test Quantity | C18: Acceptance Quantity
A19: Special Material Requirements:
A23: =VLOOKUP(InspectClause, InspClauseTable, 2, FALSE) -> I, the undersigned, certify that on this date of execution and as the representative agent for the above forgoing company and/or legal entity did furnish the supplies or services as duly noted by hereon referenced contract/purchase order and which said items/services were shipped in accordance with all applicable requirements as noted per FAR 52.246-1 & 52.246-2 and duly noted on attached shipping documents.
A25: =VLOOKUP(InspectClause, InspClauseTable, 4, FALSE) -> I further certify that the supplies or services are of the quality specified, including inspection to a higher-level quality standard based on a tailored ISO QMS, which meets the requirements of FAR 52.246-11 and conform in all respects with the contract requirements, including specifications, drawings, preservation, packaging, packing, marking requirements, and physical item identification as noted and described above, and are in the quantity shown on this or on the attached acceptance document.
B28: Signed/Dated: | F28: <--Select from Drop-down
C29: QE/Quality Tech
B31: Signed/Dated: | F31: <--Select from Drop-down
C32: Engineering Authorization

Sheet QA 012-3 Prime & Paint CoC (hidden)
A1: =VLOOKUP(Company2, PicTable5, 2, FALSE) -> Picture2 | D1: Industrial Welding & Engineering | K1: COMPANY | L1: PHOTO | M1: Address | N1: State | O1: Phone | P1: Fax | Q1: Email | R1: Web
D2: =VLOOKUP(Company2, PicTable5, 3, FALSE) -> 747 Carle Ave. | K2: MTC Engineering | L2: Pic16 | M2: 747 Carle Ave. | N2: Lewis Center, OH 43035 | O2: 614-657-8666 | P2: 614-540-7442 | Q2: mtcengineering@att.net | R2: www.mtcengco.com
D3: =VLOOKUP(Company2, PicTable5, 4, FALSE) -> Lewis Center, OH 43035 | K3: Industrial Welding & Engineering | L3: Picture2 | M3: 747 Carle Ave. | N3: Lewis Center, OH 43035 | O3: 614-883-6109 | P3: 614-737-9320 | Q3: iwe@columbus.rr.com | R3: www.iweohio.com
D4: Phone: | E4: =VLOOKUP(Company2, PicTable5, 5, FALSE) -> 614-883-6109 | F4: Fax: | G4: =VLOOKUP(Company2, PicTable5, 6, FALSE) -> 614-737-9320 | K4: MTC Engineering, LLC | L4: Pic16 | M4: 747 Carle Ave. | N4: Lewis Center, OH 43035 | O4: 614-657-8666 | P4: 614-540-7442 | Q4: mtcengllc@att.net | R4: www.mtcengco.com
A5: CERTIFICATION | K5: Alannas Engineer | L5: Picture4 | M5: 9710-A Owensmouth Ave. | N5: Chatsworth, CA 91311 | O5: 818-701-1522 | P5: 818-701-0316 | Q5: alannasengineer@yahoo.com
K6: LCG Machine & Tool | L6: Pic18 | M6: 2923 Grasemere Ave. | N6: Columbus, OH 43224 | O6: 614-261-1651 | P6: 614-447-8051 | Q6: sales@lcgmachine.com | R6: www.lcgmachine.com
A7: DATE: | B7: =IF(AcceptDate>1,AcceptDate-2," ") ->  | K7: Westerville Mfg | L7: Pic20 | M7: 935 Schrock Rd. | N7: Columbus, OH 43229 | O7: 614-888-9088 | P7: 614-888-9188 | Q7: wmfginc@sbcglobal.net | R7: www.wmfginc.com
A8: Part Number: | B8: =PN -> 0 | K8: Boehm Machine | L8: Boehm | M8: 1297 Memory Lane, N | N8: Columbus, OH 43209 | O8: 614-252-3778 | P8: 614-237-5262 | Q8: gkboehm@wideopenwest.com
A9: Description: | B9: =Name -> 0 | K9: RC Industries, Inc. | L9: Picture 3 | M9: 7755 Alabama Ave., Ste 6/8 | N9: Canoga, CA 91304 | O9: 818-883-0855 | P9: 818-883-2537 | Q9: tcind@sbcglobal.net
A10: Order Quantity: | B10: =QTY -> 0 | K10: DuLond Tool & Engineering, Inc. | L10: Picture 1 | M10: 2306 Whitfield Park Loop | N10: Sarasota, FL 34243 | O10: 941-758-4489 | P10: 941-753-5592 | Q10: gbrunette@dulondtool.com | R10: www.dulondtool.com
A11: Purchase Order: | B11: =WO -> 0 | K11: Lewis Center Mfg. | L11: Picture 11 | M11: 747 Carle Ave. | N11: Lewis Center, OH 43035 | O11: 614-560-6122 | P11: 614-737-9320 | Q11: Lewiscentermfg@gmail.com
K12: Fourply Design House | L12: Picture 5 | M12: 747 Carle Ave. | N12: Lewis Center, OH 43035 | O12: 910-381-3110 | P12: 614-737-9320 | Q12: nic@iweohio.com | R12: www.fourplydesign.com
A13: This is to certify that the parts listed below were processed, tested, and inspected in accordance with the applicable specifications. | K13: ADJ Finishing | L13: Picture 4 | M13: 7845 Gloria Ave. | N13: Van Nuys, CA 91406 | O13: 818-786-5131 | P13: 818-786-6165 | Q13: adjfinishing@hotmail.com | R13: www.adjfinishing.com
K14: GTA Containers Inc. | L14: Picture 12 | M14: 4201 Linden Ave. | N14: South Bend, IN. 46619 | O14: 574-288-3459 | P14: 574-288-1997 | Q14: victoria@gtacontainers.com | R14: www.gtacontainers.com
A15: Process | B15: Description | C15: Spec | D15: Rev | E15: Mfg | F15: Batch | G15: Exp | K15: C. O. W. Industries, Inc. | L15: Picture6 | M15: 1875 Progress Ave. | N15: Columbus, OH 43207 | O15: 614-445-5516 | P15: 614-443-5530 | Q15: james.dailey@cowind.com | R15: www.cowind.com
A17: Cleaning:
A19: Pretreatment: | B19: Wash Prime | C19: MIL-B-15328 | D19: D | E19: SW | F19: 0L0369H | G19: 2010-02-05
A21: Primer: | B21: Epoxy, Corr-Inh | C21: MIL-P-53022 | D21: C | E21: SW | F21: 0L0689J | G21: 2010-03-09
A23: Paint: | B23: CARC | C23: MIL-DTL-53039 | D23: B | E23: SW | F23: 0X3508C | G23: 2009-12-15
A25: Powder:
A27: Color: | B27: 383 (Green) | C27: FED-STD-595 | D27: C
A29: Application:
A31: Test Procedure: | B31: Standard Test | C31: FED-STD-141 | D31: D | E31: * TESTING NOTES:
E32: NOTE: Minimum testing required for non-aircraft application is Visual, Adhesion, Knife & Flexibility. Additional tests for Aircraft applications include *Salt Spray, *Jet Fuel Soak and *Abrasion.
A33: =Company -> Industrial Welding & Engineering | C33: =Cage -> 3NBK9
A36: Tony Casillas | E36: *Tests performed by Sherwin-Williams

Sheet QA 013 - Contract Review
A1: =Company -> Industrial Welding & Engineering
H2: Page:
B3: =IF(InspectClause="Source CoQC Contract FAR 52.246-9000","CoQC Process/Qualification Standards Summary (FAR 52.246-9000)","") ->  | H3: Pages:
D5: =IF(TDPFAT<>"TDP Package","CONTRACT REVIEW SHEET","SOLICITATION REVIEW SHEET") -> CONTRACT REVIEW SHEET | H5: DATE | I5: =IF(DwgRvw>1,DwgRvw," ") -> 
B7: CONTRACT # | C7: =Contract -> 0 | D7: QUANTITY | E7: =QTY -> 0 | F7: NAME | H7: ASSEMBLY P/N
B8: N.S.N | C8: =NSN -> 0 | D8: Rev: | E8: =UPPER(REV) ->  | F8: =Name -> 0 | H8: =PN -> 0
D10: =IF(TDPFAT<>"TDP Package","CONTRACT DRAWING REVIEW SHEET","SOLICITATION DRAWING REVIEW SHEET") -> CONTRACT DRAWING REVIEW SHEET
C12: DRAWINGS NUMBER | E12: DESCRIPTION | H12: REVISION | I12: REV DATE
B13: 1
B14: =B13+1 -> 2
B15: 3
B16: 4
B17: 5
B18: 6
B19: 7
B20: 8
B21: 9
B22: 10
B23: 11
B24: 12
B26: =IF(TDPFAT<>"TDP Package","CONTRACT UNIQUE MATERIAL/PROCESSING SPECIFICATION REVIEW","SOLICITATION UNIQUE MATERIAL/PROCESSING SPECIFICATION REVIEW") -> CONTRACT UNIQUE MATERIAL/PROCESSING SPECIFICATION REVIEW
B28: DRAWING | C28: SPECIFICATION | E28: DESCRIPTION | H28: REVISION | I28: REV DATE
B29: 1
B30: =B29+1 -> 2
B31: =B30+1 -> 3
B32: 4
B33: 5
B34: 6
B35: 7
B36: 8
B37: 9
B38: 10
B39: 11
B40: 12
B42: =IF(TDPFAT<>"TDP Package","CONTRACT UNIQUE QAP/CDRL/SPI - QUALITY REQUIREMENTS & SPECIAL INSTRUCTIONS REVIEW","SOLICITATION UNIQUE QAP/CDRL/SPI - QUALITY REQUIREMENTS & SPECIAL INSTRUCTIONS REVIEW") -> CONTRACT UNIQUE QAP/CDRL/SPI - QUALITY REQUIREMENTS & SPECIAL INSTRUCTIONS REVIEW
C44: QAP/CDRL/SPI NUMBER | E44: REVISION | H44: REVISION | I44: REV DATE
B45: 1
B46: =B45+1 -> 2
B47: =B46+1 -> 3
B48: =B47+1 -> 4
B50: IDENTIFICATION TYPE (see detail sheets for specifics)
B52: SPECIFICATION | D52: REVISION | E52: DESCRIPTIVE | G52: TYPE
B53: MIL-STD-130 | D53: N | E53: Parts Identification | G53: Rubber Stamp
B57: REVIEW BY:
E58: Signature

Sheet QA 015a - Top Assy
B1: =Company -> Industrial Welding & Engineering | E1: =IF(TDPFAT<>"TDP Package","RECEIVING/IN-PROCESS/FINAL INSPECTION REPORT - Assembly/Subassembly","(Proposed) RECEIVING/IN-PROCESS/FINAL INSPECTION REPORT - Detail/Subassembly") -> RECEIVING/IN-PROCESS/FINAL INSPECTION REPORT - Assembly/Subassembly | P1: =Company -> Industrial Welding & Engineering | U1: Part Number: | V1: =PN -> 0 | X1: Revision: | Y1: =REV -> 0 | Z1: Inspection Date: | AB1: =InspectDate -> 00:00:00
R2: Contract/PO: | S2: =Contract -> 0 | U2: Part Name: | W2: =Name -> 0 | Z2: Customer: | AA2: =Customer -> 0
B3: CONTRACT | D3: =IF(Contract>1,Contract," ") ->  | E3: N.S.N | F3: =IF(NSN>1,NSN," ") ->  | I3: PAGE/PAGES
B4: P/N | C4: =IF(PN>1,PN," ") ->  | E4: NAME | F4: =IF(Name>1,Name," ") ->  | I4: WORK ORDER | J4: =IF(WO>1,WO," ") -> 
B5: REV | C5: =IF(REV>1,REV," ") ->  | D5: INSPECTOR | E5: =IF(Inspector>1,Inspector," ") ->  | G5: =IF(TDPFAT<>"TDP Package"," ","(Suggested) Inspection Plan may vary with contract issue.") ->  | I5: LOT QTY | J5: =IF(QTY>1,QTY," ") ->  | P5: Dwg Spec/Dim | Q5: Tolerance | R5: Inspection Method | S5: INSPECTION DATA RECORD
B7: NUMBER | C7: PRINT DIM | E7: TOLERANCE | F7: ACTUAL (Min-Max) DIM RANGE | H7: AQL | I7: SAMPLE SIZE | J7: ACCEPT QTY | L7: <<--NOTE: Once you enter the first dimension, the tab will be re-name to the assy part number. | S7: 5 | T7: 6 | U7: 7 | V7: 8 | W7: 9 | X7: 10 | Y7: 11 | Z7: 12 | AA7: 13 | AB7: 14 | AC7: 15
H8: (If Specified)
B9: 1 | I9: =IF(C9<=0," ",IF(AQLSize="A",QTY,AQLSize)) ->  | P9: =IF(C9>0,C9," ") ->  | Q9: =IF(E9>0,E9," ") -> 
B10: =IF(C10>0.001,B9+1," ") ->  | P10: =IF(C10>0,C10," ") ->  | Q10: =IF(E10>0,E10," ") -> 
B11: =IF(C11>0.001,B10+1," ") -> 
B38: =IF(TDPFAT<>"TDP Package","PROCESSING REVIEW SUMMARY","(Proposed) PROCESSING REVIEW SUMMARY") -> PROCESSING REVIEW SUMMARY
B39: Process Specs and Stds | D39: Process Spec & Description | G39: Accept | I39: Comments
G40: Yes | H40: No
B41: Material(s)

Sheet QA 015b - Det-Sub Assy
B1: =Company -> Industrial Welding & Engineering | E1: =IF(TDPFAT<>"TDP Package","RECEIVING/IN-PROCESS/FINAL INSPECTION REPORT - Detail/Subassembly","(Proposed) RECEIVING/IN-PROCESS INSPECTION/FINAL REPORT - Detail/Subassembly") -> RECEIVING/IN-PROCESS/FINAL INSPECTION REPORT - Detail/Subassembly | P1: =Company -> Industrial Welding & Engineering | T1: Assembly/Sub Part Number: | V1: =PN -> 0 | X1: Revision: | Y1: =REV -> 0 | Z1: Inspection Date: | AB1: =InspectDate -> 00:00:00
R2: Contract/PO: | S2: =Contract -> 0 | U2: Part Name: | W2: =Name -> 0 | Z2: Customer: | AA2: =Customer -> 0
B3: CONTRACT | D3: =IF(Contract>1,Contract," ") ->  | E3: N.S.N | F3: =IF(NSN>1,NSN," ") ->  | I3: PAGE/PAGES
B4: P/N | C4: =IF(PN>1,PN," ") ->  | E4: NAME | F4: =IF(Name>1,Name," ") ->  | I4: WORK ORDER | J4: =IF(WO>1,WO," ") ->  | S4: DETAIL / SUB-ASSY:
Q5: P/N: | R5: =D6 -> 0 | T5: REV: | U5: =J6 -> 0 | V5: NAME: | W5: =D7 -> 0
B6: DETAIL / SUB-ASSY | C6: P/N | I6: REV
C7: NAME | S7: INSPECTOR | T7: =IF(Inspector>1,Inspector,"") ->  | W7: =IF(TDPFAT<>"TDP Package"," ","This suggested Inspection Plan may vary with contract issue.") ->  | AB7: LOT QTY | AC7: =J8 -> 
B8: INSPECTOR | C8: =IF(Inspector>1,Inspector,"") ->  | G8: =IF(TDPFAT<>"TDP Package"," ","This suggested Inspection Plan may vary with contract issue.") ->  | I8: LOT QTY | J8: =IF(QTY>1,QTY," ") ->  | P8: Dwg Spec/Dim | Q8: Tolerance | R8: Inspection Method | S8: INSPECTION DATA RECORD
B10: NUMBER | C10: PRINT DIM | E10: TOLERANCE | F10: ACTUAL DIM RANGE | H10: AQL | I10: SAMPLE SIZE | J10: ACCEPT QTY | S10: 5 | T10: 6 | U10: 7 | V10: 8 | W10: 9 | X10: 10 | Y10: 11 | Z10: 12 | AA10: 13 | AB10: 14 | AC10: 15
H11: (If Specified)
B12: 1 | I12: =IF(C12<=0," ",IF(AQLSize="A",QTY,AQLSize)) ->  | L12: <<--CAUTION: Once you enter the part number on this sheet, the tab will be renamed and you CAN NOT use the "Copy Sub" button. If you need additional Sub Sheets, use the Sub- button and create all the sheets you need first. | P12: =IF(C12>0,C12," ") ->  | Q12: =IF(E12>0,E12," ") -> 
B13: =IF(C13>0.001,B12+1," ") ->  | P13: =IF(C13>0,C13," ") ->  | Q13: =IF(E13>0,E13," ") -> 
B14: =IF(C14>0.001,B13+1," ") -> 
B41: =IF(TDPFAT<>"TDP Package","PROCESSING REVIEW SUMMARY","(Proposed) PROCESSING REVIEW SUMMARY") -> PROCESSING REVIEW SUMMARY
B42: Process Specs and Stds | D42: Process Spec & Description | G42: Accept | I42: Comments
G43: Yes | H43: No
B44: Material(s)

Sheet QAP 111 AQL
B2: ZERO BASED ACEPTANCE PLAN | M2: sss | N2: C=0 Sampling Size Calculator | U2: Sample Size | V2: AQL Level | Y2: 0.010 | Z2: 0.015 | AA2: 0.025 | AB2: 0.040 | AC2: 0.065 | AD2: 0.10 | AE2: 0.15 | AF2: 0.25 | AG2: 0.40 | AH2: 0.65 | AI2: 1.0 | AJ2: 1.5 | AK2: 2.5 | AL2: 4.0 | AM2: 6.5 | AN2: 10 | AO2: 15 | AP2: 25 | AQ2: 40 | AR2: 65 | AS2: 100 | AT2: 150 | AU2: 250 | AV2: 400 | AW2: 600 | AX2: 1000
U3: 2 to 8 | V3: 0.010 | X3: A | Y3: 0 | Z3: 0 | AA3: 0 | AB3: 0 | AC3: 0 | AD3: 0 | AE3: 0 | AF3: 0 | AG3: 0 | AH3: 0 | AI3: 0 | AJ3: 0 | AK3: 0 | AL3: 0 | AM3: 0 | AN3: 1 | AO3: 1 | AP3: 1 | AQ3: 2 | AR3: 3 | AS3: 5 | AT3: 7 | AU3: 10 | AV3: 14 | AW3: 21 | AX3: 30
C4: C=0 TABLE | N4: Quantity | Q4: 91-150 | U4: 9 to 15 | V4: 0.015 | X4: B | Y4: 0 | Z4: 0 | AA4: 0 | AB4: 0 | AC4: 0 | AD4: 0 | AE4: 0 | AF4: 0 | AG4: 0 | AH4: 0 | AI4: 0 | AJ4: 0 | AK4: 0 | AL4: 0 | AM4: 0 | AN4: 1 | AO4: 1 | AP4: 2 | AQ4: 3 | AR4: 5 | AS4: 7 | AT4: 10 | AU4: 14 | AV4: 21 | AW4: 30 | AX4: 44
C5: LOT SIZE | D5: CRITICAL*(.010%) | E5: MAJOR (1.0%) | F5: MINOR (4.0%) | U5: 16 to 25 | V5: 0.025 | X5: C | Y5: 0 | Z5: 0 | AA5: 0 | AB5: 0 | AC5: 0 | AD5: 0 | AE5: 0 | AF5: 0 | AG5: 0 | AH5: 0 | AI5: 0 | AJ5: 0 | AK5: 0 | AL5: 0 | AM5: 1 | AN5: 1 | AO5: 2 | AP5: 3 | AQ5: 5 | AR5: 7 | AS5: 10 | AT5: 14 | AU5: 21 | AV5: 30 | AW5: 44 | AX5: 44
K6: DCMA Sampling Chart | N6: Insp. Level | Q6: MAJOR (1.0%) | U6: 26 to 50 | V6: 0.040 | X6: D | Y6: 0 | Z6: 0 | AA6: 0 | AB6: 0 | AC6: 0 | AD6: 0 | AE6: 0 | AF6: 0 | AG6: 0 | AH6: 0 | AI6: 0 | AJ6: 0 | AK6: 0 | AL6: 1 | AM6: 1 | AN6: 2 | AO6: 3 | AP6: 5 | AQ6: 7 | AR6: 10 | AS6: 14 | AT6: 21 | AU6: 30 | AV6: 44 | AW6: 44 | AX6: 44
C7: 1-8 | D7: A | E7: A | F7: 3 | U7: 51 to 90 | V7: 0.065 | X7: E | Y7: 0 | Z7: 0 | AA7: 0 | AB7: 0 | AC7: 0 | AD7: 0 | AE7: 0 | AF7: 0 | AG7: 0 | AH7: 0 | AI7: 0 | AJ7: 0 | AK7: 1 | AL7: 1 | AM7: 2 | AN7: 3 | AO7: 5 | AP7: 7 | AQ7: 10 | AR7: 14 | AS7: 21 | AT7: 30 | AU7: 44 | AV7: 44 | AW7: 44 | AX7: 44
C8: 9-15 | D8: A | E8: 13 | F8: 3 | N8: C=0 Sample Size: | O8: =OFFSET(AQLTable,MATCH(Q4:Q5,OFFSET(AQLTable,0,0,ROWS(AQLTable),1),0)-1,MATCH(Q6:Q7,OFFSET(AQLTable,0,0,1,COLUMNS(AQLTable)))-1) -> 13 | U8: 91 to 150 | V8: 0.10 | X8: F | Y8: 0 | Z8: 0 | AA8: 0 | AB8: 0 | AC8: 0 | AD8: 0 | AE8: 0 | AF8: 0 | AG8: 0 | AH8: 0 | AI8: 0 | AJ8: 1 | AK8: 1 | AL8: 2 | AM8: 3 | AN8: 5 | AO8: 7 | AP8: 10 | AQ8: 14 | AR8: 21 | AS8: 21 | AT8: 30 | AU8: 44 | AV8: 44 | AW8: 44 | AX8: 44
C9: 16-25 | D9: A | E9: 13 | F9: 3 | N9: =IF(O8="A",C24,IF(O8="1250*",D22,"")) ->  | U9: 151 to 280 | V9: 0.15 | X9: G | Y9: 0 | Z9: 0 | AA9: 0 | AB9: 0 | AC9: 0 | AD9: 0 | AE9: 0 | AF9: 0 | AG9: 0 | AH9: 0 | AI9: 1 | AJ9: 1 | AK9: 2 | AL9: 3 | AM9: 5 | AN9: 7 | AO9: 10 | AP9: 14 | AQ9: 21 | AR9: 21 | AS9: 21 | AT9: 30 | AU9: 44 | AV9: 44 | AW9: 44 | AX9: 44
C10: 26-50 | D10: A | E10: 13 | F10: 5 | U10: 281 to 500 | V10: 0.25 | X10: H | Y10: 0 | Z10: 0 | AA10: 0 | AB10: 0 | AC10: 0 | AD10: 0 | AE10: 0 | AF10: 0 | AG10: 0 | AH10: 1 | AI10: 1 | AJ10: 2 | AK10: 3 | AL10: 5 | AM10: 7 | AN10: 10 | AO10: 14 | AP10: 21 | AQ10: 21 | AR10: 21 | AS10: 21 | AT10: 30 | AU10: 44 | AV10: 44 | AW10: 44 | AX10: 44
C11: 51-90 | D11: A | E11: 13 | F11: 6 | N11: AQL Based Sample | U11: 501 to 1,200 | V11: 0.40 | X11: J | Y11: 0 | Z11: 0 | AA11: 0 | AB11: 0 | AC11: 0 | AD11: 0 | AE11: 0 | AF11: 0 | AG11: 1 | AH11: 1 | AI11: 2 | AJ11: 3 | AK11: 5 | AL11: 7 | AM11: 10 | AN11: 14 | AO11: 21 | AP11: 21 | AQ11: 21 | AR11: 21 | AS11: 21 | AT11: 30 | AU11: 44 | AV11: 44 | AW11: 44 | AX11: 44
C12: 91-150 | D12: A | E12: 13 | F12: 7 | U12: 1,201 to 3,200 | V12: 0.65 | X12: K | Y12: 0 | Z12: 0 | AA12: 0 | AB12: 0 | AC12: 0 | AD12: 0 | AE12: 0 | AF12: 1 | AG12: 1 | AH12: 2 | AI12: 3 | AJ12: 5 | AK12: 7 | AL12: 10 | AM12: 14 | AN12: 21 | AO12: 21 | AP12: 21 | AQ12: 21 | AR12: 21 | AS12: 21 | AT12: 30 | AU12: 44 | AV12: 44 | AW12: 44 | AX12: 44
C13: 151-280 | D13: A | E13: 20 | F13: 10 | N13: Quantity | U13: 3,201 to 10,000 | V13: 1.0 | X13: L | Y13: 0 | Z13: 0 | AA13: 0 | AB13: 0 | AC13: 0 | AD13: 0 | AE13: 1 | AF13: 1 | AG13: 2 | AH13: 3 | AI13: 5 | AJ13: 7 | AK13: 10 | AL13: 14 | AM13: 21 | AN13: 21 | AO13: 21 | AP13: 21 | AQ13: 21 | AR13: 21 | AS13: 21 | AT13: 30 | AU13: 44 | AV13: 44 | AW13: 44 | AX13: 44
C14: 281-500 | D14: A | E14: 29 | F14: 11 | U14: 10,001 to 35,000 | V14: 1.5 | X14: M | Y14: 0 | Z14: 0 | AA14: 0 | AB14: 0 | AC14: 0 | AD14: 1 | AE14: 1 | AF14: 2 | AG14: 3 | AH14: 5 | AI14: 7 | AJ14: 10 | AK14: 14 | AL14: 21 | AM14: 21 | AN14: 21 | AO14: 21 | AP14: 21 | AQ14: 21 | AR14: 21 | AS14: 21 | AT14: 30 | AU14: 44 | AV14: 44 | AW14: 44 | AX14: 44
C15: 501-1200 | D15: A | E15: 34 | F15: 15 | N15: Insp. Level | U15: 35,001 to 150,000 | V15: 2.5 | X15: N | Y15: 0 | Z15: 0 | AA15: 0 | AB15: 0 | AC15: 1 | AD15: 1 | AE15: 2 | AF15: 3 | AG15: 5 | AH15: 7 | AI15: 10 | AJ15: 14 | AK15: 21 | AL15: 21 | AM15: 21 | AN15: 21 | AO15: 21 | AP15: 21 | AQ15: 21 | AR15: 21 | AS15: 21 | AT15: 30 | AU15: 44 | AV15: 44 | AW15: 44 | AX15: 44
C16: 1201-3200 | D16: 1250* | E16: 42 | F16: 18 | U16: 150,001 to 500,000 | V16: 4.0 | X16: P | Y16: 0 | Z16: 0 | AA16: 0 | AB16: 1 | AC16: 1 | AD16: 2 | AE16: 3 | AF16: 5 | AG16: 7 | AH16: 10 | AI16: 14 | AJ16: 21 | AK16: 21 | AL16: 21 | AM16: 21 | AN16: 21 | AO16: 21 | AP16: 21 | AQ16: 21 | AR16: 21 | AS16: 21 | AT16: 30 | AU16: 44 | AV16: 44 | AW16: 44 | AX16: 44
C17: 3201-10,000 | D17: 1250* | E17: 50 | F17: 22 | U17: 500,001 and Over | V17: 6.5 | X17: Q | Y17: 0 | Z17: 0 | AA17: 1 | AB17: 1 | AC17: 2 | AD17: 3 | AE17: 5 | AF17: 7 | AG17: 10 | AH17: 14 | AI17: 21 | AJ17: 21 | AK17: 21 | AL17: 21 | AM17: 21 | AN17: 21 | AO17: 21 | AP17: 21 | AQ17: 21 | AR17: 21 | AS17: 21 | AT17: 30 | AU17: 44 | AV17: 44 | AW17: 44 | AX17: 44
C18: 10,001-35,000 | D18: 1250* | E18: 60 | F18: 29 | N18: MAJOR Defects | Q18: MINOR Defects | V18: 10 | X18: R | Y18: 0 | Z18: 0 | AA18: 1 | AB18: 2 | AC18: 3 | AD18: 5 | AE18: 7 | AF18: 10 | AG18: 14 | AH18: 21 | AI18: 21 | AJ18: 21 | AK18: 21 | AL18: 21 | AM18: 21 | AN18: 21 | AO18: 21 | AP18: 21 | AQ18: 21 | AR18: 21 | AS18: 21 | AT18: 30 | AU18: 44 | AV18: 44 | AW18: 44 | AX18: 44
C19: 35,001-150,000 | D19: 1250* | E19: 74 | F19: 29 | V19: 15
C20: 150,001-500,000 | D20: 1250* | E20: 90 | F20: 29 | N20: AQL | Q20: AQL | V20: 25 | X20: A | Y20: 1250 | Z20: 800 | AA20: 500 | AB20: 315 | AC20: 200 | AD20: 125 | AE20: 80 | AF20: 50 | AG20: 32 | AH20: 20 | AI20: 13 | AJ20: 8 | AK20: 5 | AL20: 3 | AM20: 2 | AN20: 5 | AO20: 3 | AP20: 2 | AQ20: 2 | AR20: 2 | AS20: 2 | AT20: 2 | AU20: 2 | AV20: 2 | AW20: 2 | AX20: 2
C21: 500,001 & OVER | D21: 1250* | E21: 102 | F21: 29 | V21: 40 | X21: B | Y21: 1250 | Z21: 800 | AA21: 500 | AB21: 315 | AC21: 200 | AD21: 125 | AE21: 80 | AF21: 50 | AG21: 32 | AH21: 20 | AI21: 13 | AJ21: 8 | AK21: 5 | AL21: 3 | AM21: 2 | AN21: 5 | AO21: 3 | AP21: 3 | AQ21: 3 | AR21: 3 | AS21: 3 | AT21: 3 | AU21: 3 | AV21: 3 | AW21: 3 | AX21: 3
D22: *Use standard SPC methodology. | N22: Sampling Size | O22: =IF(R6="",INDEX('QAP 111 AQL'!Y20:AX35,'QAP 111 AQL'!AK46,'QAP 111 AQL'!AJ46),R6) -> 3 | Q22: Sampling Size | R22: =IF(R6="",INDEX('QAP 111 AQL'!Y20:AX35,'QAP 111 AQL'!AK45,'QAP 111 AQL'!AJ45),R6) -> 13 | V22: 65 | X22: C | Y22: 1250 | Z22: 800 | AA22: 500 | AB22: 315 | AC22: 200 | AD22: 125 | AE22: 80 | AF22: 50 | AG22: 32 | AH22: 20 | AI22: 13 | AJ22: 8 | AK22: 5 | AL22: 3 | AM22: 8 | AN22: 5 | AO22: 5 | AP22: 5 | AQ22: 5 | AR22: 5 | AS22: 5 | AT22: 5 | AU22: 5 | AV22: 5 | AW22: 5 | AX22: 3
C23: NOTES: | V23: 100 | X23: D | Y23: 1250 | Z23: 800 | AA23: 500 | AB23: 315 | AC23: 200 | AD23: 125 | AE23: 80 | AF23: 50 | AG23: 32 | AH23: 20 | AI23: 13 | AJ23: 8 | AK23: 5 | AL23: 13 | AM23: 8 | AN23: 8 | AO23: 8 | AP23: 8 | AQ23: 8 | AR23: 8 | AS23: 8 | AT23: 8 | AU23: 8 | AV23: 8 | AW23: 5 | AX23: 3
C24: "A" INDICATES ENTIRE LOT MUST BE INSPECTED | N24: Max. Rejectable | O24: =IF(Q6="",INDEX('QAP 111 AQL'!Y3:AX18,'QAP 111 AQL'!AK46,'QAP 111 AQL'!AJ46),"N/A") -> N/A | Q24: Max. Rejectable | R24: =IF(Q6="",INDEX('QAP 111 AQL'!Y3:AX18,'QAP 111 AQL'!AK45,'QAP 111 AQL'!AJ45),"N/A") -> N/A | V24: 150 | X24: E | Y24: 1250 | Z24: 800 | AA24: 500 | AB24: 315 | AC24: 200 | AD24: 125 | AE24: 80 | AF24: 50 | AG24: 32 | AH24: 20 | AI24: 13 | AJ24: 8 | AK24: 20 | AL24: 13 | AM24: 13 | AN24: 13 | AO24: 13 | AP24: 13 | AQ24: 13 | AR24: 13 | AS24: 13 | AT24: 13 | AU24: 13 | AV24: 8 | AW24: 5 | AX24: 3
V25: 250 | X25: F | Y25: 1250 | Z25: 800 | AA25: 500 | AB25: 315 | AC25: 200 | AD25: 125 | AE25: 80 | AF25: 50 | AG25: 32 | AH25: 20 | AI25: 13 | AJ25: 32 | AK25: 20 | AL25: 20 | AM25: 20 | AN25: 20 | AO25: 20 | AP25: 20 | AQ25: 20 | AR25: 20 | AS25: 13 | AT25: 13 | AU25: 13 | AV25: 8 | AW25: 5 | AX25: 3
B26: GENERAL DEFINITIONS | N26: Critical Defect: | Q26: Sampling Size | R26: =IF(O22>R22,O22,R22) -> 13 | V26: 400 | X26: G | Y26: 1250 | Z26: 800 | AA26: 500 | AB26: 315 | AC26: 200 | AD26: 125 | AE26: 80 | AF26: 50 | AG26: 32 | AH26: 20 | AI26: 50 | AJ26: 32 | AK26: 32 | AL26: 32 | AM26: 32 | AN26: 32 | AO26: 32 | AP26: 32 | AQ26: 32 | AR26: 20 | AS26: 13 | AT26: 13 | AU26: 13 | AV26: 8 | AW26: 5 | AX26: 3
V27: 600 | X27: H | Y27: 1250 | Z27: 800 | AA27: 500 | AB27: 315 | AC27: 200 | AD27: 125 | AE27: 80 | AF27: 50 | AG27: 32 | AH27: 80 | AI27: 50 | AJ27: 50 | AK27: 50 | AL27: 50 | AM27: 50 | AN27: 50 | AO27: 50 | AP27: 50 | AQ27: 32 | AR27: 20 | AS27: 13 | AT27: 13 | AU27: 13 | AV27: 8 | AW27: 5 | AX27: 3
B28: CRITICAL | C28: A DEFECT THAT IS LIKELY TO CAUSE A HAZADOUS OR UNSAFE CONDITION DIAMETRICAL AND LINEAR DIMENSIONS HAVING A TOTAL TOLERANCE OF .0001 INCH SURFACE FINISHS HAVING A 16 RMS VALUE OR LESS GEOMETRIC TOLERANCES HAVING A TOLERANCE OF .0002 IN OR LESS NONDESTRUCTIVE TESTS. | Q28: Max. Rejectable | R28: 0 | V28: 1000 | X28: J | Y28: 1250 | Z28: 800 | AA28: 500 | AB28: 315 | AC28: 200 | AD28: 125 | AE28: 80 | AF28: 50 | AG28: 125 | AH28: 80 | AI28: 80 | AJ28: 80 | AK28: 80 | AL28: 80 | AM28: 80 | AN28: 80 | AO28: 80 | AP28: 50 | AQ28: 32 | AR28: 20 | AS28: 13 | AT28: 13 | AU28: 13 | AV28: 8 | AW28: 5 | AX28: 3
X29: K | Y29: 1250 | Z29: 800 | AA29: 500 | AB29: 315 | AC29: 200 | AD29: 125 | AE29: 80 | AF29: 200 | AG29: 125 | AH29: 125 | AI29: 125 | AJ29: 125 | AK29: 125 | AL29: 125 | AM29: 125 | AN29: 125 | AO29: 80 | AP29: 50 | AQ29: 32 | AR29: 20 | AS29: 13 | AT29: 13 | AU29: 13 | AV29: 8 | AW29: 5 | AX29: 3
X30: L | Y30: 1250 | Z30: 800 | AA30: 500 | AB30: 315 | AC30: 200 | AD30: 125 | AE30: 315 | AF30: 200 | AG30: 200 | AH30: 200 | AI30: 200 | AJ30: 200 | AK30: 200 | AL30: 200 | AM30: 200 | AN30: 125 | AO30: 80 | AP30: 50 | AQ30: 32 | AR30: 20 | AS30: 13 | AT30: 13 | AU30: 13 | AV30: 8 | AW30: 5 | AX30: 3
B31: MAJOR | C31: A DEFECT OTHER THAN CRITICAL THAT WILL CAUSE FAILURE DIAMETRICAL AND LINEAR DIMENSIONS HAVING A TOLERANCE BETWEEN .001-.005 IN SURFACE FINISH HAVING AN RMS BETWEEN 16 AND 63 GEOEMTRIC TOLERANCE BETWEEN .002-.008 IN. | X31: M | Y31: 1250 | Z31: 800 | AA31: 500 | AB31: 315 | AC31: 200 | AD31: 500 | AE31: 315 | AF31: 315 | AG31: 315 | AH31: 315 | AI31: 315 | AJ31: 315 | AK31: 315 | AL31: 315 | AM31: 200 | AN31: 125 | AO31: 80 | AP31: 50 | AQ31: 32 | AR31: 20 | AS31: 13 | AT31: 13 | AU31: 13 | AV31: 8 | AW31: 5 | AX31: 3
X32: N | Y32: 1250 | Z32: 800 | AA32: 500 | AB32: 315 | AC32: 800 | AD32: 500 | AE32: 500 | AF32: 500 | AG32: 500 | AH32: 500 | AI32: 500 | AJ32: 500 | AK32: 500 | AL32: 315 | AM32: 200 | AN32: 125 | AO32: 80 | AP32: 50 | AQ32: 32 | AR32: 20 | AS32: 13 | AT32: 13 | AU32: 13 | AV32: 8 | AW32: 5 | AX32: 3
X33: P | Y33: 1250 | Z33: 800 | AA33: 500 | AB33: 1250 | AC33: 800 | AD33: 800 | AE33: 800 | AF33: 800 | AG33: 800 | AH33: 800 | AI33: 800 | AJ33: 800 | AK33: 500 | AL33: 315 | AM33: 200 | AN33: 125 | AO33: 80 | AP33: 50 | AQ33: 32 | AR33: 20 | AS33: 13 | AT33: 13 | AU33: 13 | AV33: 8 | AW33: 5 | AX33: 3
B34: MINOR | C34: A DEFECT THAT IS UNLIKELY TO THE USABILITY OF THE PRODUCT DIAMETRICAL AND LINEAR DIMENSIONS GREATER THAN .005 IN SURFACE RMS IN EXCESS OF 63. | X34: Q | Y34: 1250 | Z34: 800 | AA34: 2000 | AB34: 1250 | AC34: 1250 | AD34: 1250 | AE34: 1250 | AF34: 1250 | AG34: 1250 | AH34: 1250 | AI34: 1250 | AJ34: 800 | AK34: 500 | AL34: 315 | AM34: 200 | AN34: 125 | AO34: 80 | AP34: 50 | AQ34: 32 | AR34: 20 | AS34: 13 | AT34: 13 | AU34: 13 | AV34: 8 | AW34: 5 | AX34: 3
X35: R | Y35: 1250 | Z35: 800 | AA35: 2000 | AB35: 2000 | AC35: 2000 | AD35: 2000 | AE35: 2000 | AF35: 2000 | AG35: 2000 | AH35: 2000 | AI35: 1250 | AJ35: 800 | AK35: 500 | AL35: 315 | AM35: 200 | AN35: 125 | AO35: 80 | AP35: 50 | AQ35: 32 | AR35: 20 | AS35: 13 | AT35: 13 | AU35: 13 | AV35: 8 | AW35: 5 | AX35: 3
B37: General Inspection Levels | F37: Special Inspection Levels | Y37: Level S-1 | Z37: Level S-2 | AA37: Level S-3 | AB37: Level S-4 | AC37: Level I | AD37: Level II | AE37: Level III | AH37: Level S-1
B38: I | C38: II | D38: III | F38: S-1 | G38: S-2 | H38: S-3 | K38: S-4 | X38: 1 | Y38: 1 | Z38: 1 | AA38: 1 | AB38: 1 | AC38: 1 | AD38: 1 | AE38: 2 | AH38: Level S-2
X39: 2 | Y39: 1 | Z39: 1 | AA39: 1 | AB39: 1 | AC39: 1 | AD39: 2 | AE39: 3 | AH39: Level S-3
B40: A | C40: A | D40: B | F40: A | G40: A | H40: A | K40: A | Y40: 1 | Z40: 1 | AA40: 2 | AB40: 2 | AC40: 2 | AD40: 3 | AE40: 4 | AH40: Level S-4
B41: A | C41: B | D41: C | F41: A | G41: A | H41: A | K41: A | Y41: 1 | Z41: 2 | AA41: 2 | AB41: 3 | AC41: 3 | AD41: 4 | AE41: 5 | AH41: Level I
B42: B | C42: C | D42: D | F42: A | G42: A | H42: B | K42: B | Y42: 2 | Z42: 2 | AA42: 3 | AB42: 3 | AC42: 3 | AD42: 5 | AE42: 6 | AH42: Level II
B43: C | C43: D | D43: E | F43: A | G43: B | H43: B | K43: C | Y43: 2 | Z43: 2 | AA43: 3 | AB43: 4 | AC43: 4 | AD43: 6 | AE43: 7 | AH43: Level III
B44: C | C44: E | D44: F | F44: B | G44: B | H44: C | K44: C | Y44: 2 | Z44: 3 | AA44: 4 | AB44: 5 | AC44: 5 | AD44: 7 | AE44: 8
B45: D | C45: F | D45: G | F45: B | G45: B | H45: C | K45: D | Y45: 2 | Z45: 3 | AA45: 4 | AB45: 5 | AC45: 6 | AD45: 8 | AE45: 9 | AF45: minor | AH45: =INDEX(Y3:AX18,AK45,AJ45) -> 0 | AI45: =INDEX($Y$20:$AX$35,AK45,AJ45) -> 13 | AJ45: 11 | AK45: =INDEX($Y$38:$AE$52,X38,X39) -> 1
B46: E | C46: G | D46: H | F46: B | G46: C | H46: D | K46: E | Y46: 3 | Z46: 3 | AA46: 5 | AB46: 6 | AC46: 7 | AD46: 9 | AE46: 10 | AF46: major | AH46: =INDEX(Y3:AX18,AK46,AJ46) -> 0 | AI46: =INDEX(Y20:AX35,AK46,AJ46) -> 3 | AJ46: 14 | AK46: =INDEX($Y$38:$AE$52,X38,X39) -> 1
B47: F | C47: H | D47: J | F47: B | G47: C | H47: D | K47: E | Y47: 3 | Z47: 4 | AA47: 5 | AB47: 7 | AC47: 8 | AD47: 10 | AE47: 11
B48: G | C48: J | D48: K | F48: C | G48: C | H48: E | K48: F | Y48: 3 | Z48: 4 | AA48: 6 | AB48: 7 | AC48: 9 | AD48: 11 | AE48: 12
B49: H | C49: K | D49: L | F49: C | G49: D | H49: E | K49: G | Y49: 3 | Z49: 4 | AA49: 6 | AB49: 8 | AC49: 10 | AD49: 12 | AE49: 13
B50: J | C50: L | D50: M | F50: C | G50: D | H50: F | K50: G | Y50: 4 | Z50: 5 | AA50: 7 | AB50: 9 | AC50: 11 | AD50: 13 | AE50: 14
B51: K | C51: M | D51: N | F51: C | G51: D | H51: F | K51: H | Y51: 4 | Z51: 5 | AA51: 7 | AB51: 9 | AC51: 12 | AD51: 14 | AE51: 15
B52: L | C52: N | D52: P | F52: D | G52: E | H52: G | K52: J | Y52: 4 | Z52: 5 | AA52: 8 | AB52: 10 | AC52: 13 | AD52: 15 | AE52: 16
B53: M | C53: P | D53: Q | F53: D | G53: E | H53: G | K53: J
B54: N | C54: Q | D54: R | F54: D | G54: E | H54: H | K54: K

Sheet Packaging Instructions
B1: =IF(TDPFAT<>"TDP Package","Packaging","(Proposed) Packaging Procedure") -> Packaging | N1: OPI
B2: QUP: | D2: 1 | E2: Pre Mthd: | G2: =[0]!MCode -> 0 | H2: Packaging Data | I2: Comments
B3: Clng/Dry: | E3: Presv Mat: | I3: =IF(G2="ASTM D3951","This shipment requires commercial standard packaging for foreign military sale (FMS) and fully sealed on all opening sides. RFID Label may not be required. Attached (2) copies of DD250 to Packing List." &" (See contract Section D for 252.211-7006 RFID required.)","") ->  | N3: A
B4: Wrap Mat: | E4: Cush/Dunn Mat: | N4: E
B5: Cush/Dunn Thkness: | E5: Unit Cont: | N5: F
B6: OPI: | E6: Intrmdte Cont: | N6: M
B7: Intrmdte Cont Qty: | E7: Packing Code: | N7: O
B8: Packing Level: | E8: Special Markings Code: | N8: P
B9: Supplemental Packaging and Marking Requirements | N9: R
B13: MIL-STD-2073-1D Packaging Requirements
B14: Quantity Per Unit Pack: | L14: =E14 -> 
B15: Method of Preservation: | L15: =E15 -> 
B16: Cleaning and Drying:
B17: Preservation Material:
B18: Wrapping Material:
B19: Cushioning Material:
B20: Cushioning Thickness:
B21: Unit Container:
B22: OPI:
B23: Intermediate Container:
B24: Intermediate Cont. Qty.:
B25: Packing Code:
B26: Unit Container Level:
B27: Special Markings:
B28: Supplemental Packaging and Marking Requirements: | M28: =B28 -> Supplemental Packaging and Marking Requirements:

Sheet RFP Mailing Template (hidden)
A1: =Company&" ("&Cage&")" -> Industrial Welding & Engineering (3NBK9)
A2: =Street -> 747 Carle Ave.
A3: =State -> Lewis Center, OH 43035
A4: POC: | B4: =Inspector -> 0 | C4: SOLICITATION NUMBER:
B5: =Email -> iwe@columbus.rr.com | C5: SPM4A5-11-R-1510
C6: DATE (YYMMDD) | D6: LOCAL TIME
C7: 2011-07-18 | D7: 14:00:00
E8: To: | F8: ATTN:
G9: DLA - Aviation Supply Chain
G10: =VLOOKUP(DLAGroup, DLATable, 2, FALSE) -> Aviation Supply Chain
G11: =VLOOKUP(DLAGroup, DLATable, 3, FALSE) -> 8000 Jefferson Davis Hwy
G12: =VLOOKUP(DLAGroup, DLATable, 4, FALSE) -> Richmond, VA 23297-5770

Sheet 831 Test Report - Cover Page (hidden)
A1: =VLOOKUP(Company, PicTable9, 2, FALSE) -> Picture2 | F1: =IF(TDPFAT="TDP Package","(SAR)/Tech Data Package",IF(TDPFAT="FAT Package","FAT Package","")) ->  | L1: COMPANY | M1: PHOTO
A2: =Company -> Industrial Welding & Engineering | K2: =IF(F1="(SAR)/Tech Data Package","<--Select a SAR Category.","") ->  | L2: MTC Engineering | M2: Pic41
A3: =Street -> 747 Carle Ave. | F3: =IF(Category<1,"",VLOOKUP(Category, CategoryTable, 2, FALSE)) ->  | L3: Industrial Welding & Engineering | M3: Picture2
A4: =State -> Lewis Center, OH 43035 | L4: MTC Engineering, LLC | M4: Pic41
A5: =Phone -> 614-883-6109 | F5: =IF(Category<1,"",VLOOKUP(Category, CategoryTable, 3, FALSE)) ->  | L5: LCG Machine & Tool | M5: Pic43
A6: =Fax -> email only | L6: Alannas Engineer | M6: Picture4
A7: =Email -> iwe@columbus.rr.com | L7: Westerville Mfg | M7: Pic45
A8: =Web -> www.iweohio.com | L8: Boehm Machine | M8: Boehm
L9: RC Industries, Inc. | M9: Picture 3
A10: DLA Assigned Report No.: | E10: =IF(TDPFAT<>"TDP Package","Report No.:","TDP Ref No.:") -> Report No.: | F10: =REPLACE(Contract,1,12,)&"-"&WO -> - | L10: DSE Development | M10: Picture 22
F11: Revision No.: | H11: N/C | L11: DuLond Tool & Engineering, Inc. | M11: Picture 1
L12: Fourply Design House | M12: Picture 6
A13: =IF(TDPFAT<>"TDP Package","REPORT OF TEST ON","(Proposed) 831 TEST REPORT ON") -> REPORT OF TEST ON | C13: Description: | D13: =Name -> 0 | L13: Lewis Center Mfg. | M13: Picture 11
C14: NSN: | D14: =NSN -> 0 | L14: Maven Engineering Corporation | M14: Picture 9
C15: P/N: | D15: =PN -> 0 | L15: ADJ Finishing | M15: Picture 4
C16: Rev: | D16: =REV -> 0 | L16: GTA Containers Inc. | M16: Picture 12
L17: Acromil Corp. | M17: Picture 20
L18: C. O. W. Industries, Inc. | M18: Picture6
C19: =IF(TDPFAT<>"TDP Package","TEST PREFORMED BY:","PROJECT MANAGER FOR TEST:") -> TEST PREFORMED BY:
L20: CATEGORY
C21: =IF(TDPFAT<>"TDP Package","TEST AUTHORIZED BY:","GOVERNMENT CONTACT:") -> TEST AUTHORIZED BY:
C22: =PCO -> 0 | L22: Category I | M22: Same Part | N22: Item previously provided to Original Equipment Manufacturer (OEM).
B23: =IF(TDPFAT="TDP Package","SOLICATION NO.:","CONTRACT NO.:") -> CONTRACT NO.: | D23: =Contract -> 0 | L23: Category II | M23: Similar Part | N23: Item is similar to item previously provided to the OEM or Department of Defense (DoD).
L24: Category III | M24: New Manufacturer | N24: Manufacturer has not provided any item similar to item being solicited to the OEM or DoD.
A25: =IF(TDPFAT="TDP Package","(Proposed)"," ") ->  | L25: Category IV
C26: Date | E26: Signature | G26: Department | L26: Category V
A27: Test Engineer | G27: Engineering | L27: Category VI
A28: Technician | G28: Quality
A29: Test Initiated
A30: Test Completed
A31: Report Written By | G31: Quality
A32: Government Rep. (If Applicable) | G32: DCMA-QAR

Sheet 831 - Table of Content (hidden)
A1: TABLE OF CONTENTS
A3: SECTION | B3: TITLE
A5: 1.0 | B5: REASON FOR TEST
A6: 1.1 | B6: DESCRIPTION OF TEST SAMPLE
A7: 1.2 | B7: DISPOSITION OF TEST SAMPLE
A8: 1.3 | B8: DESCRIPTION OF TEST APPARATUS
A9: 1.4 | B9: SUMMARY RESULTS
A10: 2 | B10: COC
A11: 3 | B11: INSPECTION PRINTS WITH INSPECTION DATA REPORTS
A12: 4 | B12: MATERIAL CERT
A13: 5 | B13: PROCESSING CERTS
A14: 6 | B14: DD250
A15: 7 | B15: DD1122
A17: STATEMENT OF WORK
A19: SECTION | B19: REASON FOR WORK
A20: 1.0 | B20: =IF(TDPFAT="FAT Package","CONTRACT CALLS OUT FOR FAT REPORT FOR 1 TE, CONSISTING OF " &Qty_Packages &" UNITS.","CONTRACT CALLS OUT FOR 1 SHIPMENT CONSISTING OF " &Qty_Packages &" UNITS.") -> CONTRACT CALLS OUT FOR 1 SHIPMENT CONSISTING OF UNITS.
B21: FOR DIMENSIONAL AND PROCESS REQURIEMENTS PER PRINT
B25: DESCRIPTION OF SAMPLE
A26: 1.1 | B26: ="ONE REPORT ON 1 TE, "&"("& Qty_Packages &")" &" SAMPLES TO PRINT AND CONTRACT" -> ONE REPORT ON 1 TE, () SAMPLES TO PRINT AND CONTRACT
B27: =PN -> 0
B30: DISPOSITION OF SAMPLE
A31: 1.2 | B31: =IF(Qty_Packages=1,"1 SAMPLE WILL BE SHIPPED",Qty_Packages&" SAMPLES WILL BE SHIPPED") -> SAMPLES WILL BE SHIPPED
B35: DESCRIPTION OF TEST APPARATUS
A36: 1.3 | B36: DIMENSIONS WILL BE CHECKED WITH A CALIPER,
B37: HEIGHT GAGE, RADIUS GAGE, & GAGE PINS
B40: SUMMARY OF TEST RESULTS
A41: 1.4 | B41: ALL DIMENSIONS WERE CHECKED AND WERE WITH IN THE TOLERANCES SPECIFIED BY THE PRINT.
B43: ALL MATERIAL AND PROCESS CERTS WERE REVIEWED AND ACCEPTED

Sheet 831 - Appendix (hidden)
A1: APPENDIX
A4: CERTS FOR | B4: =IF(TDPFAT="TDP Package","[Proposed] CERTIFIED BY (Company)","CERTIFIED BY (Company)") -> CERTIFIED BY (Company)
A5: Material(s)

Sheet 831 Test Report Tech Data Cert (hidden)
A1: CERTIFICATION
A3: ="I hereby represent and certify that thetechnical data that "&Company&"intends to use or has used to manufacture "&Company&", "&PN&" ("&Name&") under and resulting DoD Contract, was obtained or" -> I hereby represent and certify that thetechnical data that Industrial Welding & Engineeringintends to use or has used to manufacture Industrial Welding & Engineering, () under and resulting DoD Contract, was obtained or
A4: ="developed in a legal mannar and that "&Company&" has the right to use the the data to manufacture "&PN&" ("&Name&") for the U. S. Government. All appicable specifications required to manufacture this item are in the possession of "&Company&"." -> developed in a legal mannar and that Industrial Welding & Engineering has the right to use the the data to manufacture () for the U. S. Government. All appicable specifications required to manufacture this item are in the possession of Industrial Welding & Engineering.
A5: ="Signature: ______________________________ Date: (______________)" -> Signature: ______________________________ Date: (______________)
A6: =Inspector&" - Engineer/Project Manager" -> - Engineer/Project Manager
A8: ACTS of DISCLAIMER
A10: Disclaimer of liability from Act of Transmittal
A12: When Government drawings, specifications, or other data are used for any purpose other than in connection with a definitely related Government procurement operation, the United States Government thereby incurs no responsibility nor any obligation whatsoever; and the fact that the Government may have formulated, furnished, or in any way supplied the said drawings, specifications, or other data, is not to be regarded by implication or otherwise as in any manner licensing the holder or any other person or corporation, or conveying any rights or permission to manufacturer, use or sell any patented invention that may in any way be related thereto.
A13: Any information disseminated by the offices of data interchange programs is intended to promote test data utilization in the national interest among groups engaged in missile, space vehicle and related programs.
A14: Dissemination of said information does not imply verification or endorsement of the information. The originator, in submitting the material is acting in accordance with the requirements of his contract, and neither the originator nor the disseminator assumes any liability to parties adopting any product, process or practice based upon the usage of the information. Its presenting the success or failure of one (or several) part number(s), model(s), lot(s) under specific environment and output requirements, does not imply that other products not herein reported on are either inferior or superior.
A16: Omission of Charges for Follow-on Access
A18: Any compliance by the report originator with requests from recipients for more detailed information on reports originated under Government contracts will be considered within the scope of present contractual obligations. Compliance with such requests will be at the discretion of the report originator and will be performed without cost or obligation to the requestor unless otherwise negotiated in advance.
A20: Reproduction of this Report
A22: Reproduction or duplication of any portion of this report is expressly forbidden, except by those contractors receiving it directly from authorized data interchange offices or the originator , for their internal use or the use of their subcontractors. Reproduction or display of all or any portion of this material for any sales, advertising or publicity purposes is prohibited.
A25: =DwgRvw -> 00:00:00
A27: Commander
A28: US Army Aviation and Missile Command
A29: Project Management Office Address
A30: Building XXXX
A31: Redstone Arsenal, Alabama 35898-5000
A33: To Whom It May Concern:
A35: ="Our company, "&Company&", would like to become an approved source per the CASL as an Actual Manufacturer for the following item:" -> Our company, Industrial Welding & Engineering, would like to become an approved source per the CASL as an Actual Manufacturer for the following item:
A37: ="Part Number: "&PN -> Part Number:
A38: ="NSN: "&NSN -> NSN:
A39: ="Nomenclature: "&Name -> Nomenclature:
A41: We also wish to become approved for the following subassembly parts:
A42: Part Number: <Insert Part Number>
A43: NSN: <Insert NSN>
A44: Nomenclature: <Insert Nomenclature>
A46: Our company information is as follows:
A48: =Company&" ("&Cage&")" -> Industrial Welding & Engineering (3NBK9)
A49: =Street -> 747 Carle Ave.
A50: ="Telephone: "&Phone -> Telephone: 614-883-6109
A51: ="Fax: "&Fax -> Fax: email only
A53: Our Quality System is based on the following:
A54: ISO9002 Tailored and has been audited by our local Government QAS and accepted as complient.
A56: A current copy of our Quality Manual is available upon request.
A58: If you have any questions concerning this submittal, please contact the noted Engineer/Project Manager noted on page 1 of the attached (SAR)/TDP Package.
A60: Sincerely,
A62: Tony Casillas | C62: <----Select Mgr Name

Sheet QA 001 CAR (hidden)
A1: =Company -> Industrial Welding & Engineering | E1: CAR
A2: =Street -> 747 Carle Ave. | E2: Corrective Action Report
A3: =State -> Lewis Center, OH 43035 | C3: C.A.R. Number: | D3: =IF(QDR>1,QDR," ") ->  | E3: Issue Date: | F3: =IF(QDRDate>1,QDRDate," ") -> 
A4: =Email -> iwe@columbus.rr.com | E4: Work Order Number: | F4: =WO -> 0
A5: ="Phone: "&Phone -> Phone: 614-883-6109 | E5: Purchase Order Number: | F5: =Contract -> 0
A6: ="Fax: "&Fax -> Fax: email only | E6: # Attached Pages:
B7: Circle one below:
A8: Initiated by: | E8: (If multiples, see below)
A9: Issue for: | D9: Part Number
D10: Part/Process Description:
A12: Part Number | B12: Description | C12: Order Qty | D12: Sample Size | E12: Qty Rejected | F12: Qty Accepted
A13: =PN -> 0 | B13: =Name -> 0 | C13: =QTY -> 0
A19: DISCREPANCY:
A20: Item | B20: Discrepancy
A21: 1
A22: 2
A23: 3
A24: 4
A25: 5
D30: Quality Assurance Representative | F30: Date
A32: ROOT CAUSE:
A33: Item | B33: Root Cause
A34: 1
A35: 2
A36: 3
A37: 4
A38: 5
C41: Department Representative | E41: Title | F41: Date
A42: CORRECTIVE ACTION TO BE INITIATED:
A43: Item | B43: Corrective Action | F43: Effectively
A44: 1
A45: 2
A46: 3
A47: 4
A48: 5
A51: Comments: | C51: Department Representative | E51: Title | F51: Date
A53: Follow up activity:
B54: 1. Audit Review: | C54: Date:
B55: 2. Additional Action Required:
B56: (If Yes, Define):
B59: 3. Final Effectively Date: | E59: QA Approval:
B61: CAR CLOSED: | E61: Date:

Sheet QA 002 Audit (hidden)
A1: Date: | C1: Audit #
A2: Subject: | C2: Auditor:
A4: Contact List | B4: Name | C4: Title | D4: Department
A9: Reference/Items Inspected
A21: Findings:
B25: Signature | C25: Date | D25: Corrective Action Request Required
A26: Auditor:
A27: Dept. Supervisor: | D27: CAR Closed Date
A28: CAR.No. | D28: Signatures/Date
A29: Date: | D29: MFG . Manager
D30: GEN. Manager

Sheet QA 005 QDR (hidden)
B2: =Company -> Industrial Welding & Engineering | F2: QDR (Quality Discrepancy Report)
B3: =Street -> 747 Carle Ave.
B4: =State -> Lewis Center, OH 43035
B5: Phone: | C5: =Phone -> 614-883-6109 | F5: Control #: | G5: =IF(QDR>1,QDR," ") -> 
B6: Fax: | C6: =Fax -> email only | H6: =Email -> iwe@columbus.rr.com
B8: CONTRACT | C8: =Contract -> 0 | F8: QTY. RE'C | G8: QTY. REJ.
B9: PART NAME | C9: =Name -> 0 | F9: =QTY -> 0
B10: P/N | C10: =PN -> 0
B11: REV | C11: =REV -> 0
B12: NSN | C12: =NSN -> 0
B14: DESCRIPTION OF DEFICIENCY
B20: DISPOSITION | C20: REWORK | E20: USE AS IS | G20: SCRAP
B22: AUTHORIZED SIGNATURE | G22: DATE
B24: VENDOR TO SUPPLY IN WRITING THE CAUSE OF DEFICIENCY AND THE CORRECTIVE ACTION
B25: TO BE TAKEN TO ELIMINATE RECURRENCE IN THE FUTURE | G25: YES
G26: NO
B28: VENDOR NOTIFICATION
B30: NAME | E30: DATE
B31: INVOICE# | E31: PACKING SLIP
B32: SHIP METHOD | E32: ACCOUNT
B34: FIRM DELIVERY OF CORRECTED MATERIAL
B36: COMMENTS
B40: SHIPPING REQUEST
B42: SHIP TO
B45: ATTN
B46: REQUESTED BY | E46: DATE
B47: SHIPPED BY | E47: DATE

Sheet QA 009 FAI (hidden)
A1: Contract/PO Number: | E1: =Contract -> 0 | I1: Job Number: | K1: =WO -> 0
A2: Inspection Date: | D2: =FAIDate -> 00:00:00 | J2: Page | K2: 1 | L2: Of
A4: Part Number | F4: Rev | G4: Part Name | J4: Lot Qty | L4: FAI Qty
A5: =PN -> 0 | F5: =REV -> 0 | G5: =Name -> 0 | J5: =QTY -> 0
A6: Customer: | I6: Material:
A8: Item | B8: BP Zone | C8: Drawing Dimension | E8: Actual Dimension | I8: Accept | K8: Comments
I9: Yes | J9: No
A28: Process Specs and Stds | C28: Processing | G28: Accept | I28: Processing | L28: Accept
G29: Yes | H29: No | L29: Yes | M29: No
A30: Heat Treat
A31: Pre-Treat
A32: Prime/Finish
A33: Weld/Etc.
A34: Other:
A35: Other:
A37: Inspector: | J37: Date:

Sheet Commercial Invoice (hidden)
A1: =VLOOKUP(Company, PicTable, 2, FALSE) -> Picture2 | D1: =Company -> Industrial Welding & Engineering | H1: INVOICE | L1: COMPANY | M1: PHOTO
D2: =Street -> 747 Carle Ave. | L2: MTC Engineering | M2: MTC
D3: =State -> Lewis Center, OH 43035 | G3: Number: | H3: =WO -> 0 | L3: Industrial Welding & Engineering | M3: Picture2
D4: ="Phone: "&Phone -> Phone: 614-883-6109 | H4: =Web -> www.iweohio.com | L4: MTC Engineering, LLC | M4: MTC
D5: ="FAX: "&Fax -> FAX: email only | F5: eMail: | G5: =Email -> iwe@columbus.rr.com | L5: LCG Machine & Tool | M5: LCG
L6: Alannas Engineer | M6: Picture4
B7: SOLD TO: | F7: SHIP TO: | H7: (Circle if same) | L7: Westerville Mfg | M7: WMFG
C8: =Customer -> 0 | G8: =Customer -> 0 | L8: Boehm Machine | M8: Boehm
C9: =CustomerStreet -> 0 | G9: =CustomerStreet -> 0 | L9: RC Industries, Inc. | M9: Picture 3
C10: =CustomerState -> 0 | G10: =CustomerState -> 0 | L10: DSE Development | M10: Picture 24
C11: =CustomerPhone -> 0 | G11: =CustomerPhone -> 0 | L11: Maven Engineering Corporation | M11: Picture 9
L12: ADJ Finishing | M12: Picture 4
B13: Salesman: | D13: =IF(Company="MTC Engineering","Tony Casillas, Sr. Engineer",IF(Company="MTC Engineering, LLC","Tony Casillas, POC/Sr. Engineer",IF(Company="Industrial Welding & Engineering","Brian Hoheisel, Owner",IF(Company="Westerville Manufacturing","Dietmar Hoheisel, Owner",IF(Company="Alannas Engineer","Severino Perez, Owner","Signature"))))) -> Brian Hoheisel, Owner | G13: Invoice Date: | H13: =ShipDate -> 00:00:00 | L13: Fourply Design House | M13: Picture 10
B14: Terms: | D14: TBD | G14: Ship Date: | H14: =ShipDate -> 00:00:00 | L14: Lewis Center Mfg. | M14: Picture 11
B15: Shipped Via: | D15: UPS | G15: FOB Point | H15: =IF(FOB="S","Origin",IF(FOB="D","Dest"," ")) ->  | L15: Acromil Corp. | M15: Picture 20
B16: Customer Order #: | D16: =Customer_PO -> 0 | L16: C. O. W. Industries, Inc. | M16: COW
B18: ITEM # | C18: QTY. | D18: DESCRIPTION | H18: PRICE EACH | I18: TOTAL
B19: =IF(C19>0.1,1," ") ->  | C19: =QTY -> 0 | D19: =Name -> 0 | F19: Rev | G19: =REV -> 0 | H19: =Unit_Cost -> 0 | I19: =C19*H19 -> 0
B20: =IF(C20>0.1,B19+1," ") ->  | D20: =PN -> 0 | I20: =IF(H20>0.0001,C20*H20," ") -> 
B21: =IF(C21>0.1,MAX(B19:B20)+1," ") ->  | I21: =IF(H21>0.0001,C21*H21," ") -> 
B22: =IF(C22>0.1,MAX(B19:B21)+1,"") -> 1 | C22: =IF(Customer_PO>0.1,1,"") ->  | D22: =IF(Customer_PO>0.1,"Copies of Processing C of C's","General C of C - No Charge") -> General C of C - No Charge | H22: =IF(Customer_PO>0.1,25,0) -> 0
B23: =IF(C23>0.1,MAX(B19:B22)+1," ") ->  | D23: =IF(H22>25,"Includes Processing Procedures","") -> 
B24: =IF(C24>0.1,MAX(B19:B23)+1," ") -> 
B25: =IF(C25>0.1,MAX(B19:B24)+1," ") -> 
B26: =IF(C26>0.1,MAX(B19:B25)+1," ") -> 
B27: =IF(C27>0.1,MAX(B19:B26)+1," ") -> 
B28: =IF(C28>0.1,MAX(B19:B27)+1," ") -> 
B29: =IF(C29>0.1,MAX(B19:B28)+1," ") -> 
B30: =IF(C30>0.1,MAX(B19:B29)+1," ") -> 
B31: =IF(C31>0.1,MAX(B19:B30)+1," ") -> 
B32: =IF(C32>0.1,MAX(B19:B31)+1," ") -> 
G33: SUB TOTAL: | I33: =SUM(I19:I32) -> 0
B34: Thank you for the order. | G34: SHIPPING/HANDLING:
G35: PREVIOUS AMOUNT:
B36: =ShipDate -> 00:00:00 | G36: CREDIT:
B37: Date | D37: =IF(Inspector>=1,"Signature"&" - "&Inspector,"Signature") -> Signature | G37: AMOUNT DUE: | I37: =SUM(I33:I36) -> 0

Sheet QA 011-Com - Packing List (hidden)
H2: PACKING LIST
B3: SHIP TO: | F3: FROM: | H3: =Web -> www.iweohio.com
B4: =Customer -> 0 | F4: =Company -> Industrial Welding & Engineering
B5: =CustomerStreet -> 0 | F5: =Street -> 747 Carle Ave.
B6: =CustomerState -> 0 | F6: =State -> Lewis Center, OH 43035
B7: =CustomerPhone -> 0 | E7: Ph: | F7: =Phone -> 614-883-6109 | G7: Fx: | H7: =Fax -> email only
G8: eMail: | H8: =Email -> iwe@columbus.rr.com
B10: "A Defense Contractor for Machined and Fabricated Spare Parts and Assemblies."
B12: CONTRACT/PO #: | D12: =IF(Customer_PO>=Contract,Customer_PO,Contract) -> 0 | F12: SHIPPING DATE: | H12: =AcceptDate -> 00:00:00
B14: QUANTITY: | D14: =QTY -> 0 | F14: ITEM DESCRIPTION: | H14: =Name -> 0
F15: P/N | H15: =PN -> 0
F16: REV | H16: =REV -> 0
F17: NSN: | H17: =NSN -> 0
F18: WORK ORDER#: | H18: =WO -> 0
B21: CONTRACT/PO #: | D21: =Contract -> 0 | G21: WORK ORDER#: | H21: =WO -> 0
B22: P/N | D22: =PN -> 0 | G22: REV | H22: =REV -> 0
B23: DESCRIPTION: | D23: =Name -> 0 | G23: NSN: | H23: =NSN -> 0
B24: QUANTITY: | D24: =QTY -> 0 | G24: SHIPPING DATE: | H24: =ShipDate -> 00:00:00
B27: ADDITIONAL NOTES OR COMMENTS:
B28: *CERTIFICATE OF COMPLIANCE ATTACHED
H35: =ShipDate -> 00:00:00
B36: =IF(Inspector>=1,"Signature"&" - "&Inspector,"Signature") -> Signature | H36: DATE

Sheet QA 010 QCP (hidden)
A1: WO: | B1: =WO -> 0 | C1: Quality Schedule: | E1: =QTY -> 0 | F1: Contract: | G1: =Contract -> 0
A2: Part No: | B2: =PN -> 0 | D2: Rev: | E2: =REV -> 0 | F2: Part Name: | G2: =Name -> 0
A3: **NOTE: All documentation must be at each machine or operation before submitting first piece to the Quality Auditor!!
A4: Quality Schedules: A = 1/Shift; B = 4/Shift; C = 1/Hour; D = 5/Hour; E = 1/25 Parts; F = 100% Inspection (*First and Last Piece Only)
A5: 1 | B5: 2 | C5: 3 | D5: 4 | E5: 5 | F5: 6 | G5: 7 | I5: 8 | J5: 9
A6: Operation | B6: Characteristic | C6: Drawing/Spec & Tolerance | D6: Sample Plan | E6: Inspection Equipment | F6: Recording Format | G6: Department Responsible | I6: Process Capability | J6: Reject Plan
D8: C = 0 | J8: MR
D9: C = 0 | J9: MR
D10: C = 0 | J10: MR
D11: C = 0 | J11: MR
D12: C = 0 | J12: MR
D13: C = 0 | J13: MR
D14: C = 0 | J14: MR
D15: C = 0 | J15: MR
D16: C = 0 | J16: MR
D17: C = 0 | J17: MR
D18: C = 0 | J18: MR
D19: C = 0 | J19: MR
D20: C = 0 | J20: MR
D21: C = 0 | J21: MR
D22: C = 0 | J22: MR
D23: C = 0 | J23: MR
D24: C = 0 | J24: MR
D25: C = 0 | J25: MR
A26: ALL | B26: SURFACE DEFECTS: Rust; Cracks; Burrs; Pulled Metal; Double Metal; Pitts; Dents; Weak Areas; Splits; Orange Peel; Slug & Die Marks | E26: VISL | F26: IDS | G26: ALL | I26: N/A | J26: MR
A27: ((Quality Control Plan is to Remain With Shop Order Planning Sheet))
E28: Calipers - Vernier | G28: VRCL | H28: Gauge - Taper | J28: TAGA
E29: Check Fixture | G29: CKFX | H29: -Telescope | J29: TELG
E30: Check Gauge | G30: CKGA | H30: -Thread Plug | J30: THPG
E31: Check Template | G31: CKTP | H31: -Thread Ring | J31: THRG
E32: Conductivity Meter | G32: COND | H32: -Pin | J32: PING
E33: Coordinate Measuring | G33: CMM | H33: Hardness Tester | J33: HDTE
E34: Machine - CNC | G34: CMMC | H34: Micrometer - Depth | J34: DMIC
E35: Dial Indicator | G35: DIIN | H35: -Inside | J35: IMIC
E36: Gauge - Ball | G36: BALG | H36: -Outside | J36: OMIC
E37: -Bore | G37: BOGA | H37: -Pin | J37: PMIC
E38: -Chamfer | G38: CFGA | H38: -Sht Metal | J38: SMMC
E39: -Countersink | G39: CSKG | H39: Olson Test | J39: OLSN
E40: -Depth | G40: DPGA | H40: Protractor | J40: PROT
E41: -Feeler | G41: FEGA | H41: Rule (Linear) | J41: RULE
E42: -Groove | G42: GRGA | H42: Scale (Weight) | J42: SCAL
E43: -Height | G43: HTGA | H43: Square | J43: SQVR
E44: -Hole | G44: HOGA | H44: Tape Measure | J44: TAPE
E45: -Radius | G45: RAGA | H45: Thickness Meter | J45: TKME
E46: -Ring | G46: RIGA | H46: Visual Inspection | J46: VISL
E47: -Snap | G47: SNGA | H47: - (A)ccept \ (R)eject

Sheet ME 001 SOP (hidden)
B1: =Company -> Industrial Welding & Engineering
G2: WO/Job Number: | I2: =IF(WO>0.1,WO," ") -> 
B3: =Street -> 747 Carle Ave. | G3: Due: | I3: =IF(Due_Date_CLIN>0.1,Due_Date_CLIN-14," ") -> 
B4: =State -> Lewis Center, OH 43035 | G4: Part Number: | I4: =UPPER(IF(PN>0.1,PN," ")) -> 
B5: Phone: | C5: =Phone -> 614-883-6109 | G5: Part Name: | I5: =PROPER(Name) -> 
B6: Fax: | C6: =Fax -> email only | H6: Rev: | I6: =UPPER(REV) -> 
B7: =Email -> iwe@columbus.rr.com | H7: Qty:
B9: Contract: | D9: =UPPER(Contract) ->  | G9: Main NSN: | H9: =NSN -> 0
B11: SHOP ORDER/REWORK SUPPLEMENTAL PLANNING SHEET
B13: If items to be reworked, describe defect:
B17: STEP | C17: ACTION | J17: COMPLETE
B18: 1
B19: =B18+1 -> 2
B20: =B19+1 -> 3
B21: 4
B22: 5
B23: 6
B24: 7
B25: 8
B26: 9
B27: 10
B28: 11
B29: 12
B30: 13
B31: 14
B32: 15
B33: 16
B34: 17
B35: 18
B36: 19
B37: 20
B39: Ordered By: | G39: DATE:
C40: TITLE: | D40: MRB/Project Manager
B42: APPROVED BY: | G42: DATE:
C43: TITLE: | D43: Inspector/Engineering

Sheet DDC Shpg Inst Reqt (hidden)
A1: Vendor Request for Shipping | H1: FAX: 717-770-2701
A2: Instructions | H2: Phone: 1-800-456-5507
A3: DDC Logistics Support | H3: E-Mail: delivery@dla.mil
A4: Non ESOC | D4: VENDOR DATA | H4: ESOC
A5: Company Name: | B5: =Company -> Industrial Welding & Engineering | F5: Requestor Name: | H5: =Inspector -> 0
A6: CAGE CODE: | B6: =Cage -> 3NBK9 | F6: Requestor Phone No.: | H6: =Phone -> 614-883-6109
A7: Origin Shipping Address: | B7: =Street -> 747 Carle Ave.
B8: =State -> Lewis Center, OH 43035 | F8: Requestor FAX No.: | H8: =Fax -> email only
A9: Requestor E-Mail: | B9: =Email -> iwe@columbus.rr.com | F9: Requestor Website: | H9: =Web -> www.iweohio.com
A10: Contract No./Call No. / Line Item No. | B10: =Contract -> 0 | F10: TCN/REQUISITION No.
A11: / Delivery Order:
A12: Supplemental Address/ Signal Code: | F12: Priority:
A13: Project Code: | F13: RDD (If known):
A14: Gross Weight: | F14: Nomenclature:
A15: No. / Type of Pieces: | F15: NSN (not req'd):
A16: Cube or Dimensions: | F16: HAZMAT Information PSN, Class, U.N., PG:
A17: SHIPPING INSTRUCTIONS
A18: POE/Ship To: | G18: POD (If Applicable):
G19: Special Delivery Instructions:
A20: Ultimate Consignee Address (Mark For):
A23: FOR FOB ORIGIN CONTRACTS, ENTER THE APPLICABLE CBL ANNOTATION ON THE BILL OF LADING:
A24: If the Government is shown as the consignor or the consignee, the annotation shall be: Transportation is for the Defense Logistics Agency and the actual total transportation charges paid to the carrier(s) by the consignor or consignee are assignable to, and shall be reimbursed by, the Government.
A25: If the Government is not shown as the consignor or the consignee, the annotation shall be: Transportation is for the Defense Logistics Agency and the actual total transportation charges paid to the carrier(s) by the consignor or consignee shall be reimbursed by the Government, pursuant to cost-reimbursement contract No. _______________________________. This may be confirmed by contacting Defense Distribution Center, 1-800-456-5507. Note to vendor: Add the name and address of the Contract Administration Office listed in the contract.
A26: Overseas shipments of hazardous materials are to be marked, labeled and certified based upon the final mode of shipment from CONUS. If the shipment is moving through a military aerial port of embarkation, the shipment shall be certified in accordance with the DLAI 4145.3, Preparing Hazardous Material for Military Air Shipments. DLAI 4145.3 is available on the internet at http://www.dlaps.hq.dla.mil/dlai/i4145.3.pdf. Shipments moving through surface/water ports shall be certified in accordance with the International Maritime Dangerous Goods (IMDG) Code.
A27: DDC SUPPORT
A28: Initials: | E28: Date/Time Rec’d:
A29: ESOC/NON ESOC: | B29: ESOC NON ESOC | E29: Date/Time Address Provided:
A30: TP: | E30: Date/Time FACTS Offer:
E31: IBS Booking Request Date/Time:
A32: Systems Problems: | E32: Area Code:

Sheet Discount Extension Request (hidden)
D1: =Company -> Industrial Welding & Engineering
B2: Facsimile Transmittal | E2: =Street -> 747 Carle Ave.
E3: =State -> Lewis Center, OH 43035
E4: ="Phone: "&Phone -> Phone: 614-883-6109
E5: ="Fax: "&Fax -> Fax: email only
D6: =Email -> iwe@columbus.rr.com | F6: =IF(Web>0.1,Web," ") -> www.iweohio.com
B9: To: | C9: DFAS Discount Extension Team | E9: From:
B10: Fax: | C10: 216-367-3360 | E10: Date: | F10: 2010-01-19
B11: Phone: | C11: 614-693-8507, #2, #2 | E11: Cover+: | F11: 3 | G11: Pages
B12: Subject: | C12: Contract Discount Payment Extension | F12: CAGE: | G12: =Cage -> 3NBK9
A16: Please extend the discount period on the following contract as noted below:
B18: CONTRACT NUMBER: | D18: =Contract -> 0 | F18: COMMENTS
B19: INVOICE NUMBER: | D19: 72101
B20: INVOICE AMOUNT: | D20: 6871.4
B21: RECEIVE/POSTED DATE: | D21: 2010-01-07
B22: ACCEPTANCE DATE: | D22: 2010-01-16
B23: CURRENT DISCOUNT TERMS: | D23: .5% 10, Net 30
B24: EXTENDED DISCOUNT DATE: | D24: 2010-01-22 | E24: Discount % offered: | F24: 0.01
B28: If you have additional questions, please feel free to call or email
B30: Sincerely,
B33: Signature | D33: Type Name - Title

Sheet TDP CDRL (hidden)
A1: CONTRACT DATA REQUIREMENTS LIST (CDRL) | N1: Form Approved
A2: (1 Data Item) | N2: OMB No. 0704-0188
A3: The public reporting burden for this collection of information is estimated to average 110 hours per response, including the time for reviewing instructions, searching existing data sources, gathering and maintaining the data needed, and completing and reviewing the collection of information. Send comments regarding this burden estimate or any other aspect of this collection of information, including suggestions for reducing the burden, to the Department of Defense, Executive Services Directorate (0704-0188). Respondents should be aware that notwithstanding any other provision of law, no person shall be subject to any penalty for failing to comply with a collection of information if it does not display a currently valid OMB control number. Please do not return your form to the above organization. Send completed form to the Government Issuing Contracting Officer for the Contract/PR No. listed in Block E.
A4: A. CONTRACT LINE ITEM NO. | D4: B. EXHIBIT | J4: C. CATEGORY:
J5: TDP: | L5: TM: | N5: OTHER:
A6: D. SYSTEM/ITEM | F6: E. CONTRACT/PR NO. | L6: F. CONTRACTOR
L7: =Company -> Industrial Welding & Engineering
A8: 1. DATA ITEM NO. | C8: 2. TITLE OF DATA ITEM | L8: 3. SUBTITLE | T8: 17. PRICE GROUP
A11: 4. AUTHORITY (Data Acquisition Document No.) | H11: 5. CONTRACT REFERENCE | M11: 6. REQUIRING OFFICE | T11: 18. ESTIMATED
T12: TOTAL PRICE
A13: 7. DD 250 REQ | B13: 9. DIST STATEMENT | E13: 10. FREQUENCY | I13: 12. DATE OF FIRST SUBMISSION | M13: 14. DISTRIBUTION
B14: REQUIRED | M14: a. ADDRESSEE | P14: b. COPIES
A15: 8. APP CODE | E15: 11. AS OF DATE | I15: 13. DATE IF SUBSEQUENT SUBM. | P15: Draft | Q15: Final
Q16: Reg | R16: Repro
A17: 16. REMARKS
M46: 15. TOTAL ▬▬▬▬►
A47: G. PREPARED BY | G47: H. DATE | K47: I. APPROVED BY | P47: J. DATE
A48: PREPARER'S NAME, AIR-XXXX | K48: PD'S NAME, AIR-XXXX

Sheet Packaging Waiver Request (hidden)
A1: FROM: | B1: =Company -> Industrial Welding & Engineering | E1: Name: | H1: Phone: | K1: Date:
A2: TO: | B2: DSCC Packaging | E2: Name: | H2: Phone: | K2: Date:
A4: REQUEST FOR PRESERVATION, PACKAGING, PACKING & MARKING WAIVER BY VENDOR
A6: Contract #: | C6: =Contract -> 0 | F6: CLIN's Effected::
A8: NSN: | B8: =NSN -> 0 | E8: P/N: | F8: =PN -> 0 | J8: Contractor’s CAGE: | L8: =Cage -> 3NBK9
A9: Contractor's POC & Phone #: | D9: =Inspector&" - "&Phone -> - 614-883-6109 | I9: Fax: | J9: =Fax -> email only
A10: Item weight and dimensions: | D10: WT: | F10: Length: | H10: Width: | J10: Heigth:
A11: Item (material) composition: | H11: ESD Sensitive: | J11: (Yes/No)
A12: Proposed Packaging Design attached.: | F12: YES | H12: NO | I12: Attachments:
A13: Unit Container is: | I13: (If fiberboard container specify the following information:)
B14: Bursting Strength:
B15: Stacking Strength:
D16: Single Wall: | F16: Double Wall: | J16: Triple Wall:
A17: Exterior Container is: | G17: (ie. Bag, Fiberboard box, Wood box, Crate, etc)
A19: RECEIVING LOCATIONS
B20: CLIN | C20: Location | D20: Quantity | F20: CLIN | G20: Location | H20: Quantity | J20: CLIN | K20: Location | L20: Quantity
A24: Military requirements on PR: | D24: SEE ATTACHED. | F24: (Must include a complete copy of solicitation/contract and offeror’s documentation.)
I25: Photo
A26: Vendor proposes to comply with:
B28: a. MIL-STD 2073 - 1E | F28: YES | H28: NO
B29: b. Quantity Unit Pack (QUP) | F29: YES | H29: NO
B30: c. MIL-STD 129 Marking | F30: YES | H30: NO
B31: d. Barcode (AIM BC-1) | F31: YES | H31: NO
A35: Additional Remarks/Comments/Reasons for requesting waiver:
A38: **Please provide a copy of the completed form to DSCC-VSP via mail, e-mail (packaging@dscc.dla.mil) or facsimile 2-1901.**
A40: Waiver has been: | F40: (Letter will be sent to applicable depots, upon receipt of contract number. Buyer is required to follow up & provide contract number to VSP. Contract number required to request depot to properly package IAW military packaging requirements within CTDF. Letter also notifies depot of authorized packaging waiver and ensures no Reports of Discrepancy shall be issued to Center on this contract and specified CLINs.)
D41: Approved
D42: Declined | F42: Reason:
A45: Authorizing Packaging Specialist Signature: | H45: DSCC-VSP Phone #: | K45: Date:
A47: DSCC.Packaging@dla.mil

Sheet FAT Waiver Letter (hidden)
A1: =Company -> Industrial Welding & Engineering
A2: =Street -> 747 Carle Ave.
A3: =State -> Lewis Center, OH 43035
A4: =Phone -> 614-883-6109 | H4: =NOW() -> 2015-01-07T11:27:39.020
A5: =Fax -> email only
A6: =Email -> iwe@columbus.rr.com | F6: =IF(Web>0,Web," ") -> www.iweohio.com
A8: FIRST ARTICLE WAIVER VALIDATION SUMMARY
A10: 1 | B10: CURRENT ACQUISITIOIN INFORMATION
B11: Buyer’s name: | F11: =PCO -> 0
B12: Solicitation/Contractor No.: | F12: =Contract -> 0
B14: NSN: | D14: =NSN -> 0
B15: NOUN: | D15: =Name -> 0
B16: P/N: | D16: =PN -> 0
B17: Drawing No./Revision Level: | F17: =PN&" - Rev "&REV -> - Rev
A19: 2 | B19: TYPE OF WAIVER REQUEST
C20: Partial Waiver | F20: Waiver of only specific test(s) of the First Article Test as required by the TDPL and/or solicitation as noted below:
C23: Full Waiver | F23: Waiver of all First Article Testing as required by the TDPL and/or solicitation.
A25: 3 | B25: JUSTIFICATION TO SUPPORT WAIVER REQUEST
C26: a. | D26: Successful completion of a First Article Test on a recent contract for the same item(s):
D27: Contract number and date of the First Article Test acceptance.
G28: Date:
D29: Above contract was manufactured at the same facilities in which the current item would be manufacturered and/or assembled?
E30: Yes | G30: No, As noted below:
C33: b. | D33: Successful completion of a First Article Test on a similar item on a recent contract and the item has been tested on the same or substantially similar specification(s) as those herein referenced.
D36: Contract number | G36: SPM4A7-09-M-4316
D37: Nomenclature | G37: Swivel, Hydraulic, Landing Gearing
D38: Part Number | G38: 16H1717-809
D39: NSN | G39: 1650-01-053-3667
D40: Date of First Article Test Approval | H40: 2011-07-13
D41: Major differences between the similar item and the item being procured are:
D42: There is only one distinct difference between a 16H1717-809/810 and a 16H1717-801/802. 16H1717-809/810 requires a 16H1716-21 base. The 16H1717-801/802 requires a 16H1716-13 base. The pressure, flow and torque test are all per ECN661H6.
D43: Attachements:
D44: FAT Approval letter and test reports are attached.
D46: Above contract was manufactured at the same facilities in which the current item would be manufacturered and/or assembled?
E47: Yes | G47: No, As noted below:
C50: c. | D50: Material has been in continuous production. Last production run and date of last successful First Article Test. Documentation attached.
D53: Contract number and date of the First Article Test acceptance.
G54: Date:
D55: Above contract was manufactured at the same facilities in which the current item would be manufacturered and/or assembled?
E56: Yes | G56: No, As noted below:
C60: d. | D60: Recent and successful performance of a first article test on the next higher assembly. A waiver will eliminate duplication of testing on the lower assembly. The following is the next higher assembly and attach supporting documentation:
D64: Contract number | G64: SPM4A7-09-M-4316
D65: Nomenclature | G65: Swivel, Hydraulic, Landing Gearing
D66: Part Number | G66: 16H1717-809
D67: NSN | G67: 1650-01-053-3667
D68: Date of First Article Test Approval | H68: 2011-07-13
D69: Justification why duplicate testing is unnecessary:
D70: There is only one distinct difference between a 16H1717-809/810 and a 16H1717-801/802. 16H1717-809/810 requires a 16H1716-21 base. The 16H1717-801/802 requires a 16H1716-13 base. The pressure, flow and torque test are all per ECN661H6.
D71: Attachements:
D72: FAT Approval letter and test reports are attached.
C75: e. | D75: Other. A waiver or partial waiver of the FAT is being requested based on the following:
A78: 4 | B78: OTHER PERTINENT INFORMATION
C79: a. | D79: There are quality issues which affect the fit, form, or function of the item being procured, which may not be known by the Government as noted below.
C84: b. | D84: There have been changes made to the item, processes or subcontractors used to manufacture the item, which may not be known by the Government as noted below:
A89: 5 | B89: CERTIFICATION OF FACT
B90: The submitter, as an authorized agent of the company herein list below, certifies that the above statements and facts to be true and correct to the best of said agents’ knowledge and ability.
B92: Signature:
B93: Printed Name:
B94: Title: | E94: Project Manager
B95: Company Name: | F95: =Company -> Industrial Welding & Engineering
B96: Company Address: | F96: =Street&", "&State -> 747 Carle Ave., Lewis Center, OH 43035
B97: Phone Number: | E97: =Phone -> 614-883-6109
B98: Cage Code: | E98: =Cage -> 3NBK9

Sheet VECP (hidden)
A1: Note: Items with a "*" indicate areas or heading zones that are to be filled in by the Government only
A3: *Date Received by Government: | C3: *Government Representative: | D3: *VECP No: | F3: *Approved?
F4: *YES / NO
A5: Contract No: | C5: *Instant Contract Savings: | D5: *Government Share: | F5: *
C6: $ | D6: $
A8: From (Prime Contractor): | D8: Submit Date:
A10: To (Contracting Officer): | D10: Date change order must be issued to achieve savings: | I10: Yes
A11: Project Name: | D11: Contractor Representative: | I11: No
A12: Location of Work: | D12: Phone/FAX:
A13: It is recommended that the contractor examine the Contracting Officer Evaluation Section to determine if their proposal fits the criteria for a Value Engineering Change Proposal (VECP). If the it does not meet these requirements, they may need to submit this proposal under a different clause of the contract.
A14: Item No. | B14: INFORMATION REQUIRED OF THE CONTRACTOR | F14: YES / NO
A15: (When the answer to any of the following questions is "YES", include an explanation in remarks section
A16: 1 | B16: Does this proposed change affect the time of completion of the contract as stated in the general clauses?
A17: 2 | B17: Has the contractor previously submitted this proposed change to this office or any other Government Agency?
A18: 3 | B18: Does this change affect other costs to the Government, such as Government- furnished property or costs of contract related items?
A19: 4 | B19: Does this proposed change increase the maintenance or operation costs of original or proposed items?
A20: 5 | B20: Is a subcontractor involved in this proposed change to the original contract?
A21: 6 | B21: Does the contractor intend to restrict the Government's right to use any data described in this proposed change?
A22: CHANGES AND/OR REVISIONS TO DRAWINGS AND SPECIFICATIONS
A23: (Attach applicable contract drawings and specifications, including shop drawings or literature with all changes clearly marked.)
A24: Remarks (add sheets as needed):
A26: SUMMARY OF PROPOSED CHANGE (add sheets if necessary)
A28: Description of original (before change) contract condition (include discussion of any foreseen problems):
A30: Description of after change to contract requirement:
A32: Describe advantages of making change: | D32: Describe disadvantages of making change:
A34: Describe any known or foreseen risks associated with making change:
A37: CONTRACTOR'S COST SUMMARY ESTIMATE
A38: Cost must be estimated in accordance with the change provisions contained within the general clauses of the contract. Attach detailed estimates (item, quantity, price, and totals) of the before and after condition for the change proposal and its development and implementation.
A39: ID: | B39: Description | E39: Total Dollar Amount
A40: A. | B40: Original:
A41: B. | B41: Proposed:
A42: C. | B42: Construction Savings (A-B):
A43: D. | B43: Gross Savings (C + Overhead + Other):
A44: E. | B44: Contractor development and implementation costs (if any):
A45: F. | C45: Instant Contract Savings (D-E):
A46: G. | B46: Government implementation costs (e.g., redesign, added inspections etc):
A47: H. | B47: Contractor's share of savings (55% of [F - G]):
A48: I. | B48: Contract Price Reduction (F - H):
A49: J. | B49: Total Actual Government Savings (include reason if not the same as (I) above, e.g., affect of collateral savings and contractor share of same):
A50: Thank you for submitting a VECP.
A51: Please remember that it is important to make this change proposal summary and cost assessment as complete and accurate as possible. If the proposal is accepted, the Government will use this information in generating its estimates and evaluation of the benefit to the public.
A52: *CONTRACTING OFFICER EVALUATION SECTION
A53: (Government Use Only)
A54: Item No. | B54: *REQUIRED CONTRACTING OFFICER EVALUATION | F54: YES / NO
A55: (The proposal will not qualify under the VE Incentive Clause if the answer to any of the following are "NO")
A56: 1 | B56: Does this proposed change originate voluntarily from an active contact by the contractor having the primary contract with the Government?
A57: 2 | B57: Does the proposal require a contract change by the Government Agency?
A58: 3 | B58: Does the proposed change result in an actual overall reduction in the contract price and/or estimated cost to the Government agency?
A59: 4 | B59: Does this proposed change involve a valid change in the contract. Invalid changes are, for example, changes in deliverable end item quantities only; research and development (R&D) end items, or R&D test quantities that are due solely to the result of previous testing of the involved contract; or to the contract type only.
A60: 5 | B60: Does this proposed change retain all of the essential functions or characteristics for which the original contract was awarded, without impairing, compromising, or eliminating any of the functions or characteristics?
A61: 6 | B61: Does the submitted contractor proposed change documents include enough information, pursuant to FAR 52-248-1(c), so that it can be evaluated, and are critical issues such as time requirements included?
A62: Note: | B62: Pursuant to the Federal Acquisition Regulations (FAR's), valid VECP's must be responded to within 45-days of receipt, or the time frame specified (if less than 45 days). Interior policy is to attempt to respond within 21-days.
A63: *GOVERNMENT ASSESSMENT OF CHANGE PROPOSAL
A65: (Attach additional contract drawings and specifications, with notations clearly marked, as needed)
A67: *Remarks (add sheets as needed):
A69: *GOVERNMENT SUMMARY OF PROPOSED CHANGE (add sheets if necessary)
A71: *Description of original (before change) contract condition (include discussion of any foreseen problems):
A73: *Description of after change to contract requirement:
A76: *Describe advantages of making change | D76: *Describe disadvantages of making change:
A78: *Describe any known or foreseen risks associated with making change:
A80: *GOVERNMENT COST SUMMARY ESTIMATE
A81: Cost must be estimated in accordance with the change provisions contained within the general clauses of the contract. Attach detailed estimates (item, quantity, price, and totals) of the before and after condition for the change proposal and its development and implementation.
A82: ID: | B82: Description | E82: Total Dollar Amount
A83: A. | B83: Original:
A84: B. | B84: Proposed:
A85: C. | B85: Construction Savings (A-B):
A86: D. | B86: Gross Savings (C + Overhead + Other):
A87: E. | B87: Contractor development and implementation costs (if any):
A88: F. | C88: Instant Contract Savings (D-E):
A89: G. | B89: Government implementation costs (e.g., redesign, added inspections etc):
A90: H. | B90: Contractor's share of savings (55% of [F - G]):
A91: I. | B91: Contract Price Reduction (F - H):
A92: J. | B92: Total Actual Government Savings (include reason if not the same as (I) above, e.g., affect of collateral savings and contractor share of same):
A93: K. | B93: Unreimbursed Government implementation (45% OF G):
A94: L. | B94: Added Government evaluations costs due to VECP review (e.g., legal review, estimating review, design reviews, etc.):
A95: M. | B95: Actual Government savings realized (J - K - L):
A97: NOTES:
A98: 1. When a proposal has a reasonable chance for full or partial acceptance, it is recommended that Government personnel advise and assist the contractor as necessary to obtain an acceptable proposal that actually saves Government resources (funds, etc.).
A100: 2. The cost of evaluating a valid VECP is not an implementation cost. It is a cost of the administration of the contract and may not be included in G above. However, if it determined that the evaluation costs are excessive and negate the benefits of the proposal, those costs can be considered as an evaluation parameter for acceptance or denial of the VECP (under the disadvantages section in the evaluation).
A102: 3. The regional and local Value Program Coordinator shall be informed upon receipt of any valid VECP. This is so they may report to OMB, Interior and others as to the number, status, and savings related to the VECP's pursuant to their responsibilities under PL 104-106, OMB A-131, DM369-1, and other laws and directives.
A104: 4. Government personnel should review FAR clauses and guidance documents as needed to maintain their understanding of the intent of the VE Incentive Clause and practices regarding them.
A106: 5. Items F and J are two of the figures reported in the periodic Value Program Summary of Activities and Office of Management and Budget (OMB) reports.
A108: "An effective VECP program benefits everyone"
A109: *Additional Government Comments or Notations (if any):
A111: Print, fill in, and transmit to the Contracting Officer (CO).

Sheet Cost Breakdown (hidden)
A1: Customer: | C1: =Customer -> 0 | H1: RFQ Received: | I1: =DwgRvw -> 00:00:00 | N1: RFQ Due Date: | O1: =Due_Date_CLIN -> 00:00:00
B2: Part Number: | C2: =PN -> 0 | E2: Rev: | F2: =REV -> 0 | H2: Contact : | I2: =PCO -> 0 | N2: Quote Ref: | O2: 00-03-10
B3: Description: | C3: =Name -> 0 | E3: Contract Qty: | F3: =QTY -> 0 | H3: Phone: | I3: 800-457-0557 | J3: Address: | K3: 400 Aylworth Ave. South Haven, MI 49090 | N3: Quote Status / Comments
A4: Special Requirements: | C4: Requires (2) Inspection Gages built. (Supplied by customer) | E4: Run Qty: | F4: 25 | H4: FAX: | I4: 616-637-8315
E5: Lot Size: | F5: 25 | H5: Purchase Order Number: | I5: =Contract -> 0
A6: RAW MATERIAL DATA (per piece) - [in inches]
A7: Item | B7: Material Type | C7: Material Specs | D7: Length | E7: Width | F7: Height | G7: Diameter | H7: Wall Thickness | I7: Cost/unit | J7: Buy Unit | K7: Unit Weight (Lbs) | L7: Extended Cost | M7: Specific Density | N7: Cubic Inches | O7: Unit Base | P7: Total Length (in ft.)
A8: 1 | B8: Stl Tube | C8: 304SS | D8: 2 | G8: 0.625 | H8: 0.125 | I8: 4.45 | J8: Feet | K8: =IF(Height<Diameter>Width,Spec_Density*Cubic_Inches,Length*Width*Height*Spec_Density) -> 0.1111338401 | L8: =IF(J8="LBS",I8*K8,IF(J8="Each",I8,IF(I8>0.001,(D8/O8)*I8," "))) -> 0.7416666667 | M8: =IF(B8="Steel",0.283,IF(B8="Almn",0.036,IF(B8="Almn Tube",0.036,IF(B8="Stl Tube",0.283,IF(B8="Other",0.025," "))))) -> 0.283 | N8: =IF(Diameter<Height,Length*Width*Height,IF(Width<Diameter>Height,IF(Thickness<0.0001,Length*(PI()*(Diameter/2)^2),Length*((PI()*(Diameter/2)^2)-(PI()*((Diameter-(Thickness*2))/2)^2))))) -> 0.3926990817 | O8: =IF(J8="FEET",12,IF(J8="LBS",1,IF(J8="EACH",1,IF(J8="INCH",1," ")))) -> 12 | P8: =IF(J8="Inch",(D8*QTY)/12,D8*QTY) -> 0
A9: OPR | B9: CODE | C9: DESCRIPTION | G9: SET UP TIME (Mins) | H9: RUN TIME (Mins) | I9: COMMENTS
A11: 005 | B11: 61-0001 | C11: Cut to length and Turn end OD's | G11: 10 | H11: 0.5 | S11: Material Type | U11: Buy Unit
S12: Steel | U12: Inch
A13: 010 | B13: 61-1000 | C13: Turn Dia #1 | G13: 15 | H13: 0.5 | S13: Almn | U13: Feet
S14: Other | U14: Each
A15: 020 | B15: 61-1000 | C15: Turn Dia #2 | G15: 15 | H15: 0.5 | S15: Almn Tube | U15: Lbs
S16: Stl Tube
S20: =SUM(H11:H21) -> 1.53 | T20: Run_Time
A21: 099 | B21: 61-1999 | C21: Final Inspect, Deburr, Package and Ship | G21: 5 | H21: 0.03 | S21: =SUM(G11:G21) -> 45 | T21: Setup
A23: Assembly Cost
A24: =IF(C24>1,"AS"," ") -> AS | B24: ASSY | C24: Assembly of details | G24: 20 | H24: 15 | S24: =SUM(H24:H25) -> 15 | T24: Assy_Time
A25: =IF(C25>1,"PK2"," ") ->  | S25: =SUM(G24:G25) -> 20 | T25: Assy_Setup
A27: Processing/Miscelleneous Cost per Run
A28: OPR | B28: V CODE | C28: PROCESS/ITEM DESCRIPTION | H28: Cost | I28: COMMENTS
A30: P01 | B30: MSC | C30: Expendable Tooling (Cutting Oil, Cut-off tool Inserts, Chamfer tool inserts) | H30: 25
A31: =IF(C31>1,"P02"," ") -> 
A32: =IF(C32>1,"P03"," ") -> 
A33: =IF(C33>1,"P04"," ") ->  | S33: =SUM(H30:H33) -> 25 | T33: Misc_Cost
A34: Packaging Cost per Lot
A35: =IF(C35>1,"PK1"," ") -> PK1 | B35: PAC | C35: Packaging Materials | H35: 2.5
A36: =IF(C36>1,"PK2"," ") ->  | S36: =SUM(H35:H36) -> 2.5 | T36: Pkg_Cost
A38: COST SUMMARY
C39: COST BASE PER HOUR | D39: SET UP (Mins) | E39: RUN (Mins) | F39: RUN QUANTITY | H39: Amortized Set Up Cost | I39: Per Piece Run Cost | J39: Total Material | K39: Off-Fall Allowance | L39: Total Material Footage required to Build | O39: SET UP COST | P39: RUN COST
B40: MATERIAL | F40: =IF(RUN_Qty>1,RUN_Qty,PO_Qty) -> 25 | I40: =Matl_Cost*1.1 -> 0.8158333333 | J40: =Total_Length -> 0 | K40: =J40*0.1 -> 0 | L40: =J40+K40 -> 0 | N40: Per Piece: | O40: =H41+H42+H43+H44 -> 3.178611111 | P40: =SUM(I40:I42) -> 1.599341667
B41: DETAILS | C41: 26.6 | D41: =Setup/60 -> 0.75 | E41: =Run_Time/60 -> 0.0255 | H41: =IF(D41+E41>0.01,(C41*D41)/F40," ") -> 0.798 | I41: =C41*E41 -> 0.6783
B42: ASSEMBLY | C42: 25.25 | D42: =Assy_Setup/60 -> 0.3333333333 | E42: =Assy_Time/60 -> 0.25 | H42: =IF(D42+E42>0.01,(C42*D42)/F40/60," ") -> 0.005611111111 | I42: =C42*E42/60 -> 0.1052083333 | N42: Piece Cost: | O42: =O40+P40 -> 4.777952778
F43: TOOLING | G43: 25 | H43: =IF(Tooling>1,Tooling/F40," ") -> 1 | N43: Burden: | O43: 1.5 | P43: =O42*O43 -> 7.166929167
G44: PROCESS/MISC. | H44: =IF(Misc_Cost>1,IF(Pkg_Cost>1,(((Misc_Cost/RUN_Qty))+(Pkg_Cost/LOT_Size))*1.25," ")) -> 1.375 | N44: Profit: | O44: 0.05 | P44: =P43*O44 -> 0.3583464583
N45: Commission: | O45: 0 | P45: =P43*O45 -> 0
N47: Piece Price: | O47: =SUM(P43:P45) -> 7.525275625

Sheet Images (hidden)
O1: COMPANY | P1: PHOTO | R1: DLA Group | S1: Supply Chain | T1: Address | U1: Sate | W1: Gage Type | Y1: ` | Z1: GD&T Fonts
L2: Material(s) | O2: MTC Engineering | P2: Picture1 | W2: Calipers (VRCL) | Y2: q | Z2: w | AA2: e | AB2: r | AC2: t | AD2: y | AE2: u | AF2: i | AG2: o | AH2: p
L3: Purchased Details (Hdwr, etc.) | O3: Industrial Welding & Engineering | P3: Picture2 | R3: DLA - Aviation Supply Chain | S3: Aviation Supply Chain | T3: 8000 Jefferson Davis Hwy | U3: Richmond, VA 23297-5770 | W3: Chk Fixture (CHFX) | Y3: a | Z3: s | AA3: d | AB3: f | AC3: g | AD3: h | AE3: j | AF3: k | AG3: l
L4: Machine (EDM, Laser, etc.) | O4: MTC Engineering, LLC | P4: Picture1 | R4: DLA - Land Supply Chain | S4: Land Supply Chain | T4: PO Box 3990 | U4: Columbus, OH 43218-3990 | W4: Chk Gage (CKGA) | Y4: z | Z4: x | AA4: c | AB4: v | AC4: b | AD4: n | AE4: m
L5: Form/Fabricate | O5: LCG Machine & Tool | P5: Picture3 | R5: DLA - Maritime Supply Chain | S5: Maritime Supply Chain | T5: PO Box 3990 | U5: Columbus, OH 43218-3990 | W5: Template (CKTP) | Y5: q | Z5: w | AA5: e | AB5: r | AC5: t | AD5: y | AE5: u | AF5: i | AG5: o | AH5: p
L6: Weld | O6: Alannas Engineer | P6: Picture4 | R6: DLA - Land Detachment | S6: Land Detachment | T6: 700 Robbins Ave. | U6: Philadelphia, PA 19111-5096 | W6: Conductivity Meter (COND) | Y6: a | Z6: s | AA6: d | AB6: f | AC6: g | AD6: h | AE6: j | AF6: k | AG6: l
L7: Anneal | O7: Westerville Mfg | P7: Picture5 | R7: DLA - Troop Support | S7: Construction & Eqpt | T7: 700 Robbins Ave. | U7: Philadelphia, PA 19111-5096 | W7: Dial Indicator (DIIN) | Y7: z | Z7: x | AA7: c | AB7: v | AC7: b | AD7: n | AE7: m
L8: Heat Treat-Stress Relief, etc. | O8: Boehm Machine | P8: Picture7 | W8: Gauge - Ball (BALG)
L9: Grind/Polish/Hone/Etc. | O9: DuLond Tool & Engineering, Inc. | P9: Picture 8 | R9: Ship Code | S9: Location | T9: Preservation Method Codes | U9: Priority Rating Codes | W9: Gauge - Block (BKGA)
L10: Special Process (Shot Peen, etc.) | O10: DSE Development | U10: Block #5 | W10: Gauge - Bore (BOGA)
L11: Assembly | O11: Maven Engineering Corporation | P11: Picture 9 | R11: N/A | S11: Commercial | T11: ASTM D3951 | U11: Non-Rated | W11: Gauge - Chamfer (CFGA
L12: Testing (Mechanical) | O12: ADJ Finishing | P12: Picture 4 | R12: TCN | S12: DD250 Site | T12: M10 | U12: DX | W12: Gauge - C'sink (CSKG)
L13: NDT (MPI, WPI, X-ray) | O13: Fourply Design House | P13: Picture 10 | R13: FMS | S13: Foreign Military Sell | T13: M20 | U13: DO | W13: Gauge - Depth (DPGA)
L14: Clean, Pre (TT-C-490, Etc.) | O14: LC Mfg. | P14: Picture 11 | R14: FAT | S14: *Per 52.209-4 | T14: M30 | W14: Gauge - Feeler (FEGA)
L15: Pre-Treat (Carbon Stls) | O15: C. O. W. Industries, Inc. | P15: Picture6 | R15: TDP | S15: * Buyer Direct | T15: M31 | U15: Program Code | W15: Gauge - Groove (GRGA)
L16: Pre-Treat (Almn) | R16: W25G1U | S16: Susquehanna, PA 17070 | T16: M32 | U16: Priority Code | W16: Gauge - Height (HTGA)
L17: Pre-Treat (SS, TI, etc) | O17: Inspectors | P17: Signatures | R17: W62G2T | S17: Tracy, CA 95304 | T17: M33 | U17: A1 | W17: Gauge - Hole (HOGA)
L18: Prime | R18: N00253 | S18: Keyport, WA 98345 | T18: M40 | U18: A2 | W18: Gauge - Radius (RAGA)
L19: Top Coat | O19: Tony Casillas | P19: PicTony | R19: N0534A | S19: Kekaha, HI 96752 | T19: M41 | U19: A3 | W19: Gauge - Ring (RIGA)
L20: Finish Processing (Noted) | O20: Brian Hoheisel | R20: N35266 | S20: Pearl Habor, HI 96860 | T20: M42 | U20: A4 | W20: Gauge - Snap (SNGA)
L21: Plating (Cad, Chrome, etc) | O21: Lou Spiezio | P21: PicLou | R21: N53845 | S21: San Diego, CA 92106 | T21: M43 | U21: A5 | W21: Gauge - Taper (TAGA)
L22: Special Coating (Dri-Lub, etc) | O22: Shane Englert | R22: N55262 | S22: San Diego, CA 92136 | T22: M44 | U22: A6 | W22: Gauge - Telescope (TELG)
L23: Special Packing (SPI-Special) | O23: Mike Cencula | R23: R21901 | S23: Norfolk, VA 23512 | T23: M45 | U23: A7 | W23: Gauge - Thrd Plug (THPG)
L24: Identification (Over 130 Std) | O24: Joe Casillas | P24: PicJoe | R24: SW0400 | S24: Richmond, VA 23297 | T24: M50 | U24: B1 | W24: Gauge - Thrd Ring (THRG)
L25: Special ID Data (UID, S/N, Etc.) | O25: Nic Sanna | R25: SW0700 | S25: Columbus, OH 43213 | T25: M51 | U25: B8 | W25: Gauge - Pin (PING)
L26: Other, Noted: | O26: Debra Arenstein | R26: SW3100 | S26: Susquehanna, PA 17070 | T26: M52 | U26: B9 | W26: Hardness Tester (HDTE)
O27: Severino Perez | P27: PicSeven | R27: SW3108 | S27: Susquehanna, PA 17070 | T27: M53 | U27: C1 | W27: Depth Mic (DMIC)
L28: FOB List | O28: George Boehm | P28: PicGeorge | R28: SW3113 | S28: Cherry Point, NC 28533 | T28: M54 | U28: C2 | W28: ID Mic (IMIC)
O29: Lowell Garrett | P29: PicLowell | R29: SW3114 | S29: Tobyhanna, PA 18466 | T29: M55 | U29: C3 | W29: OD Mic (OMIC)
L30: D | O30: Dietmar Hoheisel | P30: PicDietmar | R30: SW3117 | S30: Norfolk, VA 23512 | T30: Z | U30: C9 | W30: Pin Mic (PMIC)
L31: S | O31: Christy Varner | P31: PicChristy | R31: SW3119 | S31: Warner Robins, GA 31098 | T31: ZZ | U31: D1 | W31: Sht Mtl Mic (SMMC)
L32: O | O32: Robert Chicaskz | R32: SW3120 | S32: Anniston, AL 36201 | T32: AE | U32: D2 | W32: Protractor (PROT)
O33: Tabatha Chicaskz | R33: SW3121 | S33: Albany, GA 31704 | T33: AH | U33: D3 | W33: Sin Bar (SINB)
L34: IA List | O34: Greg Brunette | R34: SW3122 | S34: Jacksonville, FL 32212 | T34: AU | U34: G1 | W34: Ruler - Linear (RULE)
O35: Luis Gomez | R35: SW3124 | S35: Susquehanna, PA 17070 | T35: AW | U35: G2 | W35: Scale, Weight (SCAL)
L36: D | O36: David Hernandez | R36: SW3200 | S36: San Joaquin, CA 95376 | T36: BC | U36: G3 | W36: Square (SQVR)
L37: S | O37: Victoria Moreland | R37: SW3210 | S37: Hill AFB, UT 84056 | T37: BD | U37: J1 | W37: Tape Measure (TAPE)
L38: O | O38: Sherwin-Williams | P38: PicKeith | R38: SW3211 | S38: Oklahoma City, OK 73145 | T38: BL | U38: E1 | W38: Thickness Meter (TKME)
R39: SW3212 | S39: McClellan, CA 95652 | T39: DB | U39: E2 | W39: Visual (VISL)
O40: Engineers | R40: SW3213 | S40: San Antonio, TX 78241 | T40: DC | U40: E3
O41: Tony Casillas - Sr. Engineer | R41: SW3215 | S41: Barstow, CA 92311 | T41: DR | U41: F1
O42: Brian Hoheisel - Weld Engineer | R42: SW3216 | S42: Puget Sound NSY, WA 98314 | T42: DW | U42: F2
O43: Debra Arenstein - QA Manager | R43: SW3218 | S43: San Diego, CA 92136 | T43: EK | U43: F3
O44: Lou Spiezio - Project Manager | R44: SW3222 | S44: Corpus Christi, TX 78419 | T44: GS | U44: H1
O45: Nic Sanna - Project Manager | R45: SW3224 | S45: San Joaquin, CA 95376 | T45: GX | U45: H5
O46: Level II, M.T., P.T. | R46: SW3227 | S46: Red River, TX 75507 | T46: HM | U46: H6
O47: Sr. Engineer | R47: UY8615 | S47: Phoenix, AZ 85043 | T47: JF | U47: H7
O48: Weld Engineer | R48: V55576 | S48: Bastion, Afghanistan | T48: JM | U48: H8
O49: Project Engineer | R49: W25G1Q | S49: Chambersburg, PA 17201 | T49: KD | U49: K1
O50: Project Manager | R50: W25G1V | S50: Tobyhanna, PA 18466 | T50: KF | U50: N1
R51: W25G1W | S51: Tobyhanna, PA 18466 | T51: KG | U51: N2
R52: W31G1Y | S52: Anniston, AL 36201 | T52: KH | U52: N3
R53: W31G1Z | S53: Anniston, AL 36201 | U53: N4
R54: W33M8Q | S54: Ft. Gordon, GA | U54: N5
R55: W33M8U | S55: Ft. Gordon, GA | U55: N6
R56: W45G18 | S56: Texarkana, TX 75507 | U56: N7
R57: W45G19 | S57: Red River, TX 75507 | U57: N8
R58: W45H08 | S58: Corpus Christi, TX 78419
R59: W73BF0 | S59: Fort Myer, VA
R60: W806MT | S60: Cortlandt Manor, NY 10567
R61: W80TWT | S61: Fort Irwin, CA 92310
R62: W81K69 | S62: Ft. Sill, OK 73503
